Workbook

Sheet Cover
B9: Further education and skills inspections and outcomes
B11: This release contains:
B12: ="• provisional data for inspections conducted between "&Inspections_From&" and "&Inspections_To -> • provisional data for inspections conducted between 1 September 2016 and 28 February 2017
B13: ="• provisional data for the most recent inspection outcomes as at "&Inspections_To -> • provisional data for the most recent inspection outcomes as at 28 February 2017
B15: Published on: "&Published_Date | D15: 2017-06-28
B16: Publication frequency: Twice a year. Inspections up to the end of February are published in June each year, inspections up to the end of August are published in November/December each year.
B17: Responsible Statistician: Sarah Pearce, 03000 130 632 or | K17: Sarah.Pearce@ofsted.gov.uk
B19: © Crown copyright You may use and re-use this information (not including logos) free of charge in any format or medium, under the terms of the Open Government Licence.
B20: To view this licence, visit: | E20: http://www.nationalarchives.gov.uk/doc/open-government-licence/
B21: Or write to the Information Policy Team, The National Archives, Kew, London, TW9 4DU. Or email: | M21: psi@nationalarchives.gsi.gov.uk

Sheet Notes
B2: Notes
B4: The new common inspection framework was introduced on 1 September 2015 and was designed to provide greater coherence across different providers that cater for similar age ranges. It sets out the principles that apply to inspection and the main judgements that inspectors make when conducting inspections of maintained schools, academies, non-association independent schools, further education and skills providers and registered early years settings. The framework can be found here:
B5: https://www.gov.uk/government/publications/common-inspection-framework-education-skills-and-early-years-from-september-2015
B7: The framework is accompanied by an inspection handbook for each of the four remits. The handbooks set out how each of the inspection judgements will be made and reflects the needs and expectations of different phases and the differences between various age groups. The further education and skills inspection handbook can be found here:
B8: https://www.gov.uk/government/publications/further-education-and-skills-inspection-handbook-from-september-2015
B10: Under the new framework previously good providers can receive a short inspection, rather than a full inspection. Short inspections can either confirm that the provider is still good overall or the lead inspector can choose to convert the inspection to a full inspection where:
B11: § There is insufficient evidence to confirm that the provider remains good;
B12: § There are concerns that there is evidence that the provider may no longer be good (which may include concerns about safeguarding);
B13: § Or if there is sufficient evidence of improved performance to suggest that the provider may be judged outstanding.
B14: A decision to convert the short inspection does not predetermine the outcome of the full inspection. At the end of the full inspection a provider could remain good, improve to outstanding or decline to requires improvement or inadequate.
B16: In-year reporting
B17: This refers to inspections that have been conducted within a reporting year, between 1 September and 31 August. The tables and charts count the number of inspections that have been conducted during the reporting year. If a provider has been inspected twice, they will appear twice in the underlying data. For 2016/17, the data, tables and charts contain the number of inspections that took place between 1 September 2016 and 28 February 2017.
B19: Most recent inspection outcomes
B20: This refers to the most recent (or latest) full inspection outcomes for all open and funded providers at one point in time, regardless of when the inspection took place. The tables and charts count the number of providers that have been inspected. Each provider can only appear once in the underlying data. If a provider is open and funded but has not yet been inspected then they do not appear in this measure, but are included within the underlying data.
B22: Provider types and groups
B23: Provider type | C23: Provider group
B24: General further education college | C24: Colleges | D24: All further education and skills providers
B25: Sixth form college
B26: Specialist further education college
B27: Independent specialist college | C27: Independent specialist colleges
B28: Independent learning provider | C28: Independent learning providers (including employer providers)
B29: Employer provider
B30: Local authority provider | C30: Community learning and skills providers
B31: Not for profit organisation
B32: Specialist designated institution
B33: 16-19 academy converter | C33: 16-19 academies
B34: 16-19 academy sponsor led
B35: 16-19 free school
B36: Dance and drama college | C36: Dance and drama colleges
B37: Higher education institution* | C37: Higher education institutions
B38: National Careers Service contractor | C38: National Careers Service contractors
B39: Prison and young offender institution | C39: Prisons and young offender institutions
B40: *Further education being delivered in higher education institutions
B42: Methodology and quality report
B43: A methodology and quality report for these statistics can be found here:
B44: https://www.gov.uk/government/statistics/further-education-and-skills-inspections-and-outcomes-as-at-28-February-2017
B46: It contains a range of different information about the statistics which includes the methodology used to aggregate the statistics, the accuracy of the data and descriptions of the provider types.
B48: Notes specific to this release
B50: There have been some changes to these data, tables and charts since they were last published in December 2016.
B51: The numbers used to record the outcome of a short inspection have changed to align with maintained schools and academies, under the common inspection framework. Where a short inspection did not covert and the provider remained good, the overall effectiveness column will be populated with a “9”. Within C2 and C3, the number and proportion recorded under 'good', will include both where the overall effectiveness judgement contains a 2 or a 9.
B52: The use of "-" and "NULL" has been changed to align with the published management information. NULL is used where an inspection has not taken place. "-" is used where there has been an inspection, but the provider has not received an outcome for that judgement. In table 'D3 Most recent inspection data' a "-" appears where the judgement was not part of the inspection framework at the time of inspection.
B53: One additional chart (C7) has been included to show the most recent overall effectiveness of learning and skills and work activities (overall effectiveness) for all open prisons and young offender institutions.

Sheet Contents
B2: Contents
B4: Tables
B5: ='T1 In-year inspections'!B2 -> Table 1: Number of further education and skills inspections this reporting year, by inspection type
B6: ='T2 In-year short inspections'!B2 -> Table 2: Short inspections this reporting year
B7: ='T3 In-year outcomes'!B2 -> Table 3: Further education and skills full inspection outcomes this reporting year, by judgement and provider type
B8: ='T3a Prison outcomes'!B2 -> Table 3a: Inspection outcomes of prisons and young offender institutions, by judgement
B9: ='T4 Most recent outcomes'!B2 -> Table 4: Most recent overall effectiveness of further education and skills providers
B11: Charts
B12: ='C1 In-year judgement outcomes'!B2 -> Chart 1: Further education and skills full inspection outcomes this reporting year, by judgement
B13: ='C2 In-year provider outcomes'!B2 -> Chart 2: Further education and skills full and short inspection outcomes this reporting year, by overall effectiveness and provider group
B14: ='C3 In-year outcomes over time'!B2 -> Chart 3: Further education and skills full and short inspection outcomes, by overall effectiveness and reporting year
B15: ='C4 In-year grade 3 outcomes'!B2 -> Chart 4: Proportion of previously grade 3 further education and skills providers that improved, declined or stayed the same at their next full inspection
B16: ='C5 Most recent outcomes'!B2 -> Chart 5: Overall effectiveness of further education and skills providers at their most recent inspection
B17: ='C6 Most recent over time'!B2 -> Chart 6: Most recent overall effectiveness of further education and skills providers, over time
B18: ='C7 Most recent prison outcomes'!B2 -> Chart 7: Most recent overall effectiveness of learning and skills and work activities (overall effectiveness) of prisons and young offender institutions, over time
B20: Underlying data
B21: ='D1 In-year inspection data'!A1 -> Data 1: In-year inspection data
B22: ='D2 In-year historical data'!A1 -> Data 2: Historical in-year full inspection outcomes
B23: ='D3 Most recent inspection data'!A1 -> Data 3: Most recent full inspection outcomes
B26: Key
B27: Blue tabs: T1 to T4 are tables
B28: Orange tabs: C1 to C7 are charts
B29: Green tabs: D1 to D3 are the underlying provider level data

Sheet Dates1 (hidden)
A3: Inspections from | E3: 1 September 2016
A4: Inspections to | E4: 28 February 2017
A5: Inspections published by: | E5: 31 March 2017
A6: Provider information effective as at | E6: As at 28 February 2017
A7: Reporting period | E7: =Inspections_From&" to "&Inspections_To -> 1 September 2016 to 28 February 2017
A8: Reporting period ("between…") | E8: =Inspections_From&" and "&Inspections_To -> 1 September 2016 and 28 February 2017
A12: Historic reporting dates
A13: Start | B13: End | D13: Year bracket
A14: 1 September 2016 | B14: 28 February 2017 | D14: =A14&" - "&B14 -> 1 September 2016 - 28 February 2017
A15: 1 September 2015 | B15: 31 August 2016 | D15: =A15&" - "&B15 -> 1 September 2015 - 31 August 2016
A16: 1 September 2014 | B16: 31 August 2015 | D16: 1 September 2014 - 31 August 2015
A17: 1 September 2013 | B17: 31 August 2014 | D17: 1 September 2013 - 31 August 2014
A18: 1 September 2012 | B18: 31 August 2013 | D18: 1 September 2012 - 31 August 2013
A19: 1 September 2011 | B19: 31 August 2012 | D19: 1 September 2011 - 31 August 2012
A21: 2016-09-01 | B21: 2017-02-28
A22: 2015-09-01 | B22: 2016-08-31
A23: 2014-09-01 | B23: 2015-08-31
A24: 2013-09-01 | B24: 2014-08-31
A25: 2012-09-01 | B25: 2013-08-31
A26: 2011-09-01 | B26: 2012-08-31

Sheet T1 In-year inspections
B2: Table 1: Number of further education and skills inspections this reporting year, by inspection type
B3: =Reporting_Period -> 1 September 2016 to 28 February 2017
E4: Colleges | F4: Independent specialist colleges | G4: Independent learning providers (including employer providers) | H4: Community learning and skills providers | I4: 16-19 academies | J4: Dance and drama colleges | K4: Higher education institutions | L4: National Careers Service Contractors
D5: Number of inspections
B6: Inspection activity (full inspections) | D6: All further education and skills providers1 | E6: Colleges2 | F6: Independent specialist colleges | G6: Independent learning providers3 | H6: Community learning and skills providers4 | I6: 16-19 academies5 | J6: Dance and drama colleges | K6: Higher education institutions6 | L6: National Careers Service contractors | N6: Prison and young offender institutions7
A7: Full | B7: Full inspections | D7: =IFERROR(GETPIVOTDATA("URN",Pivots!$A$87,"Inspection type grouping","Full","Event type grouping","FES - Full Inspection"),0) -> 146 | E7: =IFERROR(GETPIVOTDATA("URN",Pivots!$A$87,"Provider Group",E$4,"Inspection type grouping","Full","Event type grouping","FES - Full Inspection"),0) -> 42 | F7: =IFERROR(GETPIVOTDATA("URN",Pivots!$A$87,"Provider Group",F$4,"Inspection type grouping","Full","Event type grouping","FES - Full Inspection"),0) -> 9 | G7: =IFERROR(GETPIVOTDATA("URN",Pivots!$A$87,"Provider Group",G$4,"Inspection type grouping","Full","Event type grouping","FES - Full Inspection"),0) -> 54 | H7: =IFERROR(GETPIVOTDATA("URN",Pivots!$A$87,"Provider Group",H$4,"Inspection type grouping","Full","Event type grouping","FES - Full Inspection"),0) -> 23 | I7: =IFERROR(GETPIVOTDATA("URN",Pivots!$A$87,"Provider Group",I$4,"Inspection type grouping","Full","Event type grouping","FES - Full Inspection"),0) -> 8 | J7: =IFERROR(GETPIVOTDATA("URN",Pivots!$A$87,"Provider Group",J$4,"Inspection type grouping","Full","Event type grouping","FES - Full Inspection"),0) -> 0 | K7: =IFERROR(GETPIVOTDATA("URN",Pivots!$A$87,"Provider Group",K$4,"Inspection type grouping","Full","Event type grouping","FES - Full Inspection"),0) -> 1 | L7: =IFERROR(GETPIVOTDATA("URN",Pivots!$A$87,"Provider Group",L$4,"Inspection type grouping","Full","Event type grouping","FES - Full Inspection"),0) -> 9 | N7: 21
A8: Reinspection | B8: Re-inspections | D8: =IFERROR(GETPIVOTDATA("URN",Pivots!$A$87,"Inspection type grouping","Reinspection","Event type grouping","FES - Full Inspection"),0) -> 5 | E8: =IFERROR(GETPIVOTDATA("URN",Pivots!$A$87,"Provider Group",E$4,"Inspection type grouping","Reinspection","Event type grouping","FES - Full Inspection"),0) -> 3 | F8: =IFERROR(GETPIVOTDATA("URN",Pivots!$A$87,"Provider Group",F$4,"Inspection type grouping","Reinspection","Event type grouping","FES - Full Inspection"),0) -> 0 | G8: =IFERROR(GETPIVOTDATA("URN",Pivots!$A$87,"Provider Group",G$4,"Inspection type grouping","Reinspection","Event type grouping","FES - Full Inspection"),0) -> 1 | H8: =IFERROR(GETPIVOTDATA("URN",Pivots!$A$87,"Provider Group",H$4,"Inspection type grouping","Reinspection","Event type grouping","FES - Full Inspection"),0) -> 1 | I8: =IFERROR(GETPIVOTDATA("URN",Pivots!$A$87,"Provider Group",I$4,"Inspection type grouping","Reinspection","Event type grouping","FES - Full Inspection"),0) -> 0 | J8: =IFERROR(GETPIVOTDATA("URN",Pivots!$A$87,"Provider Group",J$4,"Inspection type grouping","Reinspection","Event type grouping","FES - Full Inspection"),0) -> 0 | K8: =IFERROR(GETPIVOTDATA("URN",Pivots!$A$87,"Provider Group",K$4,"Inspection type grouping","Reinspection","Event type grouping","FES - Full Inspection"),0) -> 0 | L8: =IFERROR(GETPIVOTDATA("URN",Pivots!$A$87,"Provider Group",L$4,"Inspection type grouping","Reinspection","Event type grouping","FES - Full Inspection"),0) -> 0 | N8: 0
A9: Short conversion | B9: Short inspections that converted | D9: =IFERROR(GETPIVOTDATA("URN",Pivots!$A$87,"Event type grouping","FES - Short inspection Conversion"),0) -> 11 | E9: =IFERROR(GETPIVOTDATA("URN",Pivots!$A$87,"Provider Group",E$4,"Event type grouping","FES - Short inspection Conversion"),0) -> 5 | F9: =IFERROR(GETPIVOTDATA("URN",Pivots!$A$87,"Provider Group",F$4,"Event type grouping","FES - Short inspection Conversion"),0) -> 1 | G9: =IFERROR(GETPIVOTDATA("URN",Pivots!$A$87,"Provider Group",G$4,"Event type grouping","FES - Short inspection Conversion"),0) -> 4 | H9: =IFERROR(GETPIVOTDATA("URN",Pivots!$A$87,"Provider Group",H$4,"Event type grouping","FES - Short inspection Conversion"),0) -> 0 | I9: =IFERROR(GETPIVOTDATA("URN",Pivots!$A$87,"Provider Group",I$4,"Event type grouping","FES - Short inspection Conversion"),0) -> 0 | J9: =IFERROR(GETPIVOTDATA("URN",Pivots!$A$87,"Provider Group",J$4,"Event type grouping","FES - Short inspection Conversion"),0) -> 0 | K9: =IFERROR(GETPIVOTDATA("URN",Pivots!$A$87,"Provider Group",K$4,"Event type grouping","FES - Short inspection Conversion"),0) -> 1 | L9: =IFERROR(GETPIVOTDATA("URN",Pivots!$A$87,"Provider Group",L$4,"Event type grouping","FES - Short inspection Conversion"),0) -> 0 | N9: 0
B10: Total | D10: =SUM(D7:D9) -> 162 | E10: =SUM(E7:E9) -> 50 | F10: 10 | G10: 59 | H10: 24 | I10: 8 | J10: 0 | K10: 2 | L10: 9 | N10: 21
N11: Source: Ofsted inspection data and Her Majesty's Inspectorate of Prisons (HMIP)
D12: Number of inspections
B13: Inspection activity (other inspections) | D13: All further education and skills providers1 | E13: Colleges2 | F13: Independent specialist colleges | G13: Independent learning providers3 | H13: Community learning and skills providers4 | I13: 16-19 academies5 | J13: Dance and drama colleges | K13: Higher education institutions6 | L13: National Careers Service contractors
A14: Monitoring | B14: Monitoring visits | D14: =IFERROR(GETPIVOTDATA("URN",Pivots!$A$87,"Inspection type grouping","Monitoring","Event type grouping","FES - Monitoring Inspection"),0) -> 2 | E14: =IFERROR(GETPIVOTDATA("URN",Pivots!$A$87,"Provider Group",E$4,"Inspection type grouping","Monitoring","Event type grouping","FES - Monitoring Inspection"),0) -> 2 | F14: =IFERROR(GETPIVOTDATA("URN",Pivots!$A$87,"Provider Group",F$4,"Inspection type grouping","Monitoring","Event type grouping","FES - Monitoring Inspection"),0) -> 0 | G14: =IFERROR(GETPIVOTDATA("URN",Pivots!$A$87,"Provider Group",G$4,"Inspection type grouping","Monitoring","Event type grouping","FES - Monitoring Inspection"),0) -> 0 | H14: =IFERROR(GETPIVOTDATA("URN",Pivots!$A$87,"Provider Group",H$4,"Inspection type grouping","Monitoring","Event type grouping","FES - Monitoring Inspection"),0) -> 0 | I14: =IFERROR(GETPIVOTDATA("URN",Pivots!$A$87,"Provider Group",I$4,"Inspection type grouping","Monitoring","Event type grouping","FES - Monitoring Inspection"),0) -> 0 | J14: =IFERROR(GETPIVOTDATA("URN",Pivots!$A$87,"Provider Group",J$4,"Inspection type grouping","Monitoring","Event type grouping","FES - Monitoring Inspection"),0) -> 0 | K14: =IFERROR(GETPIVOTDATA("URN",Pivots!$A$87,"Provider Group",K$4,"Inspection type grouping","Monitoring","Event type grouping","FES - Monitoring Inspection"),0) -> 0 | L14: =IFERROR(GETPIVOTDATA("URN",Pivots!$A$87,"Provider Group",L$4,"Inspection type grouping","Monitoring","Event type grouping","FES - Monitoring Inspection"),0) -> 0
A15: Reinspection monitoring | B15: Re-inspection monitoring visits | D15: =IFERROR(GETPIVOTDATA("URN",Pivots!$A$87,"Inspection type grouping","Reinspection monitoring","Event type grouping","FES - Monitoring Inspection"),0) -> 22 | E15: =IFERROR(GETPIVOTDATA("URN",Pivots!$A$87,"Provider Group",E$4,"Inspection type grouping","Reinspection monitoring","Event type grouping","FES - Monitoring Inspection"),0) -> 15 | F15: =IFERROR(GETPIVOTDATA("URN",Pivots!$A$87,"Provider Group",F$4,"Inspection type grouping","Reinspection monitoring","Event type grouping","FES - Monitoring Inspection"),0) -> 1 | G15: =IFERROR(GETPIVOTDATA("URN",Pivots!$A$87,"Provider Group",G$4,"Inspection type grouping","Reinspection monitoring","Event type grouping","FES - Monitoring Inspection"),0) -> 2 | H15: =IFERROR(GETPIVOTDATA("URN",Pivots!$A$87,"Provider Group",H$4,"Inspection type grouping","Reinspection monitoring","Event type grouping","FES - Monitoring Inspection"),0) -> 3 | I15: =IFERROR(GETPIVOTDATA("URN",Pivots!$A$87,"Provider Group",I$4,"Inspection type grouping","Reinspection monitoring","Event type grouping","FES - Monitoring Inspection"),0) -> 1 | J15: =IFERROR(GETPIVOTDATA("URN",Pivots!$A$87,"Provider Group",J$4,"Inspection type grouping","Reinspection monitoring","Event type grouping","FES - Monitoring Inspection"),0) -> 0 | K15: =IFERROR(GETPIVOTDATA("URN",Pivots!$A$87,"Provider Group",K$4,"Inspection type grouping","Reinspection monitoring","Event type grouping","FES - Monitoring Inspection"),0) -> 0 | L15: =IFERROR(GETPIVOTDATA("URN",Pivots!$A$87,"Provider Group",L$4,"Inspection type grouping","Reinspection monitoring","Event type grouping","FES - Monitoring Inspection"),0) -> 0
A16: Short | B16: Short inspections that did not convert | D16: =IFERROR(SUM(GETPIVOTDATA("URN",Pivots!$A$87,"Event type grouping","FES - Short inspection")),0) -> 39 | E16: =IFERROR(GETPIVOTDATA("URN",Pivots!$A$87,"Provider Group",E$4,"Event type grouping","FES - Short inspection"),0) -> 12 | F16: =IFERROR(GETPIVOTDATA("URN",Pivots!$A$87,"Provider Group",F$4,"Event type grouping","FES - Short inspection"),0) -> 1 | G16: =IFERROR(GETPIVOTDATA("URN",Pivots!$A$87,"Provider Group",G$4,"Event type grouping","FES - Short inspection"),0) -> 11 | H16: =IFERROR(GETPIVOTDATA("URN",Pivots!$A$87,"Provider Group",H$4,"Event type grouping","FES - Short inspection"),0) -> 15 | I16: =IFERROR(GETPIVOTDATA("URN",Pivots!$A$87,"Provider Group",I$4,"Event type grouping","FES - Short inspection"),0) -> 0 | J16: =IFERROR(GETPIVOTDATA("URN",Pivots!$A$87,"Provider Group",J$4,"Event type grouping","FES - Short inspection"),0) -> 0 | K16: =IFERROR(GETPIVOTDATA("URN",Pivots!$A$87,"Provider Group",K$4,"Event type grouping","FES - Short inspection"),0) -> 0 | L16: =IFERROR(GETPIVOTDATA("URN",Pivots!$A$87,"Provider Group",L$4,"Event type grouping","FES - Short inspection"),0) -> 0
B17: Total | D17: =SUM(D14:D16) -> 63 | E17: =SUM(E14:E16) -> 29 | F17: 2 | G17: 13 | H17: 18 | I17: 1 | J17: 0 | K17: 0 | L17: 0
L18: Source: Ofsted inspection data
B19: 1. Does not include prison and young offender institution inspections.
B20: 2. Includes general further education colleges, sixth form colleges and specialist further education colleges.
B21: 3. Includes employer providers.
B22: 4. Includes local authority, not for profit and specialist designated providers.
B23: 5. Includes 16-19 free schools, 16-19 academy converters and 16-19 sponsor led academies.
B24: 6. Inspection of further education provision only, not provider as a whole.
B25: 7. Where the report has been published within the reporting period, but the inspection may have taken place in the previous reporting year.

Sheet T2 In-year short inspections
B2: Table 2: Short inspections this reporting year
B3: =Reporting_Period -> 1 September 2016 to 28 February 2017
E5: Total number of short inspections | G5: Total number of short inspections that did not convert to a full inspection | I5: Total number of short inspections that converted to a full inspection | J5: Overall effectiveness grade at converted inspection
J6: Number | O6: Percentage
J7: Outstanding | K7: Good | L7: Requires improvement | M7: Inadequate | O7: Outstanding | P7: Good | Q7: Requires improvement | R7: Inadequate
B8: Total number of short inspections | E8: =SUM(G8+I8) -> 50 | G8: =GETPIVOTDATA("URN",Pivots!$CV$9,"Event type grouping","FES - Short inspection") -> 39 | I8: =GETPIVOTDATA("URN",Pivots!$CV$9,"Event type grouping","FES - Short inspection Conversion") -> 11 | J8: =GETPIVOTDATA("URN",Pivots!$CV$9,"Event type grouping","FES - Short inspection Conversion","Overall effectiveness",1) -> 5 | K8: =GETPIVOTDATA("URN",Pivots!$CV$9,"Event type grouping","FES - Short inspection Conversion","Overall effectiveness",2) -> 3 | L8: =GETPIVOTDATA("URN",Pivots!$CV$9,"Event type grouping","FES - Short inspection Conversion","Overall effectiveness",3) -> 3 | M8: =GETPIVOTDATA("URN",Pivots!$CV$9,"Event type grouping","FES - Short inspection Conversion","Overall effectiveness",4) -> 0 | O8: =J8/$I8*100 -> 45.45454545 | P8: =K8/$I8*100 -> 27.27272727 | Q8: 27.27272727 | R8: 0
R9: Source: Ofsted inspection data
B10: 1. Percentages are rounded and may not add to 100. Where the number of inspections is small, percentages should be treated with caution.

Sheet T3 In-year outcomes
B2: Table 3: Further education and skills full inspection outcomes this reporting year, by judgement and provider type
B3: =Reporting_Period -> 1 September 2016 to 28 February 2017
B5: Select provider group1: | D5: <All providers>
B7: Select provider type: | D7: <All>
F8: 1 | G8: 2 | H8: 3 | I8: 4
D9: Total number of inspections | F9: Number of inspections | K9: Percentage of inspections
F10: Outstanding | G10: Good | H10: Requires improvement | I10: Inadequate | K10: Outstanding | L10: Good | M10: Requires improvement | N10: Inadequate
B11: Overall effectiveness | D11: =SUM(F11:I11) -> 162 | F11: =IF(T2_PG="<All providers>", IFERROR(GETPIVOTDATA("Organisation ID",Pivots!$V$6,$B11,F$8),0), IF(OR(ISBLANK(T2_PT),T2_PT="<All>"), IFERROR(GETPIVOTDATA("Organisation ID",Pivots!$V$6,"Provider Group",T2_PG1,$B11,F$8),0), IFERROR(GETPIVOTDATA("Organisation ID",Pivots!$AF$6,"Reporting provider type",T2_PT,$B11,F$8),0))) -> 12 | G11: =IF(T2_PG="<All providers>", IFERROR(GETPIVOTDATA("Organisation ID",Pivots!$V$6,$B11,G$8),0), IF(OR(ISBLANK(T2_PT),T2_PT="<All>"), IFERROR(GETPIVOTDATA("Organisation ID",Pivots!$V$6,"Provider Group",T2_PG1,$B11,G$8),0), IFERROR(GETPIVOTDATA("Organisation ID",Pivots!$AF$6,"Reporting provider type",T2_PT,$B11,G$8),0))) -> 74 | H11: =IF(T2_PG="<All providers>", IFERROR(GETPIVOTDATA("Organisation ID",Pivots!$V$6,$B11,H$8),0), IF(OR(ISBLANK(T2_PT),T2_PT="<All>"), IFERROR(GETPIVOTDATA("Organisation ID",Pivots!$V$6,"Provider Group",T2_PG1,$B11,H$8),0), IFERROR(GETPIVOTDATA("Organisation ID",Pivots!$AF$6,"Reporting provider type",T2_PT,$B11,H$8),0))) -> 59 | I11: =IF(T2_PG="<All providers>", IFERROR(GETPIVOTDATA("Organisation ID",Pivots!$V$6,$B11,I$8),0), IF(OR(ISBLANK(T2_PT),T2_PT="<All>"), IFERROR(GETPIVOTDATA("Organisation ID",Pivots!$V$6,"Provider Group",T2_PG1,$B11,I$8),0), IFERROR(GETPIVOTDATA("Organisation ID",Pivots!$AF$6,"Reporting provider type",T2_PT,$B11,I$8),0))) -> 17 | K11: =IF(ISERROR(100*F11/$D11),"-",100*F11/$D11) -> 7.407407407 | L11: =IF(ISERROR(100*G11/$D11),"-",100*G11/$D11) -> 45.67901235 | M11: 36.41975309 | N11: 10.49382716
B12: Effectiveness of leadership and management | D12: =SUM(F12:I12) -> 162 | F12: =IF(T2_PG="<All providers>", IFERROR(GETPIVOTDATA("Organisation ID",Pivots!$V$24,$B12,F$8),0), IF(OR(ISBLANK(T2_PT),T2_PT="<All>"), IFERROR(GETPIVOTDATA("Organisation ID",Pivots!$V$24,"Provider Group",T2_PG1,$B12,F$8),0), IFERROR(GETPIVOTDATA("Organisation ID",Pivots!$AF$24,"Reporting provider type",T2_PT,$B12,F$8),0))) -> 13 | G12: =IF(T2_PG="<All providers>", IFERROR(GETPIVOTDATA("Organisation ID",Pivots!$V$24,$B12,G$8),0), IF(OR(ISBLANK(T2_PT),T2_PT="<All>"), IFERROR(GETPIVOTDATA("Organisation ID",Pivots!$V$24,"Provider Group",T2_PG1,$B12,G$8),0), IFERROR(GETPIVOTDATA("Organisation ID",Pivots!$AF$24,"Reporting provider type",T2_PT,$B12,G$8),0))) -> 74 | H12: =IF(T2_PG="<All providers>", IFERROR(GETPIVOTDATA("Organisation ID",Pivots!$V$24,$B12,H$8),0), IF(OR(ISBLANK(T2_PT),T2_PT="<All>"), IFERROR(GETPIVOTDATA("Organisation ID",Pivots!$V$24,"Provider Group",T2_PG1,$B12,H$8),0), IFERROR(GETPIVOTDATA("Organisation ID",Pivots!$AF$24,"Reporting provider type",T2_PT,$B12,H$8),0))) -> 58 | I12: =IF(T2_PG="<All providers>", IFERROR(GETPIVOTDATA("Organisation ID",Pivots!$V$24,$B12,I$8),0), IF(OR(ISBLANK(T2_PT),T2_PT="<All>"), IFERROR(GETPIVOTDATA("Organisation ID",Pivots!$V$24,"Provider Group",T2_PG1,$B12,I$8),0), IFERROR(GETPIVOTDATA("Organisation ID",Pivots!$AF$24,"Reporting provider type",T2_PT,$B12,I$8),0))) -> 17 | K12: =IF(ISERROR(100*F12/$D12),"-",100*F12/$D12) -> 8.024691358 | L12: =IF(ISERROR(100*G12/$D12),"-",100*G12/$D12) -> 45.67901235 | M12: =IF(ISERROR(100*H12/$D12),"-",100*H12/$D12) -> 35.80246914 | N12: =IF(ISERROR(100*I12/$D12),"-",100*I12/$D12) -> 10.49382716
B13: Quality of teaching, learning and assessment | D13: 162 | F13: =IF(T2_PG="<All providers>", IFERROR(GETPIVOTDATA("Organisation ID",Pivots!$V$42,$B13,F$8),0), IF(OR(ISBLANK(T2_PT),T2_PT="<All>"), IFERROR(GETPIVOTDATA("Organisation ID",Pivots!$V$42,"Provider Group",T2_PG1,$B13,F$8),0), IFERROR(GETPIVOTDATA("Organisation ID",Pivots!$AF$42,"Reporting provider type",T2_PT,$B13,F$8),0))) -> 11 | G13: =IF(T2_PG="<All providers>", IFERROR(GETPIVOTDATA("Organisation ID",Pivots!$V$42,$B13,G$8),0), IF(OR(ISBLANK(T2_PT),T2_PT="<All>"), IFERROR(GETPIVOTDATA("Organisation ID",Pivots!$V$42,"Provider Group",T2_PG1,$B13,G$8),0), IFERROR(GETPIVOTDATA("Organisation ID",Pivots!$AF$42,"Reporting provider type",T2_PT,$B13,G$8),0))) -> 76 | H13: =IF(T2_PG="<All providers>", IFERROR(GETPIVOTDATA("Organisation ID",Pivots!$V$42,$B13,H$8),0), IF(OR(ISBLANK(T2_PT),T2_PT="<All>"), IFERROR(GETPIVOTDATA("Organisation ID",Pivots!$V$42,"Provider Group",T2_PG1,$B13,H$8),0), IFERROR(GETPIVOTDATA("Organisation ID",Pivots!$AF$42,"Reporting provider type",T2_PT,$B13,H$8),0))) -> 62 | I13: =IF(T2_PG="<All providers>", IFERROR(GETPIVOTDATA("Organisation ID",Pivots!$V$42,$B13,I$8),0), IF(OR(ISBLANK(T2_PT),T2_PT="<All>"), IFERROR(GETPIVOTDATA("Organisation ID",Pivots!$V$42,"Provider Group",T2_PG1,$B13,I$8),0), IFERROR(GETPIVOTDATA("Organisation ID",Pivots!$AF$42,"Reporting provider type",T2_PT,$B13,I$8),0))) -> 13 | K13: =IF(ISERROR(100*F13/$D13),"-",100*F13/$D13) -> 6.790123457 | L13: =IF(ISERROR(100*G13/$D13),"-",100*G13/$D13) -> 46.91358025 | M13: =IF(ISERROR(100*H13/$D13),"-",100*H13/$D13) -> 38.27160494 | N13: =IF(ISERROR(100*I13/$D13),"-",100*I13/$D13) -> 8.024691358
B14: Personal development, behaviour and welfare | D14: 162 | F14: =IF(T2_PG="<All providers>", IFERROR(GETPIVOTDATA("Organisation ID",Pivots!$V$60,$B14,F$8),0), IF(OR(ISBLANK(T2_PT),T2_PT="<All>"), IFERROR(GETPIVOTDATA("Organisation ID",Pivots!$V$60,"Provider Group",T2_PG1,$B14,F$8),0), IFERROR(GETPIVOTDATA("Organisation ID",Pivots!$AF$60,"Reporting provider type",T2_PT,$B14,F$8),0))) -> 16 | G14: =IF(T2_PG="<All providers>", IFERROR(GETPIVOTDATA("Organisation ID",Pivots!$V$60,$B14,G$8),0), IF(OR(ISBLANK(T2_PT),T2_PT="<All>"), IFERROR(GETPIVOTDATA("Organisation ID",Pivots!$V$60,"Provider Group",T2_PG1,$B14,G$8),0), IFERROR(GETPIVOTDATA("Organisation ID",Pivots!$AF$60,"Reporting provider type",T2_PT,$B14,G$8),0))) -> 87 | H14: =IF(T2_PG="<All providers>", IFERROR(GETPIVOTDATA("Organisation ID",Pivots!$V$60,$B14,H$8),0), IF(OR(ISBLANK(T2_PT),T2_PT="<All>"), IFERROR(GETPIVOTDATA("Organisation ID",Pivots!$V$60,"Provider Group",T2_PG1,$B14,H$8),0), IFERROR(GETPIVOTDATA("Organisation ID",Pivots!$AF$60,"Reporting provider type",T2_PT,$B14,H$8),0))) -> 46 | I14: =IF(T2_PG="<All providers>", IFERROR(GETPIVOTDATA("Organisation ID",Pivots!$V$60,$B14,I$8),0), IF(OR(ISBLANK(T2_PT),T2_PT="<All>"), IFERROR(GETPIVOTDATA("Organisation ID",Pivots!$V$60,"Provider Group",T2_PG1,$B14,I$8),0), IFERROR(GETPIVOTDATA("Organisation ID",Pivots!$AF$60,"Reporting provider type",T2_PT,$B14,I$8),0))) -> 13 | K14: 9.87654321 | L14: 53.7037037 | M14: 28.39506173 | N14: 8.024691358
B15: Outcomes for learners | D15: 162 | F15: =IF(T2_PG="<All providers>", IFERROR(GETPIVOTDATA("Organisation ID",Pivots!$V$78,$B15,F$8),0), IF(OR(ISBLANK(T2_PT),T2_PT="<All>"), IFERROR(GETPIVOTDATA("Organisation ID",Pivots!$V$78,"Provider Group",T2_PG1,$B15,F$8),0), IFERROR(GETPIVOTDATA("Organisation ID",Pivots!$AF$78,"Reporting provider type",T2_PT,$B15,F$8),0))) -> 14 | G15: =IF(T2_PG="<All providers>", IFERROR(GETPIVOTDATA("Organisation ID",Pivots!$V$78,$B15,G$8),0), IF(OR(ISBLANK(T2_PT),T2_PT="<All>"), IFERROR(GETPIVOTDATA("Organisation ID",Pivots!$V$78,"Provider Group",T2_PG1,$B15,G$8),0), IFERROR(GETPIVOTDATA("Organisation ID",Pivots!$AF$78,"Reporting provider type",T2_PT,$B15,G$8),0))) -> 72 | H15: =IF(T2_PG="<All providers>", IFERROR(GETPIVOTDATA("Organisation ID",Pivots!$V$78,$B15,H$8),0), IF(OR(ISBLANK(T2_PT),T2_PT="<All>"), IFERROR(GETPIVOTDATA("Organisation ID",Pivots!$V$78,"Provider Group",T2_PG1,$B15,H$8),0), IFERROR(GETPIVOTDATA("Organisation ID",Pivots!$AF$78,"Reporting provider type",T2_PT,$B15,H$8),0))) -> 61 | I15: =IF(T2_PG="<All providers>", IFERROR(GETPIVOTDATA("Organisation ID",Pivots!$V$78,$B15,I$8),0), IF(OR(ISBLANK(T2_PT),T2_PT="<All>"), IFERROR(GETPIVOTDATA("Organisation ID",Pivots!$V$78,"Provider Group",T2_PG1,$B15,I$8),0), IFERROR(GETPIVOTDATA("Organisation ID",Pivots!$AF$78,"Reporting provider type",T2_PT,$B15,I$8),0))) -> 15 | K15: 8.641975309 | L15: 44.44444444 | M15: 37.65432099 | N15: 9.259259259
B16: 16 to 19 study programmes | D16: 84 | F16: =IF(T2_PG="<All providers>", IFERROR(GETPIVOTDATA("Organisation ID",Pivots!$V$96,$B16,F$8),0), IF(OR(ISBLANK(T2_PT),T2_PT="<All>"), IFERROR(GETPIVOTDATA("Organisation ID",Pivots!$V$96,"Provider Group",T2_PG1,$B16,F$8),0), IFERROR(GETPIVOTDATA("Organisation ID",Pivots!$AF$96,"Reporting provider type",T2_PT,$B16,F$8),0))) -> 7 | G16: =IF(T2_PG="<All providers>", IFERROR(GETPIVOTDATA("Organisation ID",Pivots!$V$96,$B16,G$8),0), IF(OR(ISBLANK(T2_PT),T2_PT="<All>"), IFERROR(GETPIVOTDATA("Organisation ID",Pivots!$V$96,"Provider Group",T2_PG1,$B16,G$8),0), IFERROR(GETPIVOTDATA("Organisation ID",Pivots!$AF$96,"Reporting provider type",T2_PT,$B16,G$8),0))) -> 29 | H16: =IF(T2_PG="<All providers>", IFERROR(GETPIVOTDATA("Organisation ID",Pivots!$V$96,$B16,H$8),0), IF(OR(ISBLANK(T2_PT),T2_PT="<All>"), IFERROR(GETPIVOTDATA("Organisation ID",Pivots!$V$96,"Provider Group",T2_PG1,$B16,H$8),0), IFERROR(GETPIVOTDATA("Organisation ID",Pivots!$AF$96,"Reporting provider type",T2_PT,$B16,H$8),0))) -> 39 | I16: =IF(T2_PG="<All providers>", IFERROR(GETPIVOTDATA("Organisation ID",Pivots!$V$96,$B16,I$8),0), IF(OR(ISBLANK(T2_PT),T2_PT="<All>"), IFERROR(GETPIVOTDATA("Organisation ID",Pivots!$V$96,"Provider Group",T2_PG1,$B16,I$8),0), IFERROR(GETPIVOTDATA("Organisation ID",Pivots!$AF$96,"Reporting provider type",T2_PT,$B16,I$8),0))) -> 9 | K16: =IF(ISERROR(100*F16/$D16),"-",100*F16/$D16) -> 8.333333333 | L16: =IF(ISERROR(100*G16/$D16),"-",100*G16/$D16) -> 34.52380952 | M16: =IF(ISERROR(100*H16/$D16),"-",100*H16/$D16) -> 46.42857143 | N16: =IF(ISERROR(100*I16/$D16),"-",100*I16/$D16) -> 10.71428571
B17: Adult learning programmes | D17: 60 | F17: =IF(T2_PG="<All providers>", IFERROR(GETPIVOTDATA("Organisation ID",Pivots!$V$114,$B17,F$8),0), IF(OR(ISBLANK(T2_PT),T2_PT="<All>"), IFERROR(GETPIVOTDATA("Organisation ID",Pivots!$V$114,"Provider Group",T2_PG1,$B17,F$8),0), IFERROR(GETPIVOTDATA("Organisation ID",Pivots!$AF$114,"Reporting provider type",T2_PT,$B17,F$8),0))) -> 2 | G17: =IF(T2_PG="<All providers>", IFERROR(GETPIVOTDATA("Organisation ID",Pivots!$V$114,$B17,G$8),0), IF(OR(ISBLANK(T2_PT),T2_PT="<All>"), IFERROR(GETPIVOTDATA("Organisation ID",Pivots!$V$114,"Provider Group",T2_PG1,$B17,G$8),0), IFERROR(GETPIVOTDATA("Organisation ID",Pivots!$AF$114,"Reporting provider type",T2_PT,$B17,G$8),0))) -> 29 | H17: =IF(T2_PG="<All providers>", IFERROR(GETPIVOTDATA("Organisation ID",Pivots!$V$114,$B17,H$8),0), IF(OR(ISBLANK(T2_PT),T2_PT="<All>"), IFERROR(GETPIVOTDATA("Organisation ID",Pivots!$V$114,"Provider Group",T2_PG1,$B17,H$8),0), IFERROR(GETPIVOTDATA("Organisation ID",Pivots!$AF$114,"Reporting provider type",T2_PT,$B17,H$8),0))) -> 24 | I17: =IF(T2_PG="<All providers>", IFERROR(GETPIVOTDATA("Organisation ID",Pivots!$V$114,$B17,I$8),0), IF(OR(ISBLANK(T2_PT),T2_PT="<All>"), IFERROR(GETPIVOTDATA("Organisation ID",Pivots!$V$114,"Provider Group",T2_PG1,$B17,I$8),0), IFERROR(GETPIVOTDATA("Organisation ID",Pivots!$AF$114,"Reporting provider type",T2_PT,$B17,I$8),0))) -> 5 | K17: 3.333333333 | L17: 48.33333333 | M17: 40 | N17: 8.333333333
B18: Apprenticeships | D18: 97 | F18: =IF(T2_PG="<All providers>", IFERROR(GETPIVOTDATA("Organisation ID",Pivots!$V$132,$B18,F$8),0), IF(OR(ISBLANK(T2_PT),T2_PT="<All>"), IFERROR(GETPIVOTDATA("Organisation ID",Pivots!$V$132,"Provider Group",T2_PG1,$B18,F$8),0), IFERROR(GETPIVOTDATA("Organisation ID",Pivots!$AF$132,"Reporting provider type",T2_PT,$B18,F$8),0))) -> 4 | G18: =IF(T2_PG="<All providers>", IFERROR(GETPIVOTDATA("Organisation ID",Pivots!$V$132,$B18,G$8),0), IF(OR(ISBLANK(T2_PT),T2_PT="<All>"), IFERROR(GETPIVOTDATA("Organisation ID",Pivots!$V$132,"Provider Group",T2_PG1,$B18,G$8),0), IFERROR(GETPIVOTDATA("Organisation ID",Pivots!$AF$132,"Reporting provider type",T2_PT,$B18,G$8),0))) -> 46 | H18: =IF(T2_PG="<All providers>", IFERROR(GETPIVOTDATA("Organisation ID",Pivots!$V$132,$B18,H$8),0), IF(OR(ISBLANK(T2_PT),T2_PT="<All>"), IFERROR(GETPIVOTDATA("Organisation ID",Pivots!$V$132,"Provider Group",T2_PG1,$B18,H$8),0), IFERROR(GETPIVOTDATA("Organisation ID",Pivots!$AF$132,"Reporting provider type",T2_PT,$B18,H$8),0))) -> 37 | I18: =IF(T2_PG="<All providers>", IFERROR(GETPIVOTDATA("Organisation ID",Pivots!$V$132,$B18,I$8),0), IF(OR(ISBLANK(T2_PT),T2_PT="<All>"), IFERROR(GETPIVOTDATA("Organisation ID",Pivots!$V$132,"Provider Group",T2_PG1,$B18,I$8),0), IFERROR(GETPIVOTDATA("Organisation ID",Pivots!$AF$132,"Reporting provider type",T2_PT,$B18,I$8),0))) -> 10 | K18: 4.12371134 | L18: 47.42268041 | M18: 38.1443299 | N18: 10.30927835
B19: Traineeships | D19: 9 | F19: =IF(T2_PG="<All providers>", IFERROR(GETPIVOTDATA("Organisation ID",Pivots!$V$150,$B19,F$8),0), IF(OR(ISBLANK(T2_PT),T2_PT="<All>"), IFERROR(GETPIVOTDATA("Organisation ID",Pivots!$V$150,"Provider Group",T2_PG1,$B19,F$8),0), IFERROR(GETPIVOTDATA("Organisation ID",Pivots!$AF$150,"Reporting provider type",T2_PT,$B19,F$8),0))) -> 0 | G19: =IF(T2_PG="<All providers>", IFERROR(GETPIVOTDATA("Organisation ID",Pivots!$V$150,$B19,G$8),0), IF(OR(ISBLANK(T2_PT),T2_PT="<All>"), IFERROR(GETPIVOTDATA("Organisation ID",Pivots!$V$150,"Provider Group",T2_PG1,$B19,G$8),0), IFERROR(GETPIVOTDATA("Organisation ID",Pivots!$AF$150,"Reporting provider type",T2_PT,$B19,G$8),0))) -> 6 | H19: =IF(T2_PG="<All providers>", IFERROR(GETPIVOTDATA("Organisation ID",Pivots!$V$150,$B19,H$8),0), IF(OR(ISBLANK(T2_PT),T2_PT="<All>"), IFERROR(GETPIVOTDATA("Organisation ID",Pivots!$V$150,"Provider Group",T2_PG1,$B19,H$8),0), IFERROR(GETPIVOTDATA("Organisation ID",Pivots!$AF$150,"Reporting provider type",T2_PT,$B19,H$8),0))) -> 3 | I19: =IF(T2_PG="<All providers>", IFERROR(GETPIVOTDATA("Organisation ID",Pivots!$V$150,$B19,I$8),0), IF(OR(ISBLANK(T2_PT),T2_PT="<All>"), IFERROR(GETPIVOTDATA("Organisation ID",Pivots!$V$150,"Provider Group",T2_PG1,$B19,I$8),0), IFERROR(GETPIVOTDATA("Organisation ID",Pivots!$AF$150,"Reporting provider type",T2_PT,$B19,I$8),0))) -> 0 | K19: 0 | L19: 66.66666667 | M19: 33.33333333 | N19: 0
B20: Provision for learners with high needs | D20: 41 | F20: =IF(T2_PG="<All providers>", IFERROR(GETPIVOTDATA("Organisation ID",Pivots!$V$168,$B20,F$8),0), IF(OR(ISBLANK(T2_PT),T2_PT="<All>"), IFERROR(GETPIVOTDATA("Organisation ID",Pivots!$V$168,"Provider Group",T2_PG1,$B20,F$8),0), IFERROR(GETPIVOTDATA("Organisation ID",Pivots!$AF$168,"Reporting provider type",T2_PT,$B20,F$8),0))) -> 3 | G20: =IF(T2_PG="<All providers>", IFERROR(GETPIVOTDATA("Organisation ID",Pivots!$V$168,$B20,G$8),0), IF(OR(ISBLANK(T2_PT),T2_PT="<All>"), IFERROR(GETPIVOTDATA("Organisation ID",Pivots!$V$168,"Provider Group",T2_PG1,$B20,G$8),0), IFERROR(GETPIVOTDATA("Organisation ID",Pivots!$AF$168,"Reporting provider type",T2_PT,$B20,G$8),0))) -> 25 | H20: =IF(T2_PG="<All providers>", IFERROR(GETPIVOTDATA("Organisation ID",Pivots!$V$168,$B20,H$8),0), IF(OR(ISBLANK(T2_PT),T2_PT="<All>"), IFERROR(GETPIVOTDATA("Organisation ID",Pivots!$V$168,"Provider Group",T2_PG1,$B20,H$8),0), IFERROR(GETPIVOTDATA("Organisation ID",Pivots!$AF$168,"Reporting provider type",T2_PT,$B20,H$8),0))) -> 10 | I20: =IF(T2_PG="<All providers>", IFERROR(GETPIVOTDATA("Organisation ID",Pivots!$V$168,$B20,I$8),0), IF(OR(ISBLANK(T2_PT),T2_PT="<All>"), IFERROR(GETPIVOTDATA("Organisation ID",Pivots!$V$168,"Provider Group",T2_PG1,$B20,I$8),0), IFERROR(GETPIVOTDATA("Organisation ID",Pivots!$AF$168,"Reporting provider type",T2_PT,$B20,I$8),0))) -> 3 | K20: 7.317073171 | L20: 60.97560976 | M20: 24.3902439 | N20: 7.317073171
B21: Full-time provision for 14 to 16-year-olds | D21: 3 | F21: =IF(T2_PG="<All providers>", IFERROR(GETPIVOTDATA("Organisation ID",Pivots!$V$186,$B21,F$8),0), IF(OR(ISBLANK(T2_PT),T2_PT="<All>"), IFERROR(GETPIVOTDATA("Organisation ID",Pivots!$V$186,"Provider Group",T2_PG1,$B21,F$8),0), IFERROR(GETPIVOTDATA("Organisation ID",Pivots!$AF$186,"Reporting provider type",T2_PT,$B21,F$8),0))) -> 0 | G21: =IF(T2_PG="<All providers>", IFERROR(GETPIVOTDATA("Organisation ID",Pivots!$V$186,$B21,G$8),0), IF(OR(ISBLANK(T2_PT),T2_PT="<All>"), IFERROR(GETPIVOTDATA("Organisation ID",Pivots!$V$186,"Provider Group",T2_PG1,$B21,G$8),0), IFERROR(GETPIVOTDATA("Organisation ID",Pivots!$AF$186,"Reporting provider type",T2_PT,$B21,G$8),0))) -> 3 | H21: =IF(T2_PG="<All providers>", IFERROR(GETPIVOTDATA("Organisation ID",Pivots!$V$186,$B21,H$8),0), IF(OR(ISBLANK(T2_PT),T2_PT="<All>"), IFERROR(GETPIVOTDATA("Organisation ID",Pivots!$V$186,"Provider Group",T2_PG1,$B21,H$8),0), IFERROR(GETPIVOTDATA("Organisation ID",Pivots!$AF$186,"Reporting provider type",T2_PT,$B21,H$8),0))) -> 0 | I21: =IF(T2_PG="<All providers>", IFERROR(GETPIVOTDATA("Organisation ID",Pivots!$V$186,$B21,I$8),0), IF(OR(ISBLANK(T2_PT),T2_PT="<All>"), IFERROR(GETPIVOTDATA("Organisation ID",Pivots!$V$186,"Provider Group",T2_PG1,$B21,I$8),0), IFERROR(GETPIVOTDATA("Organisation ID",Pivots!$AF$186,"Reporting provider type",T2_PT,$B21,I$8),0))) -> 0 | K21: 0 | L21: 100 | M21: 0 | N21: 0
N22: Source: Ofsted inspection data
B23: 1. See 'notes' tab for a description of which providers are included in each group.
B24: 2. Percentages are rounded and may not add to 100. Where the number of inspections is small, percentages should be treated with caution.

Sheet T3a Prison outcomes
B2: Table 3a: Inspection outcomes of prisons and young offender institutions, by judgement
B3: ="Reports published between "&Reporting_Period -> Reports published between 1 September 2016 to 28 February 2017
E4: 1 | F4: 2 | G4: 3 | H4: 4
C5: Total number inspected | E5: Number of inspections | J5: Percentage of inspections
E6: Outstanding | F6: Good | G6: Requires improvement | H6: Inadequate | J6: Outstanding | K6: Good | L6: Requires improvement | M6: Inadequate
A7: Overall effectiveness of learning and skills and work activities | B7: Overall effectiveness of learning and skills and work activities (overall effectiveness) | C7: 21 | E7: 1 | F7: 13 | G7: 7 | H7: 0 | J7: =(E7/$C7)*100 -> 4.761904762 | K7: =(F7/$C7)*100 -> 61.9047619 | L7: 33.33333333 | M7: 0
A8: Effectiveness of the leadership and management of learning and skills and work activities | B8: Effectiveness of the leadership and management of learning and skills and work activities (effectiveness of leadership and management) | C8: 21 | E8: 1 | F8: 12 | G8: 8 | H8: 0 | J8: =(E8/$C8)*100 -> 4.761904762 | K8: =(F8/$C8)*100 -> 57.14285714 | L8: =(G8/$C8)*100 -> 38.0952381 | M8: =(H8/$C8)*100 -> 0
A9: Quality of learning and skills and work activities including the quality of teaching, learning and assessment | B9: Quality of learning and skills and work activities, including the quality of teaching, training, learning and assessment (quality of teaching, learning and assessment) | C9: 21 | E9: 3 | F9: 14 | G9: 4 | H9: 0 | J9: 14.28571429 | K9: 66.66666667 | L9: 19.04761905 | M9: 0
A10: Personal development & behaviour | B10: Personal development and behaviour (personal development, behaviour and welfare) | C10: 21 | E10: 2 | F10: 11 | G10: 8 | H10: 0 | J10: 9.523809524 | K10: 52.38095238 | L10: 38.0952381 | M10: 0
A11: Outcomes for prisoners engaged in learning and skills and work activities | B11: Outcomes for prisoners engaged in learning and skills and work activities (outcomes for learners) | C11: 21 | E11: 2 | F11: 15 | G11: 4 | H11: 0 | J11: 9.523809524 | K11: 71.42857143 | L11: 19.04761905 | M11: 0
A12: Offender Learning and Skills Service | B12: Judgement on the quality of the Offender Learning and Skills Service (OLASS) provision | C12: 20 | E12: 3 | F12: 14 | G12: 3 | H12: 0 | J12: 15 | K12: 70 | L12: 15 | M12: 0
A13: National Careers Service | B13: Judgement on the quality of the National Career Service (NCS) provision | C13: 20 | E13: 1 | F13: 14 | G13: 4 | H13: 1 | J13: =(E13/$C13)*100 -> 5 | K13: =(F13/$C13)*100 -> 70 | L13: =(G13/$C13)*100 -> 20 | M13: =(H13/$C13)*100 -> 5
F14: Source: Ofsted inspection data and Her Majesty's Inspectorate of Prisons (HMIP)
B15: 1. Approximate equivalent judgement in the Common Inspection Framework for further education and skills is shown in brackets.
B16: 2. Percentages are rounded and may not add to 100. Where the number of inspections is small, percentages should be treated with caution.

Sheet T4 Most recent outcomes
B2: Table 4: Most recent overall effectiveness of further education and skills providers
B3: ="As at "&Inspections_To -> As at 28 February 2017
F5: Inspection judgement: | H5: Overall effectiveness
I6: 1 | J6: 2 | K6: 3 | L6: 4
D7: Total number of open and funded providers | F7: Number of providers that have not yet been inspected | H7: Number of providers with an inspection judgement | N7: Percentage of providers with an inspection judgement
H8: Total | I8: Outstanding | J8: Good | K8: Requires improvement / satisfactory8 | L8: Inadequate | N8: Outstanding | O8: Good | P8: Requires improvement / satisfactory8 | Q8: Inadequate
B9: All further education and skills providers1 | D9: =GETPIVOTDATA("Organisation ID",Pivots!$CM$5) -> 1198 | F9: =D9-H9 -> 129 | H9: =SUM(H10:H17) -> 1069 | I9: =SUM(I10:I17) -> 160 | J9: =SUM(J10:J17) -> 697 | K9: =SUM(K10:K17) -> 182 | L9: =SUM(L10:L17) -> 30 | N9: =IFERROR(I9/$H9*100,0) -> 14.96725912 | O9: =IFERROR(J9/$H9*100,0) -> 65.20112254 | P9: 17.02525725 | Q9: 2.806361085
A10: Colleges | B10: Colleges2 | D10: =GETPIVOTDATA("Organisation ID",Pivots!$CM$5,"Provider Group",$A10) -> 312 | F10: =D10-H10 -> 2 | H10: =IF($H$5=Pivots!$C$171,GETPIVOTDATA("Organisation ID",Pivots!$CM$21,"Provider Group",$A10), IF($H$5=Pivots!$C$172,GETPIVOTDATA("URN",Pivots!$CM$39,"Provider Group",$A10), IF($H$5=Pivots!$C$174,GETPIVOTDATA("URN",Pivots!$CM$57,"Provider Group",$A10), IF($H$5=Pivots!$C$173,GETPIVOTDATA("URN",Pivots!$CM$75,"Provider Group",$A10), IF($H$5=Pivots!$C$175,GETPIVOTDATA("URN",Pivots!$CM$93,"Provider Group",$A10), IF($H$5=Pivots!$C$176,GETPIVOTDATA("URN",Pivots!$CM$111,"Provider Group",$A10), IF($H$5=Pivots!$C$177,GETPIVOTDATA("URN",Pivots!$CM$129,"Provider Group",$A10), IF($H$5=Pivots!$C$178,GETPIVOTDATA("URN",Pivots!$CM$147,"Provider Group",$A10), IF($H$5=Pivots!$C$179,GETPIVOTDATA("URN",Pivots!$CM$165,"Provider Group",$A10), IF($H$5=Pivots!$C$180,GETPIVOTDATA("URN",Pivots!$CM$183,"Provider Group",$A10), IF($H$5=Pivots!$C$181,GETPIVOTDATA("URN",Pivots!$CM$201,"Provider Group",$A10),0))))))))))) -> 310 | I10: =IF($H$5=Pivots!$C$171,GETPIVOTDATA("Organisation ID",Pivots!$CM$21,"Provider Group",$A10,"Overall effectiveness",I$6), IF($H$5=Pivots!$C$172,GETPIVOTDATA("URN",Pivots!$CM$39,"Provider Group",$A10,"Effectiveness of leadership and management",I$6), IF($H$5=Pivots!$C$174,GETPIVOTDATA("URN",Pivots!$CM$57,"Provider Group",$A10,"Personal development, behaviour and welfare",I$6), IF($H$5=Pivots!$C$173,GETPIVOTDATA("URN",Pivots!$CM$75,"Provider Group",$A10,"Quality of teaching, learning and assessment",I$6), IF($H$5=Pivots!$C$175,GETPIVOTDATA("URN",Pivots!$CM$93,"Provider Group",$A10,"Outcomes for learners",I$6), ))))) -> 62 | J10: =IF($H$5=Pivots!$C$171,GETPIVOTDATA("Organisation ID",Pivots!$CM$21,"Provider Group",$A10,"Overall effectiveness",J$6), IF($H$5=Pivots!$C$172,GETPIVOTDATA("URN",Pivots!$CM$39,"Provider Group",$A10,"Effectiveness of leadership and management",J$6), IF($H$5=Pivots!$C$174,GETPIVOTDATA("URN",Pivots!$CM$57,"Provider Group",$A10,"Personal development, behaviour and welfare",J$6), IF($H$5=Pivots!$C$173,GETPIVOTDATA("URN",Pivots!$CM$75,"Provider Group",$A10,"Quality of teaching, learning and assessment",J$6), IF($H$5=Pivots!$C$175,GETPIVOTDATA("URN",Pivots!$CM$93,"Provider Group",$A10,"Outcomes for learners",J$6), ))))) -> 167 | K10: =IF($H$5=Pivots!$C$171,GETPIVOTDATA("Organisation ID",Pivots!$CM$21,"Provider Group",$A10,"Overall effectiveness",K$6), IF($H$5=Pivots!$C$172,GETPIVOTDATA("URN",Pivots!$CM$39,"Provider Group",$A10,"Effectiveness of leadership and management",K$6), IF($H$5=Pivots!$C$174,GETPIVOTDATA("URN",Pivots!$CM$57,"Provider Group",$A10,"Personal development, behaviour and welfare",K$6), IF($H$5=Pivots!$C$173,GETPIVOTDATA("URN",Pivots!$CM$75,"Provider Group",$A10,"Quality of teaching, learning and assessment",K$6), IF($H$5=Pivots!$C$175,GETPIVOTDATA("URN",Pivots!$CM$93,"Provider Group",$A10,"Outcomes for learners",K$6), ))))) -> 68 | L10: =IF($H$5=Pivots!$C$171,GETPIVOTDATA("Organisation ID",Pivots!$CM$21,"Provider Group",$A10,"Overall effectiveness",L$6), IF($H$5=Pivots!$C$172,GETPIVOTDATA("URN",Pivots!$CM$39,"Provider Group",$A10,"Effectiveness of leadership and management",L$6), IF($H$5=Pivots!$C$174,GETPIVOTDATA("URN",Pivots!$CM$57,"Provider Group",$A10,"Personal development, behaviour and welfare",L$6), IF($H$5=Pivots!$C$173,GETPIVOTDATA("URN",Pivots!$CM$75,"Provider Group",$A10,"Quality of teaching, learning and assessment",L$6), IF($H$5=Pivots!$C$175,GETPIVOTDATA("URN",Pivots!$CM$93,"Provider Group",$A10,"Outcomes for learners",L$6), ))))) -> 13 | N10: 20 | O10: 53.87096774 | P10: 21.93548387 | Q10: 4.193548387
A11: Independent specialist colleges | B11: Independent specialist colleges | D11: =GETPIVOTDATA("Organisation ID",Pivots!$CM$5,"Provider Group",$A11) -> 70 | F11: 10 | H11: =IF($H$5=Pivots!$C$171,GETPIVOTDATA("Organisation ID",Pivots!$CM$21,"Provider Group",$A11), IF($H$5=Pivots!$C$172,GETPIVOTDATA("URN",Pivots!$CM$39,"Provider Group",$A11), IF($H$5=Pivots!$C$174,GETPIVOTDATA("URN",Pivots!$CM$57,"Provider Group",$A11), IF($H$5=Pivots!$C$173,GETPIVOTDATA("URN",Pivots!$CM$75,"Provider Group",$A11), IF($H$5=Pivots!$C$175,GETPIVOTDATA("URN",Pivots!$CM$93,"Provider Group",$A11), IF($H$5=Pivots!$C$176,GETPIVOTDATA("URN",Pivots!$CM$111,"Provider Group",$A11), IF($H$5=Pivots!$C$177,GETPIVOTDATA("URN",Pivots!$CM$129,"Provider Group",$A11), IF($H$5=Pivots!$C$178,GETPIVOTDATA("URN",Pivots!$CM$147,"Provider Group",$A11), IF($H$5=Pivots!$C$179,GETPIVOTDATA("URN",Pivots!$CM$165,"Provider Group",$A11), IF($H$5=Pivots!$C$180,GETPIVOTDATA("URN",Pivots!$CM$183,"Provider Group",$A11), IF($H$5=Pivots!$C$181,GETPIVOTDATA("URN",Pivots!$CM$201,"Provider Group",$A11),0))))))))))) -> 60 | I11: =IF($H$5=Pivots!$C$171,GETPIVOTDATA("Organisation ID",Pivots!$CM$21,"Provider Group",$A11,"Overall effectiveness",I$6), IF($H$5=Pivots!$C$172,GETPIVOTDATA("URN",Pivots!$CM$39,"Provider Group",$A11,"Effectiveness of leadership and management",I$6), IF($H$5=Pivots!$C$174,GETPIVOTDATA("URN",Pivots!$CM$57,"Provider Group",$A11,"Personal development, behaviour and welfare",I$6), IF($H$5=Pivots!$C$173,GETPIVOTDATA("URN",Pivots!$CM$75,"Provider Group",$A11,"Quality of teaching, learning and assessment",I$6), IF($H$5=Pivots!$C$175,GETPIVOTDATA("URN",Pivots!$CM$93,"Provider Group",$A11,"Outcomes for learners",I$6), ))))) -> 6 | J11: =IF($H$5=Pivots!$C$171,GETPIVOTDATA("Organisation ID",Pivots!$CM$21,"Provider Group",$A11,"Overall effectiveness",J$6), IF($H$5=Pivots!$C$172,GETPIVOTDATA("URN",Pivots!$CM$39,"Provider Group",$A11,"Effectiveness of leadership and management",J$6), IF($H$5=Pivots!$C$174,GETPIVOTDATA("URN",Pivots!$CM$57,"Provider Group",$A11,"Personal development, behaviour and welfare",J$6), IF($H$5=Pivots!$C$173,GETPIVOTDATA("URN",Pivots!$CM$75,"Provider Group",$A11,"Quality of teaching, learning and assessment",J$6), IF($H$5=Pivots!$C$175,GETPIVOTDATA("URN",Pivots!$CM$93,"Provider Group",$A11,"Outcomes for learners",J$6), ))))) -> 43 | K11: =IF($H$5=Pivots!$C$171,GETPIVOTDATA("Organisation ID",Pivots!$CM$21,"Provider Group",$A11,"Overall effectiveness",K$6), IF($H$5=Pivots!$C$172,GETPIVOTDATA("URN",Pivots!$CM$39,"Provider Group",$A11,"Effectiveness of leadership and management",K$6), IF($H$5=Pivots!$C$174,GETPIVOTDATA("URN",Pivots!$CM$57,"Provider Group",$A11,"Personal development, behaviour and welfare",K$6), IF($H$5=Pivots!$C$173,GETPIVOTDATA("URN",Pivots!$CM$75,"Provider Group",$A11,"Quality of teaching, learning and assessment",K$6), IF($H$5=Pivots!$C$175,GETPIVOTDATA("URN",Pivots!$CM$93,"Provider Group",$A11,"Outcomes for learners",K$6), ))))) -> 10 | L11: =IF($H$5=Pivots!$C$171,GETPIVOTDATA("Organisation ID",Pivots!$CM$21,"Provider Group",$A11,"Overall effectiveness",L$6), IF($H$5=Pivots!$C$172,GETPIVOTDATA("URN",Pivots!$CM$39,"Provider Group",$A11,"Effectiveness of leadership and management",L$6), IF($H$5=Pivots!$C$174,GETPIVOTDATA("URN",Pivots!$CM$57,"Provider Group",$A11,"Personal development, behaviour and welfare",L$6), IF($H$5=Pivots!$C$173,GETPIVOTDATA("URN",Pivots!$CM$75,"Provider Group",$A11,"Quality of teaching, learning and assessment",L$6), IF($H$5=Pivots!$C$175,GETPIVOTDATA("URN",Pivots!$CM$93,"Provider Group",$A11,"Outcomes for learners",L$6), ))))) -> 1 | N11: 10 | O11: 71.66666667 | P11: 16.66666667 | Q11: 1.666666667
A12: Independent learning providers (including employer providers) | B12: Independent learning providers3 | D12: =GETPIVOTDATA("Organisation ID",Pivots!$CM$5,"Provider Group",$A12) -> 506 | F12: 100 | H12: =IF($H$5=Pivots!$C$171,GETPIVOTDATA("Organisation ID",Pivots!$CM$21,"Provider Group",$A12), IF($H$5=Pivots!$C$172,GETPIVOTDATA("URN",Pivots!$CM$39,"Provider Group",$A12), IF($H$5=Pivots!$C$174,GETPIVOTDATA("URN",Pivots!$CM$57,"Provider Group",$A12), IF($H$5=Pivots!$C$173,GETPIVOTDATA("URN",Pivots!$CM$75,"Provider Group",$A12), IF($H$5=Pivots!$C$175,GETPIVOTDATA("URN",Pivots!$CM$93,"Provider Group",$A12), IF($H$5=Pivots!$C$176,GETPIVOTDATA("URN",Pivots!$CM$111,"Provider Group",$A12), IF($H$5=Pivots!$C$177,GETPIVOTDATA("URN",Pivots!$CM$129,"Provider Group",$A12), IF($H$5=Pivots!$C$178,GETPIVOTDATA("URN",Pivots!$CM$147,"Provider Group",$A12), IF($H$5=Pivots!$C$179,GETPIVOTDATA("URN",Pivots!$CM$165,"Provider Group",$A12), IF($H$5=Pivots!$C$180,GETPIVOTDATA("URN",Pivots!$CM$183,"Provider Group",$A12), IF($H$5=Pivots!$C$181,GETPIVOTDATA("URN",Pivots!$CM$201,"Provider Group",$A12),0))))))))))) -> 406 | I12: =IF($H$5=Pivots!$C$171,GETPIVOTDATA("Organisation ID",Pivots!$CM$21,"Provider Group",$A12,"Overall effectiveness",I$6), IF($H$5=Pivots!$C$172,GETPIVOTDATA("URN",Pivots!$CM$39,"Provider Group",$A12,"Effectiveness of leadership and management",I$6), IF($H$5=Pivots!$C$174,GETPIVOTDATA("URN",Pivots!$CM$57,"Provider Group",$A12,"Personal development, behaviour and welfare",I$6), IF($H$5=Pivots!$C$173,GETPIVOTDATA("URN",Pivots!$CM$75,"Provider Group",$A12,"Quality of teaching, learning and assessment",I$6), IF($H$5=Pivots!$C$175,GETPIVOTDATA("URN",Pivots!$CM$93,"Provider Group",$A12,"Outcomes for learners",I$6), ))))) -> 49 | J12: =IF($H$5=Pivots!$C$171,GETPIVOTDATA("Organisation ID",Pivots!$CM$21,"Provider Group",$A12,"Overall effectiveness",J$6), IF($H$5=Pivots!$C$172,GETPIVOTDATA("URN",Pivots!$CM$39,"Provider Group",$A12,"Effectiveness of leadership and management",J$6), IF($H$5=Pivots!$C$174,GETPIVOTDATA("URN",Pivots!$CM$57,"Provider Group",$A12,"Personal development, behaviour and welfare",J$6), IF($H$5=Pivots!$C$173,GETPIVOTDATA("URN",Pivots!$CM$75,"Provider Group",$A12,"Quality of teaching, learning and assessment",J$6), IF($H$5=Pivots!$C$175,GETPIVOTDATA("URN",Pivots!$CM$93,"Provider Group",$A12,"Outcomes for learners",J$6), ))))) -> 283 | K12: =IF($H$5=Pivots!$C$171,GETPIVOTDATA("Organisation ID",Pivots!$CM$21,"Provider Group",$A12,"Overall effectiveness",K$6), IF($H$5=Pivots!$C$172,GETPIVOTDATA("URN",Pivots!$CM$39,"Provider Group",$A12,"Effectiveness of leadership and management",K$6), IF($H$5=Pivots!$C$174,GETPIVOTDATA("URN",Pivots!$CM$57,"Provider Group",$A12,"Personal development, behaviour and welfare",K$6), IF($H$5=Pivots!$C$173,GETPIVOTDATA("URN",Pivots!$CM$75,"Provider Group",$A12,"Quality of teaching, learning and assessment",K$6), IF($H$5=Pivots!$C$175,GETPIVOTDATA("URN",Pivots!$CM$93,"Provider Group",$A12,"Outcomes for learners",K$6), ))))) -> 63 | L12: =IF($H$5=Pivots!$C$171,GETPIVOTDATA("Organisation ID",Pivots!$CM$21,"Provider Group",$A12,"Overall effectiveness",L$6), IF($H$5=Pivots!$C$172,GETPIVOTDATA("URN",Pivots!$CM$39,"Provider Group",$A12,"Effectiveness of leadership and management",L$6), IF($H$5=Pivots!$C$174,GETPIVOTDATA("URN",Pivots!$CM$57,"Provider Group",$A12,"Personal development, behaviour and welfare",L$6), IF($H$5=Pivots!$C$173,GETPIVOTDATA("URN",Pivots!$CM$75,"Provider Group",$A12,"Quality of teaching, learning and assessment",L$6), IF($H$5=Pivots!$C$175,GETPIVOTDATA("URN",Pivots!$CM$93,"Provider Group",$A12,"Outcomes for learners",L$6), ))))) -> 11 | N12: 12.06896552 | O12: 69.7044335 | P12: 15.51724138 | Q12: 2.709359606
A13: Community learning and skills providers | B13: Community learning and skills providers4 | D13: =GETPIVOTDATA("Organisation ID",Pivots!$CM$5,"Provider Group",$A13) -> 228 | F13: 2 | H13: =IF($H$5=Pivots!$C$171,GETPIVOTDATA("Organisation ID",Pivots!$CM$21,"Provider Group",$A13), IF($H$5=Pivots!$C$172,GETPIVOTDATA("URN",Pivots!$CM$39,"Provider Group",$A13), IF($H$5=Pivots!$C$174,GETPIVOTDATA("URN",Pivots!$CM$57,"Provider Group",$A13), IF($H$5=Pivots!$C$173,GETPIVOTDATA("URN",Pivots!$CM$75,"Provider Group",$A13), IF($H$5=Pivots!$C$175,GETPIVOTDATA("URN",Pivots!$CM$93,"Provider Group",$A13), IF($H$5=Pivots!$C$176,GETPIVOTDATA("URN",Pivots!$CM$111,"Provider Group",$A13), IF($H$5=Pivots!$C$177,GETPIVOTDATA("URN",Pivots!$CM$129,"Provider Group",$A13), IF($H$5=Pivots!$C$178,GETPIVOTDATA("URN",Pivots!$CM$147,"Provider Group",$A13), IF($H$5=Pivots!$C$179,GETPIVOTDATA("URN",Pivots!$CM$165,"Provider Group",$A13), IF($H$5=Pivots!$C$180,GETPIVOTDATA("URN",Pivots!$CM$183,"Provider Group",$A13), IF($H$5=Pivots!$C$181,GETPIVOTDATA("URN",Pivots!$CM$201,"Provider Group",$A13),0))))))))))) -> 226 | I13: =IF($H$5=Pivots!$C$171,GETPIVOTDATA("Organisation ID",Pivots!$CM$21,"Provider Group",$A13,"Overall effectiveness",I$6), IF($H$5=Pivots!$C$172,GETPIVOTDATA("URN",Pivots!$CM$39,"Provider Group",$A13,"Effectiveness of leadership and management",I$6), IF($H$5=Pivots!$C$174,GETPIVOTDATA("URN",Pivots!$CM$57,"Provider Group",$A13,"Personal development, behaviour and welfare",I$6), IF($H$5=Pivots!$C$173,GETPIVOTDATA("URN",Pivots!$CM$75,"Provider Group",$A13,"Quality of teaching, learning and assessment",I$6), IF($H$5=Pivots!$C$175,GETPIVOTDATA("URN",Pivots!$CM$93,"Provider Group",$A13,"Outcomes for learners",I$6), ))))) -> 14 | J13: =IF($H$5=Pivots!$C$171,GETPIVOTDATA("Organisation ID",Pivots!$CM$21,"Provider Group",$A13,"Overall effectiveness",J$6), IF($H$5=Pivots!$C$172,GETPIVOTDATA("URN",Pivots!$CM$39,"Provider Group",$A13,"Effectiveness of leadership and management",J$6), IF($H$5=Pivots!$C$174,GETPIVOTDATA("URN",Pivots!$CM$57,"Provider Group",$A13,"Personal development, behaviour and welfare",J$6), IF($H$5=Pivots!$C$173,GETPIVOTDATA("URN",Pivots!$CM$75,"Provider Group",$A13,"Quality of teaching, learning and assessment",J$6), IF($H$5=Pivots!$C$175,GETPIVOTDATA("URN",Pivots!$CM$93,"Provider Group",$A13,"Outcomes for learners",J$6), ))))) -> 174 | K13: =IF($H$5=Pivots!$C$171,GETPIVOTDATA("Organisation ID",Pivots!$CM$21,"Provider Group",$A13,"Overall effectiveness",K$6), IF($H$5=Pivots!$C$172,GETPIVOTDATA("URN",Pivots!$CM$39,"Provider Group",$A13,"Effectiveness of leadership and management",K$6), IF($H$5=Pivots!$C$174,GETPIVOTDATA("URN",Pivots!$CM$57,"Provider Group",$A13,"Personal development, behaviour and welfare",K$6), IF($H$5=Pivots!$C$173,GETPIVOTDATA("URN",Pivots!$CM$75,"Provider Group",$A13,"Quality of teaching, learning and assessment",K$6), IF($H$5=Pivots!$C$175,GETPIVOTDATA("URN",Pivots!$CM$93,"Provider Group",$A13,"Outcomes for learners",K$6), ))))) -> 35 | L13: =IF($H$5=Pivots!$C$171,GETPIVOTDATA("Organisation ID",Pivots!$CM$21,"Provider Group",$A13,"Overall effectiveness",L$6), IF($H$5=Pivots!$C$172,GETPIVOTDATA("URN",Pivots!$CM$39,"Provider Group",$A13,"Effectiveness of leadership and management",L$6), IF($H$5=Pivots!$C$174,GETPIVOTDATA("URN",Pivots!$CM$57,"Provider Group",$A13,"Personal development, behaviour and welfare",L$6), IF($H$5=Pivots!$C$173,GETPIVOTDATA("URN",Pivots!$CM$75,"Provider Group",$A13,"Quality of teaching, learning and assessment",L$6), IF($H$5=Pivots!$C$175,GETPIVOTDATA("URN",Pivots!$CM$93,"Provider Group",$A13,"Outcomes for learners",L$6), ))))) -> 3 | N13: 6.194690265 | O13: 76.99115044 | P13: 15.48672566 | Q13: 1.327433628
A14: 16-19 academies | B14: 16-19 academies5 | D14: =GETPIVOTDATA("Organisation ID",Pivots!$CM$5,"Provider Group",$A14) -> 24 | F14: 9 | H14: =IF($H$5=Pivots!$C$171,GETPIVOTDATA("Organisation ID",Pivots!$CM$21,"Provider Group",$A14), IF($H$5=Pivots!$C$172,GETPIVOTDATA("URN",Pivots!$CM$39,"Provider Group",$A14), IF($H$5=Pivots!$C$174,GETPIVOTDATA("URN",Pivots!$CM$57,"Provider Group",$A14), IF($H$5=Pivots!$C$173,GETPIVOTDATA("URN",Pivots!$CM$75,"Provider Group",$A14), IF($H$5=Pivots!$C$175,GETPIVOTDATA("URN",Pivots!$CM$93,"Provider Group",$A14), IF($H$5=Pivots!$C$176,GETPIVOTDATA("URN",Pivots!$CM$111,"Provider Group",$A14), IF($H$5=Pivots!$C$177,GETPIVOTDATA("URN",Pivots!$CM$129,"Provider Group",$A14), IF($H$5=Pivots!$C$178,GETPIVOTDATA("URN",Pivots!$CM$147,"Provider Group",$A14), IF($H$5=Pivots!$C$179,GETPIVOTDATA("URN",Pivots!$CM$165,"Provider Group",$A14), IF($H$5=Pivots!$C$180,GETPIVOTDATA("URN",Pivots!$CM$183,"Provider Group",$A14), IF($H$5=Pivots!$C$181,GETPIVOTDATA("URN",Pivots!$CM$201,"Provider Group",$A14),0))))))))))) -> 15 | I14: =IF($H$5=Pivots!$C$171,GETPIVOTDATA("Organisation ID",Pivots!$CM$21,"Provider Group",$A14,"Overall effectiveness",I$6), IF($H$5=Pivots!$C$172,GETPIVOTDATA("URN",Pivots!$CM$39,"Provider Group",$A14,"Effectiveness of leadership and management",I$6), IF($H$5=Pivots!$C$174,GETPIVOTDATA("URN",Pivots!$CM$57,"Provider Group",$A14,"Personal development, behaviour and welfare",I$6), IF($H$5=Pivots!$C$173,GETPIVOTDATA("URN",Pivots!$CM$75,"Provider Group",$A14,"Quality of teaching, learning and assessment",I$6), IF($H$5=Pivots!$C$175,GETPIVOTDATA("URN",Pivots!$CM$93,"Provider Group",$A14,"Outcomes for learners",I$6), ))))) -> 4 | J14: =IF($H$5=Pivots!$C$171,GETPIVOTDATA("Organisation ID",Pivots!$CM$21,"Provider Group",$A14,"Overall effectiveness",J$6), IF($H$5=Pivots!$C$172,GETPIVOTDATA("URN",Pivots!$CM$39,"Provider Group",$A14,"Effectiveness of leadership and management",J$6), IF($H$5=Pivots!$C$174,GETPIVOTDATA("URN",Pivots!$CM$57,"Provider Group",$A14,"Personal development, behaviour and welfare",J$6), IF($H$5=Pivots!$C$173,GETPIVOTDATA("URN",Pivots!$CM$75,"Provider Group",$A14,"Quality of teaching, learning and assessment",J$6), IF($H$5=Pivots!$C$175,GETPIVOTDATA("URN",Pivots!$CM$93,"Provider Group",$A14,"Outcomes for learners",J$6), ))))) -> 5 | K14: =IF($H$5=Pivots!$C$171,GETPIVOTDATA("Organisation ID",Pivots!$CM$21,"Provider Group",$A14,"Overall effectiveness",K$6), IF($H$5=Pivots!$C$172,GETPIVOTDATA("URN",Pivots!$CM$39,"Provider Group",$A14,"Effectiveness of leadership and management",K$6), IF($H$5=Pivots!$C$174,GETPIVOTDATA("URN",Pivots!$CM$57,"Provider Group",$A14,"Personal development, behaviour and welfare",K$6), IF($H$5=Pivots!$C$173,GETPIVOTDATA("URN",Pivots!$CM$75,"Provider Group",$A14,"Quality of teaching, learning and assessment",K$6), IF($H$5=Pivots!$C$175,GETPIVOTDATA("URN",Pivots!$CM$93,"Provider Group",$A14,"Outcomes for learners",K$6), ))))) -> 4 | L14: =IF($H$5=Pivots!$C$171,GETPIVOTDATA("Organisation ID",Pivots!$CM$21,"Provider Group",$A14,"Overall effectiveness",L$6), IF($H$5=Pivots!$C$172,GETPIVOTDATA("URN",Pivots!$CM$39,"Provider Group",$A14,"Effectiveness of leadership and management",L$6), IF($H$5=Pivots!$C$174,GETPIVOTDATA("URN",Pivots!$CM$57,"Provider Group",$A14,"Personal development, behaviour and welfare",L$6), IF($H$5=Pivots!$C$173,GETPIVOTDATA("URN",Pivots!$CM$75,"Provider Group",$A14,"Quality of teaching, learning and assessment",L$6), IF($H$5=Pivots!$C$175,GETPIVOTDATA("URN",Pivots!$CM$93,"Provider Group",$A14,"Outcomes for learners",L$6), ))))) -> 2 | N14: 26.66666667 | O14: 33.33333333 | P14: 26.66666667 | Q14: 13.33333333
A15: Dance and drama colleges | B15: Dance and drama colleges6 | D15: =GETPIVOTDATA("Organisation ID",Pivots!$CM$5,"Provider Group",$A15) -> 18 | F15: 0 | H15: =IF($H$5=Pivots!$C$171,GETPIVOTDATA("Organisation ID",Pivots!$CM$21,"Provider Group",$A15), IF($H$5=Pivots!$C$172,GETPIVOTDATA("URN",Pivots!$CM$39,"Provider Group",$A15), IF($H$5=Pivots!$C$174,GETPIVOTDATA("URN",Pivots!$CM$57,"Provider Group",$A15), IF($H$5=Pivots!$C$173,GETPIVOTDATA("URN",Pivots!$CM$75,"Provider Group",$A15), IF($H$5=Pivots!$C$175,GETPIVOTDATA("URN",Pivots!$CM$93,"Provider Group",$A15), IF($H$5=Pivots!$C$176,GETPIVOTDATA("URN",Pivots!$CM$111,"Provider Group",$A15), IF($H$5=Pivots!$C$177,GETPIVOTDATA("URN",Pivots!$CM$129,"Provider Group",$A15), IF($H$5=Pivots!$C$178,GETPIVOTDATA("URN",Pivots!$CM$147,"Provider Group",$A15), IF($H$5=Pivots!$C$179,GETPIVOTDATA("URN",Pivots!$CM$165,"Provider Group",$A15), IF($H$5=Pivots!$C$180,GETPIVOTDATA("URN",Pivots!$CM$183,"Provider Group",$A15), IF($H$5=Pivots!$C$181,GETPIVOTDATA("URN",Pivots!$CM$201,"Provider Group",$A15),0))))))))))) -> 18 | I15: =IF($H$5=Pivots!$C$171,GETPIVOTDATA("Organisation ID",Pivots!$CM$21,"Provider Group",$A15,"Overall effectiveness",I$6), IF($H$5=Pivots!$C$172,GETPIVOTDATA("URN",Pivots!$CM$39,"Provider Group",$A15,"Effectiveness of leadership and management",I$6), IF($H$5=Pivots!$C$174,GETPIVOTDATA("URN",Pivots!$CM$57,"Provider Group",$A15,"Personal development, behaviour and welfare",I$6), IF($H$5=Pivots!$C$173,GETPIVOTDATA("URN",Pivots!$CM$75,"Provider Group",$A15,"Quality of teaching, learning and assessment",I$6), IF($H$5=Pivots!$C$175,GETPIVOTDATA("URN",Pivots!$CM$93,"Provider Group",$A15,"Outcomes for learners",I$6), ))))) -> 14 | J15: =IF($H$5=Pivots!$C$171,GETPIVOTDATA("Organisation ID",Pivots!$CM$21,"Provider Group",$A15,"Overall effectiveness",J$6), IF($H$5=Pivots!$C$172,GETPIVOTDATA("URN",Pivots!$CM$39,"Provider Group",$A15,"Effectiveness of leadership and management",J$6), IF($H$5=Pivots!$C$174,GETPIVOTDATA("URN",Pivots!$CM$57,"Provider Group",$A15,"Personal development, behaviour and welfare",J$6), IF($H$5=Pivots!$C$173,GETPIVOTDATA("URN",Pivots!$CM$75,"Provider Group",$A15,"Quality of teaching, learning and assessment",J$6), IF($H$5=Pivots!$C$175,GETPIVOTDATA("URN",Pivots!$CM$93,"Provider Group",$A15,"Outcomes for learners",J$6), ))))) -> 3 | K15: =IF($H$5=Pivots!$C$171,GETPIVOTDATA("Organisation ID",Pivots!$CM$21,"Provider Group",$A15,"Overall effectiveness",K$6), IF($H$5=Pivots!$C$172,GETPIVOTDATA("URN",Pivots!$CM$39,"Provider Group",$A15,"Effectiveness of leadership and management",K$6), IF($H$5=Pivots!$C$174,GETPIVOTDATA("URN",Pivots!$CM$57,"Provider Group",$A15,"Personal development, behaviour and welfare",K$6), IF($H$5=Pivots!$C$173,GETPIVOTDATA("URN",Pivots!$CM$75,"Provider Group",$A15,"Quality of teaching, learning and assessment",K$6), IF($H$5=Pivots!$C$175,GETPIVOTDATA("URN",Pivots!$CM$93,"Provider Group",$A15,"Outcomes for learners",K$6), ))))) -> 1 | L15: =IF($H$5=Pivots!$C$171,GETPIVOTDATA("Organisation ID",Pivots!$CM$21,"Provider Group",$A15,"Overall effectiveness",L$6), IF($H$5=Pivots!$C$172,GETPIVOTDATA("URN",Pivots!$CM$39,"Provider Group",$A15,"Effectiveness of leadership and management",L$6), IF($H$5=Pivots!$C$174,GETPIVOTDATA("URN",Pivots!$CM$57,"Provider Group",$A15,"Personal development, behaviour and welfare",L$6), IF($H$5=Pivots!$C$173,GETPIVOTDATA("URN",Pivots!$CM$75,"Provider Group",$A15,"Quality of teaching, learning and assessment",L$6), IF($H$5=Pivots!$C$175,GETPIVOTDATA("URN",Pivots!$CM$93,"Provider Group",$A15,"Outcomes for learners",L$6), ))))) -> 0 | N15: 77.77777778 | O15: 16.66666667 | P15: 5.555555556 | Q15: 0
A16: Higher education institutions | B16: Higher education institutions7 | D16: =GETPIVOTDATA("Organisation ID",Pivots!$CM$5,"Provider Group",$A16) -> 27 | F16: 2 | H16: =IF($H$5=Pivots!$C$171,GETPIVOTDATA("Organisation ID",Pivots!$CM$21,"Provider Group",$A16), IF($H$5=Pivots!$C$172,GETPIVOTDATA("URN",Pivots!$CM$39,"Provider Group",$A16), IF($H$5=Pivots!$C$174,GETPIVOTDATA("URN",Pivots!$CM$57,"Provider Group",$A16), IF($H$5=Pivots!$C$173,GETPIVOTDATA("URN",Pivots!$CM$75,"Provider Group",$A16), IF($H$5=Pivots!$C$175,GETPIVOTDATA("URN",Pivots!$CM$93,"Provider Group",$A16), IF($H$5=Pivots!$C$176,GETPIVOTDATA("URN",Pivots!$CM$111,"Provider Group",$A16), IF($H$5=Pivots!$C$177,GETPIVOTDATA("URN",Pivots!$CM$129,"Provider Group",$A16), IF($H$5=Pivots!$C$178,GETPIVOTDATA("URN",Pivots!$CM$147,"Provider Group",$A16), IF($H$5=Pivots!$C$179,GETPIVOTDATA("URN",Pivots!$CM$165,"Provider Group",$A16), IF($H$5=Pivots!$C$180,GETPIVOTDATA("URN",Pivots!$CM$183,"Provider Group",$A16), IF($H$5=Pivots!$C$181,GETPIVOTDATA("URN",Pivots!$CM$201,"Provider Group",$A16),0))))))))))) -> 25 | I16: =IF($H$5=Pivots!$C$171,GETPIVOTDATA("Organisation ID",Pivots!$CM$21,"Provider Group",$A16,"Overall effectiveness",I$6), IF($H$5=Pivots!$C$172,GETPIVOTDATA("URN",Pivots!$CM$39,"Provider Group",$A16,"Effectiveness of leadership and management",I$6), IF($H$5=Pivots!$C$174,GETPIVOTDATA("URN",Pivots!$CM$57,"Provider Group",$A16,"Personal development, behaviour and welfare",I$6), IF($H$5=Pivots!$C$173,GETPIVOTDATA("URN",Pivots!$CM$75,"Provider Group",$A16,"Quality of teaching, learning and assessment",I$6), IF($H$5=Pivots!$C$175,GETPIVOTDATA("URN",Pivots!$CM$93,"Provider Group",$A16,"Outcomes for learners",I$6), ))))) -> 9 | J16: =IF($H$5=Pivots!$C$171,GETPIVOTDATA("Organisation ID",Pivots!$CM$21,"Provider Group",$A16,"Overall effectiveness",J$6), IF($H$5=Pivots!$C$172,GETPIVOTDATA("URN",Pivots!$CM$39,"Provider Group",$A16,"Effectiveness of leadership and management",J$6), IF($H$5=Pivots!$C$174,GETPIVOTDATA("URN",Pivots!$CM$57,"Provider Group",$A16,"Personal development, behaviour and welfare",J$6), IF($H$5=Pivots!$C$173,GETPIVOTDATA("URN",Pivots!$CM$75,"Provider Group",$A16,"Quality of teaching, learning and assessment",J$6), IF($H$5=Pivots!$C$175,GETPIVOTDATA("URN",Pivots!$CM$93,"Provider Group",$A16,"Outcomes for learners",J$6), ))))) -> 15 | K16: =IF($H$5=Pivots!$C$171,GETPIVOTDATA("Organisation ID",Pivots!$CM$21,"Provider Group",$A16,"Overall effectiveness",K$6), IF($H$5=Pivots!$C$172,GETPIVOTDATA("URN",Pivots!$CM$39,"Provider Group",$A16,"Effectiveness of leadership and management",K$6), IF($H$5=Pivots!$C$174,GETPIVOTDATA("URN",Pivots!$CM$57,"Provider Group",$A16,"Personal development, behaviour and welfare",K$6), IF($H$5=Pivots!$C$173,GETPIVOTDATA("URN",Pivots!$CM$75,"Provider Group",$A16,"Quality of teaching, learning and assessment",K$6), IF($H$5=Pivots!$C$175,GETPIVOTDATA("URN",Pivots!$CM$93,"Provider Group",$A16,"Outcomes for learners",K$6), ))))) -> 1 | L16: =IF($H$5=Pivots!$C$171,GETPIVOTDATA("Organisation ID",Pivots!$CM$21,"Provider Group",$A16,"Overall effectiveness",L$6), IF($H$5=Pivots!$C$172,GETPIVOTDATA("URN",Pivots!$CM$39,"Provider Group",$A16,"Effectiveness of leadership and management",L$6), IF($H$5=Pivots!$C$174,GETPIVOTDATA("URN",Pivots!$CM$57,"Provider Group",$A16,"Personal development, behaviour and welfare",L$6), IF($H$5=Pivots!$C$173,GETPIVOTDATA("URN",Pivots!$CM$75,"Provider Group",$A16,"Quality of teaching, learning and assessment",L$6), IF($H$5=Pivots!$C$175,GETPIVOTDATA("URN",Pivots!$CM$93,"Provider Group",$A16,"Outcomes for learners",L$6), ))))) -> 0 | N16: 36 | O16: 60 | P16: 4 | Q16: 0
A17: National Careers Service Contractors | B17: National Careers Service contractors | D17: =GETPIVOTDATA("Organisation ID",Pivots!$CM$5,"Provider Group",$A17) -> 13 | F17: 4 | H17: =IF($H$5=Pivots!$C$171,GETPIVOTDATA("Organisation ID",Pivots!$CM$21,"Provider Group",$A17), IF($H$5=Pivots!$C$172,GETPIVOTDATA("URN",Pivots!$CM$39,"Provider Group",$A17), IF($H$5=Pivots!$C$174,GETPIVOTDATA("URN",Pivots!$CM$57,"Provider Group",$A17), IF($H$5=Pivots!$C$173,GETPIVOTDATA("URN",Pivots!$CM$75,"Provider Group",$A17), IF($H$5=Pivots!$C$175,GETPIVOTDATA("URN",Pivots!$CM$93,"Provider Group",$A17), IF($H$5=Pivots!$C$176,GETPIVOTDATA("URN",Pivots!$CM$111,"Provider Group",$A17), IF($H$5=Pivots!$C$177,GETPIVOTDATA("URN",Pivots!$CM$129,"Provider Group",$A17), IF($H$5=Pivots!$C$178,GETPIVOTDATA("URN",Pivots!$CM$147,"Provider Group",$A17), IF($H$5=Pivots!$C$179,GETPIVOTDATA("URN",Pivots!$CM$165,"Provider Group",$A17), IF($H$5=Pivots!$C$180,GETPIVOTDATA("URN",Pivots!$CM$183,"Provider Group",$A17), IF($H$5=Pivots!$C$181,GETPIVOTDATA("URN",Pivots!$CM$201,"Provider Group",$A17),0))))))))))) -> 9 | I17: =IF($H$5=Pivots!$C$171,GETPIVOTDATA("Organisation ID",Pivots!$CM$21,"Provider Group",$A17,"Overall effectiveness",I$6), IF($H$5=Pivots!$C$172,GETPIVOTDATA("URN",Pivots!$CM$39,"Provider Group",$A17,"Effectiveness of leadership and management",I$6), IF($H$5=Pivots!$C$174,GETPIVOTDATA("URN",Pivots!$CM$57,"Provider Group",$A17,"Personal development, behaviour and welfare",I$6), IF($H$5=Pivots!$C$173,GETPIVOTDATA("URN",Pivots!$CM$75,"Provider Group",$A17,"Quality of teaching, learning and assessment",I$6), IF($H$5=Pivots!$C$175,GETPIVOTDATA("URN",Pivots!$CM$93,"Provider Group",$A17,"Outcomes for learners",I$6), ))))) -> 2 | J17: =IF($H$5=Pivots!$C$171,GETPIVOTDATA("Organisation ID",Pivots!$CM$21,"Provider Group",$A17,"Overall effectiveness",J$6), IF($H$5=Pivots!$C$172,GETPIVOTDATA("URN",Pivots!$CM$39,"Provider Group",$A17,"Effectiveness of leadership and management",J$6), IF($H$5=Pivots!$C$174,GETPIVOTDATA("URN",Pivots!$CM$57,"Provider Group",$A17,"Personal development, behaviour and welfare",J$6), IF($H$5=Pivots!$C$173,GETPIVOTDATA("URN",Pivots!$CM$75,"Provider Group",$A17,"Quality of teaching, learning and assessment",J$6), IF($H$5=Pivots!$C$175,GETPIVOTDATA("URN",Pivots!$CM$93,"Provider Group",$A17,"Outcomes for learners",J$6), ))))) -> 7 | K17: =IF($H$5=Pivots!$C$171,GETPIVOTDATA("Organisation ID",Pivots!$CM$21,"Provider Group",$A17,"Overall effectiveness",K$6), IF($H$5=Pivots!$C$172,GETPIVOTDATA("URN",Pivots!$CM$39,"Provider Group",$A17,"Effectiveness of leadership and management",K$6), IF($H$5=Pivots!$C$174,GETPIVOTDATA("URN",Pivots!$CM$57,"Provider Group",$A17,"Personal development, behaviour and welfare",K$6), IF($H$5=Pivots!$C$173,GETPIVOTDATA("URN",Pivots!$CM$75,"Provider Group",$A17,"Quality of teaching, learning and assessment",K$6), IF($H$5=Pivots!$C$175,GETPIVOTDATA("URN",Pivots!$CM$93,"Provider Group",$A17,"Outcomes for learners",K$6), ))))) -> 0 | L17: =IF($H$5=Pivots!$C$171,GETPIVOTDATA("Organisation ID",Pivots!$CM$21,"Provider Group",$A17,"Overall effectiveness",L$6), IF($H$5=Pivots!$C$172,GETPIVOTDATA("URN",Pivots!$CM$39,"Provider Group",$A17,"Effectiveness of leadership and management",L$6), IF($H$5=Pivots!$C$174,GETPIVOTDATA("URN",Pivots!$CM$57,"Provider Group",$A17,"Personal development, behaviour and welfare",L$6), IF($H$5=Pivots!$C$173,GETPIVOTDATA("URN",Pivots!$CM$75,"Provider Group",$A17,"Quality of teaching, learning and assessment",L$6), IF($H$5=Pivots!$C$175,GETPIVOTDATA("URN",Pivots!$CM$93,"Provider Group",$A17,"Outcomes for learners",L$6), ))))) -> 0 | N17: 22.22222222 | O17: 77.77777778 | P17: 0 | Q17: 0
Q18: Source: Ofsted inspection data
B19: 1. Does not include prison and young offender institution inspections.
B20: 2. Includes general further education colleges, sixth form colleges and specialist further education colleges.
B21: 3. Includes employer providers.
B22: 4. Includes local authority, not for profit and specialist designated providers.
B23: 5. Includes 16-19 free schools, 16-19 academy converters and 16-19 sponsor led academies.
B24: 6. Inspections from 1 September 2015.
B25: 7. Inspection of further education provision only, not provider as a whole.
B26: 8. Prior to 1 September 2012, providers with an inspection outcome of grade 3 were judged as satisfactory.
B27: 9. Percentages are rounded and may not add to 100. Where the number of providers is small, percentages should be treated with caution.

Sheet C1 In-year judgement outcomes
B2: Chart 1: Further education and skills full inspection outcomes this reporting year, by judgement
B3: =Reporting_Period -> 1 September 2016 to 28 February 2017
B5: Select provider group1: | D5: <All providers>
B7: Select provider type: | D7: <All>
F8: 1 | G8: 2 | H8: 3 | I8: 4
D9: Total number of inspections | F9: Number of inspections
F10: Outstanding | G10: Good | H10: Requires improvement | I10: Inadequate
B11: Overall effectiveness | D11: =SUM(F11:I11) -> 162 | F11: =IF(T2_PG="<All providers>", IFERROR(GETPIVOTDATA("Organisation ID",Pivots!$V$6,$B11,F$8),0), IF(OR(ISBLANK(T2_PT),T2_PT="<All>"), IFERROR(GETPIVOTDATA("Organisation ID",Pivots!$V$6,"Provider Group",T2_PG1,$B11,F$8),0), IFERROR(GETPIVOTDATA("Organisation ID",Pivots!$AF$6,"Reporting provider type",T2_PT,$B11,F$8),0))) -> 12 | G11: =IF(T2_PG="<All providers>", IFERROR(GETPIVOTDATA("Organisation ID",Pivots!$V$6,$B11,G$8),0), IF(OR(ISBLANK(T2_PT),T2_PT="<All>"), IFERROR(GETPIVOTDATA("Organisation ID",Pivots!$V$6,"Provider Group",T2_PG1,$B11,G$8),0), IFERROR(GETPIVOTDATA("Organisation ID",Pivots!$AF$6,"Reporting provider type",T2_PT,$B11,G$8),0))) -> 74 | H11: =IF(T2_PG="<All providers>", IFERROR(GETPIVOTDATA("Organisation ID",Pivots!$V$6,$B11,H$8),0), IF(OR(ISBLANK(T2_PT),T2_PT="<All>"), IFERROR(GETPIVOTDATA("Organisation ID",Pivots!$V$6,"Provider Group",T2_PG1,$B11,H$8),0), IFERROR(GETPIVOTDATA("Organisation ID",Pivots!$AF$6,"Reporting provider type",T2_PT,$B11,H$8),0))) -> 59 | I11: =IF(T2_PG="<All providers>", IFERROR(GETPIVOTDATA("Organisation ID",Pivots!$V$6,$B11,I$8),0), IF(OR(ISBLANK(T2_PT),T2_PT="<All>"), IFERROR(GETPIVOTDATA("Organisation ID",Pivots!$V$6,"Provider Group",T2_PG1,$B11,I$8),0), IFERROR(GETPIVOTDATA("Organisation ID",Pivots!$AF$6,"Reporting provider type",T2_PT,$B11,I$8),0))) -> 17
B12: Effectiveness of leadership and management | D12: =SUM(F12:I12) -> 162 | F12: =IF(T2_PG="<All providers>", IFERROR(GETPIVOTDATA("Organisation ID",Pivots!$V$24,$B12,F$8),0), IF(OR(ISBLANK(T2_PT),T2_PT="<All>"), IFERROR(GETPIVOTDATA("Organisation ID",Pivots!$V$24,"Provider Group",T2_PG1,$B12,F$8),0), IFERROR(GETPIVOTDATA("Organisation ID",Pivots!$AF$24,"Reporting provider type",T2_PT,$B12,F$8),0))) -> 13 | G12: =IF(T2_PG="<All providers>", IFERROR(GETPIVOTDATA("Organisation ID",Pivots!$V$24,$B12,G$8),0), IF(OR(ISBLANK(T2_PT),T2_PT="<All>"), IFERROR(GETPIVOTDATA("Organisation ID",Pivots!$V$24,"Provider Group",T2_PG1,$B12,G$8),0), IFERROR(GETPIVOTDATA("Organisation ID",Pivots!$AF$24,"Reporting provider type",T2_PT,$B12,G$8),0))) -> 74 | H12: =IF(T2_PG="<All providers>", IFERROR(GETPIVOTDATA("Organisation ID",Pivots!$V$24,$B12,H$8),0), IF(OR(ISBLANK(T2_PT),T2_PT="<All>"), IFERROR(GETPIVOTDATA("Organisation ID",Pivots!$V$24,"Provider Group",T2_PG1,$B12,H$8),0), IFERROR(GETPIVOTDATA("Organisation ID",Pivots!$AF$24,"Reporting provider type",T2_PT,$B12,H$8),0))) -> 58 | I12: =IF(T2_PG="<All providers>", IFERROR(GETPIVOTDATA("Organisation ID",Pivots!$V$24,$B12,I$8),0), IF(OR(ISBLANK(T2_PT),T2_PT="<All>"), IFERROR(GETPIVOTDATA("Organisation ID",Pivots!$V$24,"Provider Group",T2_PG1,$B12,I$8),0), IFERROR(GETPIVOTDATA("Organisation ID",Pivots!$AF$24,"Reporting provider type",T2_PT,$B12,I$8),0))) -> 17
B13: Quality of teaching, learning and assessment | D13: 162 | F13: =IF(T2_PG="<All providers>", IFERROR(GETPIVOTDATA("Organisation ID",Pivots!$V$42,$B13,F$8),0), IF(OR(ISBLANK(T2_PT),T2_PT="<All>"), IFERROR(GETPIVOTDATA("Organisation ID",Pivots!$V$42,"Provider Group",T2_PG1,$B13,F$8),0), IFERROR(GETPIVOTDATA("Organisation ID",Pivots!$AF$42,"Reporting provider type",T2_PT,$B13,F$8),0))) -> 11 | G13: =IF(T2_PG="<All providers>", IFERROR(GETPIVOTDATA("Organisation ID",Pivots!$V$42,$B13,G$8),0), IF(OR(ISBLANK(T2_PT),T2_PT="<All>"), IFERROR(GETPIVOTDATA("Organisation ID",Pivots!$V$42,"Provider Group",T2_PG1,$B13,G$8),0), IFERROR(GETPIVOTDATA("Organisation ID",Pivots!$AF$42,"Reporting provider type",T2_PT,$B13,G$8),0))) -> 76 | H13: =IF(T2_PG="<All providers>", IFERROR(GETPIVOTDATA("Organisation ID",Pivots!$V$42,$B13,H$8),0), IF(OR(ISBLANK(T2_PT),T2_PT="<All>"), IFERROR(GETPIVOTDATA("Organisation ID",Pivots!$V$42,"Provider Group",T2_PG1,$B13,H$8),0), IFERROR(GETPIVOTDATA("Organisation ID",Pivots!$AF$42,"Reporting provider type",T2_PT,$B13,H$8),0))) -> 62 | I13: =IF(T2_PG="<All providers>", IFERROR(GETPIVOTDATA("Organisation ID",Pivots!$V$42,$B13,I$8),0), IF(OR(ISBLANK(T2_PT),T2_PT="<All>"), IFERROR(GETPIVOTDATA("Organisation ID",Pivots!$V$42,"Provider Group",T2_PG1,$B13,I$8),0), IFERROR(GETPIVOTDATA("Organisation ID",Pivots!$AF$42,"Reporting provider type",T2_PT,$B13,I$8),0))) -> 13
B14: Personal development, behaviour and welfare | D14: 162 | F14: =IF(T2_PG="<All providers>", IFERROR(GETPIVOTDATA("Organisation ID",Pivots!$V$60,$B14,F$8),0), IF(OR(ISBLANK(T2_PT),T2_PT="<All>"), IFERROR(GETPIVOTDATA("Organisation ID",Pivots!$V$60,"Provider Group",T2_PG1,$B14,F$8),0), IFERROR(GETPIVOTDATA("Organisation ID",Pivots!$AF$60,"Reporting provider type",T2_PT,$B14,F$8),0))) -> 16 | G14: =IF(T2_PG="<All providers>", IFERROR(GETPIVOTDATA("Organisation ID",Pivots!$V$60,$B14,G$8),0), IF(OR(ISBLANK(T2_PT),T2_PT="<All>"), IFERROR(GETPIVOTDATA("Organisation ID",Pivots!$V$60,"Provider Group",T2_PG1,$B14,G$8),0), IFERROR(GETPIVOTDATA("Organisation ID",Pivots!$AF$60,"Reporting provider type",T2_PT,$B14,G$8),0))) -> 87 | H14: =IF(T2_PG="<All providers>", IFERROR(GETPIVOTDATA("Organisation ID",Pivots!$V$60,$B14,H$8),0), IF(OR(ISBLANK(T2_PT),T2_PT="<All>"), IFERROR(GETPIVOTDATA("Organisation ID",Pivots!$V$60,"Provider Group",T2_PG1,$B14,H$8),0), IFERROR(GETPIVOTDATA("Organisation ID",Pivots!$AF$60,"Reporting provider type",T2_PT,$B14,H$8),0))) -> 46 | I14: =IF(T2_PG="<All providers>", IFERROR(GETPIVOTDATA("Organisation ID",Pivots!$V$60,$B14,I$8),0), IF(OR(ISBLANK(T2_PT),T2_PT="<All>"), IFERROR(GETPIVOTDATA("Organisation ID",Pivots!$V$60,"Provider Group",T2_PG1,$B14,I$8),0), IFERROR(GETPIVOTDATA("Organisation ID",Pivots!$AF$60,"Reporting provider type",T2_PT,$B14,I$8),0))) -> 13
B15: Outcomes for learners | D15: 162 | F15: =IF(T2_PG="<All providers>", IFERROR(GETPIVOTDATA("Organisation ID",Pivots!$V$78,$B15,F$8),0), IF(OR(ISBLANK(T2_PT),T2_PT="<All>"), IFERROR(GETPIVOTDATA("Organisation ID",Pivots!$V$78,"Provider Group",T2_PG1,$B15,F$8),0), IFERROR(GETPIVOTDATA("Organisation ID",Pivots!$AF$78,"Reporting provider type",T2_PT,$B15,F$8),0))) -> 14 | G15: =IF(T2_PG="<All providers>", IFERROR(GETPIVOTDATA("Organisation ID",Pivots!$V$78,$B15,G$8),0), IF(OR(ISBLANK(T2_PT),T2_PT="<All>"), IFERROR(GETPIVOTDATA("Organisation ID",Pivots!$V$78,"Provider Group",T2_PG1,$B15,G$8),0), IFERROR(GETPIVOTDATA("Organisation ID",Pivots!$AF$78,"Reporting provider type",T2_PT,$B15,G$8),0))) -> 72 | H15: =IF(T2_PG="<All providers>", IFERROR(GETPIVOTDATA("Organisation ID",Pivots!$V$78,$B15,H$8),0), IF(OR(ISBLANK(T2_PT),T2_PT="<All>"), IFERROR(GETPIVOTDATA("Organisation ID",Pivots!$V$78,"Provider Group",T2_PG1,$B15,H$8),0), IFERROR(GETPIVOTDATA("Organisation ID",Pivots!$AF$78,"Reporting provider type",T2_PT,$B15,H$8),0))) -> 61 | I15: =IF(T2_PG="<All providers>", IFERROR(GETPIVOTDATA("Organisation ID",Pivots!$V$78,$B15,I$8),0), IF(OR(ISBLANK(T2_PT),T2_PT="<All>"), IFERROR(GETPIVOTDATA("Organisation ID",Pivots!$V$78,"Provider Group",T2_PG1,$B15,I$8),0), IFERROR(GETPIVOTDATA("Organisation ID",Pivots!$AF$78,"Reporting provider type",T2_PT,$B15,I$8),0))) -> 15
B16: 16 to 19 study programmes | D16: 84 | F16: =IF(T2_PG="<All providers>", IFERROR(GETPIVOTDATA("Organisation ID",Pivots!$V$96,$B16,F$8),0), IF(OR(ISBLANK(T2_PT),T2_PT="<All>"), IFERROR(GETPIVOTDATA("Organisation ID",Pivots!$V$96,"Provider Group",T2_PG1,$B16,F$8),0), IFERROR(GETPIVOTDATA("Organisation ID",Pivots!$AF$96,"Reporting provider type",T2_PT,$B16,F$8),0))) -> 7 | G16: =IF(T2_PG="<All providers>", IFERROR(GETPIVOTDATA("Organisation ID",Pivots!$V$96,$B16,G$8),0), IF(OR(ISBLANK(T2_PT),T2_PT="<All>"), IFERROR(GETPIVOTDATA("Organisation ID",Pivots!$V$96,"Provider Group",T2_PG1,$B16,G$8),0), IFERROR(GETPIVOTDATA("Organisation ID",Pivots!$AF$96,"Reporting provider type",T2_PT,$B16,G$8),0))) -> 29 | H16: =IF(T2_PG="<All providers>", IFERROR(GETPIVOTDATA("Organisation ID",Pivots!$V$96,$B16,H$8),0), IF(OR(ISBLANK(T2_PT),T2_PT="<All>"), IFERROR(GETPIVOTDATA("Organisation ID",Pivots!$V$96,"Provider Group",T2_PG1,$B16,H$8),0), IFERROR(GETPIVOTDATA("Organisation ID",Pivots!$AF$96,"Reporting provider type",T2_PT,$B16,H$8),0))) -> 39 | I16: =IF(T2_PG="<All providers>", IFERROR(GETPIVOTDATA("Organisation ID",Pivots!$V$96,$B16,I$8),0), IF(OR(ISBLANK(T2_PT),T2_PT="<All>"), IFERROR(GETPIVOTDATA("Organisation ID",Pivots!$V$96,"Provider Group",T2_PG1,$B16,I$8),0), IFERROR(GETPIVOTDATA("Organisation ID",Pivots!$AF$96,"Reporting provider type",T2_PT,$B16,I$8),0))) -> 9
B17: Adult learning programmes | D17: 60 | F17: =IF(T2_PG="<All providers>", IFERROR(GETPIVOTDATA("Organisation ID",Pivots!$V$114,$B17,F$8),0), IF(OR(ISBLANK(T2_PT),T2_PT="<All>"), IFERROR(GETPIVOTDATA("Organisation ID",Pivots!$V$114,"Provider Group",T2_PG1,$B17,F$8),0), IFERROR(GETPIVOTDATA("Organisation ID",Pivots!$AF$114,"Reporting provider type",T2_PT,$B17,F$8),0))) -> 2 | G17: =IF(T2_PG="<All providers>", IFERROR(GETPIVOTDATA("Organisation ID",Pivots!$V$114,$B17,G$8),0), IF(OR(ISBLANK(T2_PT),T2_PT="<All>"), IFERROR(GETPIVOTDATA("Organisation ID",Pivots!$V$114,"Provider Group",T2_PG1,$B17,G$8),0), IFERROR(GETPIVOTDATA("Organisation ID",Pivots!$AF$114,"Reporting provider type",T2_PT,$B17,G$8),0))) -> 29 | H17: =IF(T2_PG="<All providers>", IFERROR(GETPIVOTDATA("Organisation ID",Pivots!$V$114,$B17,H$8),0), IF(OR(ISBLANK(T2_PT),T2_PT="<All>"), IFERROR(GETPIVOTDATA("Organisation ID",Pivots!$V$114,"Provider Group",T2_PG1,$B17,H$8),0), IFERROR(GETPIVOTDATA("Organisation ID",Pivots!$AF$114,"Reporting provider type",T2_PT,$B17,H$8),0))) -> 24 | I17: =IF(T2_PG="<All providers>", IFERROR(GETPIVOTDATA("Organisation ID",Pivots!$V$114,$B17,I$8),0), IF(OR(ISBLANK(T2_PT),T2_PT="<All>"), IFERROR(GETPIVOTDATA("Organisation ID",Pivots!$V$114,"Provider Group",T2_PG1,$B17,I$8),0), IFERROR(GETPIVOTDATA("Organisation ID",Pivots!$AF$114,"Reporting provider type",T2_PT,$B17,I$8),0))) -> 5
B18: Apprenticeships | D18: 97 | F18: =IF(T2_PG="<All providers>", IFERROR(GETPIVOTDATA("Organisation ID",Pivots!$V$132,$B18,F$8),0), IF(OR(ISBLANK(T2_PT),T2_PT="<All>"), IFERROR(GETPIVOTDATA("Organisation ID",Pivots!$V$132,"Provider Group",T2_PG1,$B18,F$8),0), IFERROR(GETPIVOTDATA("Organisation ID",Pivots!$AF$132,"Reporting provider type",T2_PT,$B18,F$8),0))) -> 4 | G18: =IF(T2_PG="<All providers>", IFERROR(GETPIVOTDATA("Organisation ID",Pivots!$V$132,$B18,G$8),0), IF(OR(ISBLANK(T2_PT),T2_PT="<All>"), IFERROR(GETPIVOTDATA("Organisation ID",Pivots!$V$132,"Provider Group",T2_PG1,$B18,G$8),0), IFERROR(GETPIVOTDATA("Organisation ID",Pivots!$AF$132,"Reporting provider type",T2_PT,$B18,G$8),0))) -> 46 | H18: =IF(T2_PG="<All providers>", IFERROR(GETPIVOTDATA("Organisation ID",Pivots!$V$132,$B18,H$8),0), IF(OR(ISBLANK(T2_PT),T2_PT="<All>"), IFERROR(GETPIVOTDATA("Organisation ID",Pivots!$V$132,"Provider Group",T2_PG1,$B18,H$8),0), IFERROR(GETPIVOTDATA("Organisation ID",Pivots!$AF$132,"Reporting provider type",T2_PT,$B18,H$8),0))) -> 37 | I18: =IF(T2_PG="<All providers>", IFERROR(GETPIVOTDATA("Organisation ID",Pivots!$V$132,$B18,I$8),0), IF(OR(ISBLANK(T2_PT),T2_PT="<All>"), IFERROR(GETPIVOTDATA("Organisation ID",Pivots!$V$132,"Provider Group",T2_PG1,$B18,I$8),0), IFERROR(GETPIVOTDATA("Organisation ID",Pivots!$AF$132,"Reporting provider type",T2_PT,$B18,I$8),0))) -> 10
B19: Traineeships | D19: 9 | F19: =IF(T2_PG="<All providers>", IFERROR(GETPIVOTDATA("Organisation ID",Pivots!$V$150,$B19,F$8),0), IF(OR(ISBLANK(T2_PT),T2_PT="<All>"), IFERROR(GETPIVOTDATA("Organisation ID",Pivots!$V$150,"Provider Group",T2_PG1,$B19,F$8),0), IFERROR(GETPIVOTDATA("Organisation ID",Pivots!$AF$150,"Reporting provider type",T2_PT,$B19,F$8),0))) -> 0 | G19: =IF(T2_PG="<All providers>", IFERROR(GETPIVOTDATA("Organisation ID",Pivots!$V$150,$B19,G$8),0), IF(OR(ISBLANK(T2_PT),T2_PT="<All>"), IFERROR(GETPIVOTDATA("Organisation ID",Pivots!$V$150,"Provider Group",T2_PG1,$B19,G$8),0), IFERROR(GETPIVOTDATA("Organisation ID",Pivots!$AF$150,"Reporting provider type",T2_PT,$B19,G$8),0))) -> 6 | H19: =IF(T2_PG="<All providers>", IFERROR(GETPIVOTDATA("Organisation ID",Pivots!$V$150,$B19,H$8),0), IF(OR(ISBLANK(T2_PT),T2_PT="<All>"), IFERROR(GETPIVOTDATA("Organisation ID",Pivots!$V$150,"Provider Group",T2_PG1,$B19,H$8),0), IFERROR(GETPIVOTDATA("Organisation ID",Pivots!$AF$150,"Reporting provider type",T2_PT,$B19,H$8),0))) -> 3 | I19: =IF(T2_PG="<All providers>", IFERROR(GETPIVOTDATA("Organisation ID",Pivots!$V$150,$B19,I$8),0), IF(OR(ISBLANK(T2_PT),T2_PT="<All>"), IFERROR(GETPIVOTDATA("Organisation ID",Pivots!$V$150,"Provider Group",T2_PG1,$B19,I$8),0), IFERROR(GETPIVOTDATA("Organisation ID",Pivots!$AF$150,"Reporting provider type",T2_PT,$B19,I$8),0))) -> 0
B20: Provision for learners with high needs | D20: 41 | F20: =IF(T2_PG="<All providers>", IFERROR(GETPIVOTDATA("Organisation ID",Pivots!$V$168,$B20,F$8),0), IF(OR(ISBLANK(T2_PT),T2_PT="<All>"), IFERROR(GETPIVOTDATA("Organisation ID",Pivots!$V$168,"Provider Group",T2_PG1,$B20,F$8),0), IFERROR(GETPIVOTDATA("Organisation ID",Pivots!$AF$168,"Reporting provider type",T2_PT,$B20,F$8),0))) -> 3 | G20: =IF(T2_PG="<All providers>", IFERROR(GETPIVOTDATA("Organisation ID",Pivots!$V$168,$B20,G$8),0), IF(OR(ISBLANK(T2_PT),T2_PT="<All>"), IFERROR(GETPIVOTDATA("Organisation ID",Pivots!$V$168,"Provider Group",T2_PG1,$B20,G$8),0), IFERROR(GETPIVOTDATA("Organisation ID",Pivots!$AF$168,"Reporting provider type",T2_PT,$B20,G$8),0))) -> 25 | H20: =IF(T2_PG="<All providers>", IFERROR(GETPIVOTDATA("Organisation ID",Pivots!$V$168,$B20,H$8),0), IF(OR(ISBLANK(T2_PT),T2_PT="<All>"), IFERROR(GETPIVOTDATA("Organisation ID",Pivots!$V$168,"Provider Group",T2_PG1,$B20,H$8),0), IFERROR(GETPIVOTDATA("Organisation ID",Pivots!$AF$168,"Reporting provider type",T2_PT,$B20,H$8),0))) -> 10 | I20: =IF(T2_PG="<All providers>", IFERROR(GETPIVOTDATA("Organisation ID",Pivots!$V$168,$B20,I$8),0), IF(OR(ISBLANK(T2_PT),T2_PT="<All>"), IFERROR(GETPIVOTDATA("Organisation ID",Pivots!$V$168,"Provider Group",T2_PG1,$B20,I$8),0), IFERROR(GETPIVOTDATA("Organisation ID",Pivots!$AF$168,"Reporting provider type",T2_PT,$B20,I$8),0))) -> 3
B21: Full-time provision for 14 to 16-year-olds | D21: 3 | F21: =IF(T2_PG="<All providers>", IFERROR(GETPIVOTDATA("Organisation ID",Pivots!$V$186,$B21,F$8),0), IF(OR(ISBLANK(T2_PT),T2_PT="<All>"), IFERROR(GETPIVOTDATA("Organisation ID",Pivots!$V$186,"Provider Group",T2_PG1,$B21,F$8),0), IFERROR(GETPIVOTDATA("Organisation ID",Pivots!$AF$186,"Reporting provider type",T2_PT,$B21,F$8),0))) -> 0 | G21: =IF(T2_PG="<All providers>", IFERROR(GETPIVOTDATA("Organisation ID",Pivots!$V$186,$B21,G$8),0), IF(OR(ISBLANK(T2_PT),T2_PT="<All>"), IFERROR(GETPIVOTDATA("Organisation ID",Pivots!$V$186,"Provider Group",T2_PG1,$B21,G$8),0), IFERROR(GETPIVOTDATA("Organisation ID",Pivots!$AF$186,"Reporting provider type",T2_PT,$B21,G$8),0))) -> 3 | H21: =IF(T2_PG="<All providers>", IFERROR(GETPIVOTDATA("Organisation ID",Pivots!$V$186,$B21,H$8),0), IF(OR(ISBLANK(T2_PT),T2_PT="<All>"), IFERROR(GETPIVOTDATA("Organisation ID",Pivots!$V$186,"Provider Group",T2_PG1,$B21,H$8),0), IFERROR(GETPIVOTDATA("Organisation ID",Pivots!$AF$186,"Reporting provider type",T2_PT,$B21,H$8),0))) -> 0 | I21: =IF(T2_PG="<All providers>", IFERROR(GETPIVOTDATA("Organisation ID",Pivots!$V$186,$B21,I$8),0), IF(OR(ISBLANK(T2_PT),T2_PT="<All>"), IFERROR(GETPIVOTDATA("Organisation ID",Pivots!$V$186,"Provider Group",T2_PG1,$B21,I$8),0), IFERROR(GETPIVOTDATA("Organisation ID",Pivots!$AF$186,"Reporting provider type",T2_PT,$B21,I$8),0))) -> 0
I22: Source: Ofsted inspection data
D24: % Outstanding | E24: % Good | F24: % Requires improvement | G24: % Inadequate | H24: Not judged
B25: =B11&" ("&TEXT(D11,"#,##0")&")" -> Overall effectiveness (162) | D25: =IF(IFERROR(ROUND(F11/$D11*100,0),0)=0,NA(),IFERROR(F11/$D11*100,NA())) -> 7.407407407 | E25: =IF(IFERROR(ROUND(G11/$D11*100,0),0)=0,NA(),IFERROR(G11/$D11*100,NA())) -> 45.67901235 | F25: =IF(IFERROR(ROUND(H11/$D11*100,0),0)=0,NA(),IFERROR(H11/$D11*100,NA())) -> 36.41975309 | G25: =IF(IFERROR(ROUND(I11/$D11*100,0),0)=0,NA(),IFERROR(I11/$D11*100,NA())) -> 10.49382716 | H25: =100-(IFERROR(D25,0)+IFERROR(E25,0)+IFERROR(F25,0)+IFERROR(G25,0)) -> 0
B26: Effectiveness of leadership and management (162) | D26: 8.024691358 | E26: 45.67901235 | F26: 35.80246914 | G26: 10.49382716 | H26: =100-(IFERROR(D26,0)+IFERROR(E26,0)+IFERROR(F26,0)+IFERROR(G26,0)) -> 0
B27: Quality of teaching, learning and assessment (162) | D27: 6.790123457 | E27: 46.91358025 | F27: 38.27160494 | G27: 8.024691358 | H27: 0
B28: Personal development, behaviour and welfare (162) | D28: 9.87654321 | E28: 53.7037037 | F28: 28.39506173 | G28: 8.024691358 | H28: 0
B29: Outcomes for learners (162) | D29: 8.641975309 | E29: 44.44444444 | F29: 37.65432099 | G29: 9.259259259 | H29: 0
B30: 16 to 19 study programmes (84) | D30: 8.333333333 | E30: 34.52380952 | F30: 46.42857143 | G30: 10.71428571 | H30: 0
B31: Adult learning programmes (60) | D31: 3.333333333 | E31: 48.33333333 | F31: 40 | G31: 8.333333333 | H31: 0
B32: Apprenticeships (97) | D32: 4.12371134 | E32: 47.42268041 | F32: 38.1443299 | G32: 10.30927835 | H32: 0
B33: Traineeships (9) | E33: 66.66666667 | F33: 33.33333333 | H33: 0
B34: Provision for learners with high needs (41) | D34: 7.317073171 | E34: 60.97560976 | F34: 24.3902439 | G34: 7.317073171 | H34: 0
B35: Full-time provision for 14 to 16-year-olds (3) | E35: 100 | H35: 0
B45: 1. See 'notes' tab for a description of which providers are included in each group.
B46: 2. Percentages are rounded and may not add to 100. Where the number of inspections is small, percentages should be treated with caution.

Sheet Pivots (hidden)
A2: Table 1 | F2: Re-inspection/Monitoring visits | V2: Table 2 | AF2: Table 2 | AP2: Table 2 | AZ2: Table 2 | CA2: Table 2a - Prison outcomes | CM2: Table 3 - SoN | CV2: Table 4 | EI2: Chart 1 | GA2: Chart 2 | GQ2: Chart 3 | HB2: Chart 4 | HK2: Chart 5 | HU2: Chart 6
F3: Short conversions | EI3: Last day of inspection | EJ3: (All)
V4: Overall effectiveness | AP4: Overall effectiveness | CA4: Pivots removed as prisons data now populated manually | GA4: FULL | GH4: FULL and SHORT | GQ4: Overall effectiveness
CM5: Row Labels | CN5: Count of Organisation ID | EI5: Count of URN | EJ5: Column Labels | GA5: Count of URN | GB5: Column Labels | GH5: Count of URN | GI5: Column Labels
A6: Count of Organisation ID | B6: Column Labels | V6: Count of Organisation ID | W6: Column Labels | AF6: Count of Organisation ID | AG6: Column Labels | AP6: Count of Organisation ID | AQ6: Column Labels | AZ6: Count of Organisation ID | BA6: Column Labels | CM6: Independent specialist colleges | CN6: 70 | EI6: Row Labels | EJ6: 1 | EK6: 2 | EL6: 3 | EM6: 4 | EN6: NULL | EO6: Grand Total | GA6: Row Labels | GB6: 1 | GC6: 2 | GD6: 3 | GE6: 4 | GF6: Grand Total | GH6: Row Labels | GI6: 1 | GJ6: 2 | GK6: 3 | GL6: 4 | GM6: - | GN6: Grand Total | GQ6: Count of URN | GR6: Column Labels | HB6: Previous overall effectiveness | HC6: 3
A7: Row Labels | B7: Full | C7: Monitoring | D7: Reinspection | E7: Reinspection monitoring | F7: Short | G7: Grand Total | V7: Row Labels | W7: 1 | X7: 2 | Y7: 3 | Z7: 4 | AA7: 9 | AB7: - | AC7: Grand Total | AF7: Row Labels | AG7: 1 | AH7: 2 | AI7: 3 | AJ7: 4 | AK7: 9 | AL7: - | AM7: Grand Total | AP7: Row Labels | AQ7: 1 | AR7: 2 | AS7: 3 | AT7: 4 | AU7: - | AV7: Grand Total | AZ7: Row Labels | BA7: 1 | BB7: 2 | BC7: 3 | BD7: 4 | BE7: - | BF7: Grand Total | CM7: Community learning and skills providers | CN7: 228 | CV7: Inspection type grouping | CW7: (All) | EI7: 16-19 academies | EJ7: 4 | EK7: 5 | EL7: 4 | EM7: 2 | EN7: 9 | EO7: 24 | GA7: 16-19 academies | GB7: 3 | GC7: 2 | GD7: 2 | GE7: 1 | GF7: 8 | GH7: 16-19 academies | GI7: 3 | GJ7: 2 | GK7: 2 | GL7: 1 | GM7: 1 | GN7: 9 | GQ7: Row Labels | GR7: 1 | GS7: 2 | GT7: 3 | GU7: 4 | GV7: 9 | GW7: - | GX7: Grand Total | HB7: Flag DS_1a | HC7: (All) | HK7: Count of URN | HL7: Column Labels | HV7: Column Labels
A8: FES - Full Inspection | B8: 8 | G8: 8 | V8: Independent specialist colleges | W8: 1 | X8: 7 | Y8: 2 | AA8: 1 | AB8: 1 | AC8: 12 | AF8: 16-19 free school | AG8: 3 | AH8: 2 | AI8: 1 | AJ8: 1 | AL8: 1 | AM8: 8 | AP8: Independent specialist colleges | AQ8: 1 | AR8: 8 | AS8: 2 | AU8: 1 | AV8: 12 | AZ8: 16-19 free school | BA8: 3 | BB8: 2 | BC8: 1 | BD8: 1 | BE8: 1 | BF8: 8 | CM8: Independent learning providers (including employer providers) | CN8: 506 | EI8: Colleges | EJ8: 62 | EK8: 167 | EL8: 68 | EM8: 13 | EN8: 2 | EO8: 312 | GA8: Colleges | GB8: 2 | GC8: 17 | GD8: 26 | GE8: 5 | GF8: 50 | GH8: Colleges | GI8: 2 | GJ8: 29 | GK8: 26 | GL8: 5 | GM8: 17 | GN8: 79 | GQ8: 16-19 academies | GR8: 3 | GS8: 2 | GT8: 2 | GU8: 1 | GW8: 1 | GX8: 9 | HK8: Row Labels | HL8: 1 | HM8: 2 | HN8: 3 | HO8: 4 | HP8: NULL | HQ8: Grand Total | HV8: 1 | HW8: 2 | HX8: 3 | HY8: 4 | HZ8: NULL | IA8: Grand Total
A9: FES - Monitoring Inspection | E9: 1 | G9: 1 | V9: 16-19 academies | W9: 3 | X9: 2 | Y9: 2 | Z9: 1 | AB9: 1 | AC9: 9 | AF9: Employer provider | AG9: 2 | AH9: 3 | AI9: 5 | AM9: 10 | AP9: 16-19 academies | AQ9: 3 | AR9: 2 | AS9: 2 | AT9: 1 | AU9: 1 | AV9: 9 | AZ9: Employer provider | BA9: 2 | BB9: 3 | BC9: 5 | BF9: 10 | CM9: Dance and drama colleges | CN9: 18 | CV9: Count of URN | CW9: Column Labels | EI9: Community learning and skills providers | EJ9: 14 | EK9: 174 | EL9: 35 | EM9: 3 | EN9: 2 | EO9: 228 | GA9: Community learning and skills providers | GC9: 15 | GD9: 7 | GE9: 2 | GF9: 24 | GH9: Community learning and skills providers | GJ9: 30 | GK9: 7 | GL9: 2 | GM9: 3 | GN9: 42 | GQ9: Colleges | GR9: 2 | GS9: 17 | GT9: 26 | GU9: 5 | GV9: 12 | GW9: 17 | GX9: 79 | HB9: Count of URN | HC9: Column Labels | HK9: Independent specialist colleges | HL9: 6 | HM9: 43 | HN9: 10 | HO9: 1 | HP9: 10 | HQ9: 70 | HU9: Count of URN | HV9: 160 | HW9: 697 | HX9: 182 | HY9: 30 | HZ9: 129 | IA9: 1198
A10: FES - Short inspection | V10: Community learning and skills providers | X10: 15 | Y10: 7 | Z10: 2 | AA10: 15 | AB10: 3 | AC10: 42 | AF10: General further education college | AH10: 11 | AI10: 20 | AJ10: 4 | AK10: 5 | AL10: 16 | AM10: 56 | AP10: Community learning and skills providers | AR10: 30 | AS10: 7 | AT10: 2 | AU10: 3 | AV10: 42 | AZ10: General further education college | BB10: 16 | BC10: 20 | BD10: 4 | BE10: 16 | BF10: 56 | CM10: Colleges | CN10: 312 | CW10: FES - Full Inspection | DC10: FES - Full Inspection Total | DD10: FES - Monitoring Inspection | DJ10: FES - Monitoring Inspection Total | DK10: FES - Short inspection | DQ10: FES - Short inspection Total | DR10: FES - Short inspection Conversion | DX10: FES - Short inspection Conversion Total | DY10: Grand Total | EI10: Dance and drama colleges | EJ10: 14 | EK10: 3 | EL10: 1 | EO10: 18 | GA10: Higher education institutions | GB10: 1 | GD10: 1 | GF10: 2 | GH10: Higher education institutions | GI10: 1 | GK10: 1 | GN10: 2 | GQ10: Community learning and skills providers | GS10: 15 | GT10: 7 | GU10: 2 | GV10: 15 | GW10: 3 | GX10: 42 | HB10: Row Labels | HC10: Declined | HD10: Improved | HE10: Stayed the Same | HF10: Grand Total | HK10: Community learning and skills providers | HL10: 14 | HM10: 174 | HN10: 35 | HO10: 3 | HP10: 2 | HQ10: 228
A11: FES - Short inspection Conversion | V11: Independent learning providers (including employer providers) | W11: 3 | X11: 26 | Y11: 21 | Z11: 9 | AA11: 11 | AB11: 2 | AC11: 72 | AF11: Higher education institution | AG11: 1 | AI11: 1 | AM11: 2 | AP11: Independent learning providers (including employer providers) | AQ11: 3 | AR11: 37 | AS11: 21 | AT11: 9 | AU11: 2 | AV11: 72 | AZ11: Higher education institution | BA11: 1 | BC11: 1 | BF11: 2 | CM11: Higher education institutions | CN11: 27 | CV11: Row Labels | CW11: 1 | CX11: 2 | CY11: 3 | CZ11: 4 | DA11: 9 | DB11: - | DD11: 1 | DE11: 2 | DF11: 3 | DG11: 4 | DH11: 9 | DI11: - | DK11: 1 | DL11: 2 | DM11: 3 | DN11: 4 | DO11: 9 | DP11: - | DR11: 1 | DS11: 2 | DT11: 3 | DU11: 4 | DV11: 9 | DW11: - | EI11: Higher education institutions | EJ11: 9 | EK11: 15 | EL11: 1 | EN11: 2 | EO11: 27 | GA11: Independent learning providers (including employer providers) | GB11: 3 | GC11: 26 | GD11: 21 | GE11: 9 | GF11: 59 | GH11: Independent learning providers (including employer providers) | GI11: 3 | GJ11: 37 | GK11: 21 | GL11: 9 | GM11: 2 | GN11: 72 | GQ11: Higher education institutions | GR11: 1 | GT11: 1 | GX11: 2 | HB11: 16-19 academies | HD11: 1 | HE11: 2 | HF11: 3 | HK11: Independent learning providers (including employer providers) | HL11: 49 | HM11: 283 | HN11: 63 | HO11: 11 | HP11: 100 | HQ11: 506
A12: Grand Total | B12: 8 | E12: 1 | G12: 9 | V12: Higher education institutions | W12: 1 | Y12: 1 | AC12: 2 | AF12: Independent learning provider | AG12: 1 | AH12: 23 | AI12: 16 | AJ12: 9 | AK12: 11 | AL12: 2 | AM12: 62 | AP12: Higher education institutions | AQ12: 1 | AS12: 1 | AV12: 2 | AZ12: Independent learning provider | BA12: 1 | BB12: 34 | BC12: 16 | BD12: 9 | BE12: 2 | BF12: 62 | CM12: 16-19 academies | CN12: 24 | CV12: 16-19 academies | CW12: 3 | CX12: 2 | CY12: 2 | CZ12: 1 | DC12: 8 | DI12: 1 | DJ12: 1 | DY12: 9 | EI12: Independent learning providers (including employer providers) | EJ12: 49 | EK12: 283 | EL12: 63 | EM12: 11 | EN12: 100 | EO12: 506 | GA12: Independent specialist colleges | GB12: 1 | GC12: 7 | GD12: 2 | GF12: 10 | GH12: Independent specialist colleges | GI12: 1 | GJ12: 8 | GK12: 2 | GM12: 1 | GN12: 12 | GQ12: Independent learning providers (including employer providers) | GR12: 3 | GS12: 26 | GT12: 21 | GU12: 9 | GV12: 11 | GW12: 2 | GX12: 72 | HB12: Colleges | HC12: 3 | HD12: 5 | HE12: 10 | HF12: 18 | HK12: Dance and drama colleges | HL12: 14 | HM12: 3 | HN12: 1 | HQ12: 18
V13: Colleges | W13: 2 | X13: 17 | Y13: 26 | Z13: 5 | AA13: 12 | AB13: 17 | AC13: 79 | AF13: Independent specialist college | AG13: 1 | AH13: 7 | AI13: 2 | AK13: 1 | AL13: 1 | AM13: 12 | AP13: Colleges | AQ13: 2 | AR13: 29 | AS13: 26 | AT13: 5 | AU13: 17 | AV13: 79 | AZ13: Independent specialist college | BA13: 1 | BB13: 8 | BC13: 2 | BE13: 1 | BF13: 12 | CM13: National Careers Service contractors | CN13: 13 | CV13: Colleges | CX13: 15 | CY13: 25 | CZ13: 5 | DC13: 45 | DI13: 17 | DJ13: 17 | DO13: 12 | DQ13: 12 | DR13: 2 | DS13: 2 | DT13: 1 | DX13: 5 | DY13: 79 | EI13: Independent specialist colleges | EJ13: 6 | EK13: 43 | EL13: 10 | EM13: 1 | EN13: 10 | EO13: 70 | GA13: National Careers Service contractors | GB13: 2 | GC13: 7 | GF13: 9 | GH13: National Careers Service contractors | GI13: 2 | GJ13: 7 | GN13: 9 | GQ13: Independent specialist colleges | GR13: 1 | GS13: 7 | GT13: 2 | GV13: 1 | GW13: 1 | GX13: 12 | HB13: Community learning and skills providers | HC13: 1 | HD13: 7 | HE13: 2 | HF13: 10 | HK13: Colleges | HL13: 62 | HM13: 167 | HN13: 68 | HO13: 13 | HP13: 2 | HQ13: 312
V14: National Careers Service contractors | W14: 2 | X14: 7 | AC14: 9 | AF14: Local authority provider | AH14: 5 | AI14: 5 | AJ14: 2 | AK14: 11 | AL14: 3 | AM14: 26 | AP14: National Careers Service contractors | AQ14: 2 | AR14: 7 | AV14: 9 | AZ14: Local authority provider | BB14: 16 | BC14: 5 | BD14: 2 | BE14: 3 | BF14: 26 | CM14: Grand Total | CN14: 1198 | CV14: Community learning and skills providers | CX14: 15 | CY14: 7 | CZ14: 2 | DC14: 24 | DI14: 3 | DJ14: 3 | DO14: 15 | DQ14: 15 | DY14: 42 | EI14: National Careers Service contractors | EJ14: 2 | EK14: 7 | EN14: 4 | EO14: 13 | GA14: Grand Total | GB14: 12 | GC14: 74 | GD14: 59 | GE14: 17 | GF14: 162 | GH14: Grand Total | GI14: 12 | GJ14: 113 | GK14: 59 | GL14: 17 | GM14: 24 | GN14: 225 | GQ14: National Careers Service contractors | GR14: 2 | GS14: 7 | GX14: 9 | HB14: Higher education institutions | HK14: Higher education institutions | HL14: 9 | HM14: 15 | HN14: 1 | HP14: 2 | HQ14: 27
V15: Grand Total | W15: 12 | X15: 74 | Y15: 59 | Z15: 17 | AA15: 39 | AB15: 24 | AC15: 225 | AF15: Not for profit organisation | AH15: 9 | AI15: 2 | AK15: 3 | AM15: 14 | AP15: Grand Total | AQ15: 12 | AR15: 113 | AS15: 59 | AT15: 17 | AU15: 24 | AV15: 225 | AZ15: Not for profit organisation | BB15: 12 | BC15: 2 | BF15: 14 | CV15: Higher education institutions | CY15: 1 | DC15: 1 | DR15: 1 | DX15: 1 | DY15: 2 | EI15: Grand Total | EJ15: 160 | EK15: 697 | EL15: 182 | EM15: 30 | EN15: 129 | EO15: 1198 | GQ15: Grand Total | GR15: 12 | GS15: 74 | GT15: 59 | GU15: 17 | GV15: 39 | GW15: 24 | GX15: 225 | HB15: Independent learning providers (including employer providers) | HC15: 3 | HD15: 11 | HE15: 3 | HF15: 17 | HK15: 16-19 academies | HL15: 4 | HM15: 5 | HN15: 4 | HO15: 2 | HP15: 9 | HQ15: 24
AF16: Sixth form college | AG16: 2 | AH16: 5 | AI16: 6 | AJ16: 1 | AK16: 5 | AL16: 1 | AM16: 20 | AZ16: Sixth form college | BA16: 2 | BB16: 10 | BC16: 6 | BD16: 1 | BE16: 1 | BF16: 20 | CV16: Independent learning providers (including employer providers) | CW16: 2 | CX16: 25 | CY16: 19 | CZ16: 9 | DC16: 55 | DI16: 2 | DJ16: 2 | DO16: 11 | DQ16: 11 | DR16: 1 | DS16: 1 | DT16: 2 | DX16: 4 | DY16: 72 | HB16: Independent specialist colleges | HD16: 1 | HF16: 1 | HK16: National Careers Service contractors | HL16: 2 | HM16: 7 | HP16: 4 | HQ16: 13
AF17: Specialist designated institution | AH17: 1 | AK17: 1 | AM17: 2 | AZ17: Specialist designated institution | BB17: 2 | BF17: 2 | CV17: Independent specialist colleges | CX17: 7 | CY17: 2 | DC17: 9 | DI17: 1 | DJ17: 1 | DO17: 1 | DQ17: 1 | DR17: 1 | DX17: 1 | DY17: 12 | HB17: National Careers Service contractors | HK17: Grand Total | HL17: 160 | HM17: 697 | HN17: 182 | HO17: 30 | HP17: 129 | HQ17: 1198
AF18: Specialist further education college | AH18: 1 | AK18: 2 | AM18: 3 | AZ18: Specialist further education college | BB18: 3 | BF18: 3 | CV18: National Careers Service contractors | CW18: 2 | CX18: 7 | DC18: 9 | DY18: 9 | HB18: Grand Total | HC18: 7 | HD18: 25 | HE18: 17 | HF18: 49
AF19: 16-19 academy sponsor led | AI19: 1 | AM19: 1 | AZ19: 16-19 academy sponsor led | BC19: 1 | BF19: 1 | CM19: Overall effectiveness | CV19: Grand Total | CW19: 7 | CX19: 71 | CY19: 56 | CZ19: 17 | DC19: 151 | DI19: 24 | DJ19: 24 | DO19: 39 | DQ19: 39 | DR19: 5 | DS19: 3 | DT19: 3 | DX19: 11 | DY19: 225
AF20: National Careers Service contractor | AG20: 2 | AH20: 7 | AM20: 9 | AZ20: National Careers Service contractor | BA20: 2 | BB20: 7 | BF20: 9
AF21: Grand Total | AG21: 12 | AH21: 74 | AI21: 59 | AJ21: 17 | AK21: 39 | AL21: 24 | AM21: 225 | AZ21: Grand Total | BA21: 12 | BB21: 113 | BC21: 59 | BD21: 17 | BE21: 24 | BF21: 225 | CM21: Count of Organisation ID | CN21: Column Labels
V22: Effectiveness of leadership and management | CM22: Row Labels | CN22: 1 | CO22: 2 | CP22: 3 | CQ22: 4 | CR22: Grand Total | GQ22: Effectiveness of leadership and management
CM23: 16-19 academies | CN23: 4 | CO23: 5 | CP23: 4 | CQ23: 2 | CR23: 15
V24: Count of Organisation ID | W24: Column Labels | AF24: Count of Organisation ID | AG24: Column Labels | CM24: Colleges | CN24: 62 | CO24: 167 | CP24: 68 | CQ24: 13 | CR24: 310 | GQ24: Count of URN | GR24: Column Labels
V25: Row Labels | W25: 1 | X25: 2 | Y25: 3 | Z25: 4 | AA25: - | AB25: Grand Total | AF25: Row Labels | AG25: 1 | AH25: 2 | AI25: 3 | AJ25: 4 | AK25: - | AL25: Grand Total | CM25: Community learning and skills providers | CN25: 14 | CO25: 174 | CP25: 35 | CQ25: 3 | CR25: 226 | GQ25: Row Labels | GR25: 1 | GS25: 2 | GT25: 3 | GU25: 4 | GV25: - | GW25: Grand Total
V26: 16-19 academies | W26: 3 | X26: 2 | Y26: 2 | Z26: 1 | AA26: 1 | AB26: 9 | AF26: 16-19 free school | AG26: 3 | AH26: 2 | AI26: 1 | AJ26: 1 | AK26: 1 | AL26: 8 | CM26: Dance and drama colleges | CN26: 14 | CO26: 3 | CP26: 1 | CR26: 18 | GQ26: 16-19 academies | GR26: 3 | GS26: 2 | GT26: 2 | GU26: 1 | GV26: 1 | GW26: 9
V27: Colleges | W27: 3 | X27: 17 | Y27: 25 | Z27: 5 | AA27: 29 | AB27: 79 | AF27: Employer provider | AG27: 2 | AH27: 3 | AI27: 5 | AL27: 10 | CM27: Higher education institutions | CN27: 9 | CO27: 15 | CP27: 1 | CR27: 25 | GQ27: Colleges | GR27: 3 | GS27: 17 | GT27: 25 | GU27: 5 | GV27: 29 | GW27: 79
V28: Community learning and skills providers | X28: 15 | Y28: 7 | Z28: 2 | AA28: 18 | AB28: 42 | AF28: General further education college | AG28: 1 | AH28: 11 | AI28: 19 | AJ28: 4 | AK28: 21 | AL28: 56 | CM28: Independent learning providers (including employer providers) | CN28: 49 | CO28: 283 | CP28: 63 | CQ28: 11 | CR28: 406 | EI28: Count of provider Name | EJ28: Column Labels | ET28: Count of provider Name | EU28: Column Labels | GQ28: Community learning and skills providers | GS28: 15 | GT28: 7 | GU28: 2 | GV28: 18 | GW28: 42
V29: Higher education institutions | W29: 1 | Y29: 1 | AB29: 2 | AF29: Higher education institution | AG29: 1 | AI29: 1 | AL29: 2 | CM29: Independent specialist colleges | CN29: 6 | CO29: 43 | CP29: 10 | CQ29: 1 | CR29: 60 | EI29: Row Labels | EJ29: 1 | EK29: 2 | EL29: 3 | EM29: 4 | EN29: NULL | EO29: Grand Total | ET29: Row Labels | EU29: 1 | EV29: 2 | EW29: 3 | EX29: 4 | EY29: NULL | EZ29: Grand Total | GQ29: Higher education institutions | GR29: 1 | GT29: 1 | GW29: 2
V30: Independent learning providers (including employer providers) | W30: 3 | X30: 26 | Y30: 21 | Z30: 9 | AA30: 13 | AB30: 72 | AF30: Independent learning provider | AG30: 1 | AH30: 23 | AI30: 16 | AJ30: 9 | AK30: 13 | AL30: 62 | CM30: National Careers Service contractors | CN30: 2 | CO30: 7 | CR30: 9 | EI30: 2011/2012 | EJ30: 19 | EK30: 127 | EL30: 95 | EM30: 29 | EN30: 11 | EO30: 281 | ET30: 2011/2012 | EU30: 19 | EV30: 127 | EW30: 95 | EX30: 29 | EY30: 11 | EZ30: 281 | GQ30: Independent learning providers (including employer providers) | GR30: 3 | GS30: 26 | GT30: 21 | GU30: 9 | GV30: 13 | GW30: 72
V31: Independent specialist colleges | W31: 1 | X31: 7 | Y31: 2 | AA31: 2 | AB31: 12 | AF31: Independent specialist college | AG31: 1 | AH31: 7 | AI31: 2 | AK31: 2 | AL31: 12 | CM31: Grand Total | CN31: 160 | CO31: 697 | CP31: 182 | CQ31: 30 | CR31: 1069 | EI31: Community learning and skills providers | EJ31: 3 | EK31: 37 | EL31: 19 | EM31: 3 | EO31: 62 | ET31: Dance and Drama College | EY31: 11 | EZ31: 11 | GQ31: Independent specialist colleges | GR31: 1 | GS31: 7 | GT31: 2 | GV31: 2 | GW31: 12
V32: National Careers Service contractors | W32: 2 | X32: 7 | AB32: 9 | AF32: Local authority provider | AH32: 5 | AI32: 5 | AJ32: 2 | AK32: 14 | AL32: 26 | EI32: Colleges | EJ32: 2 | EK32: 19 | EL32: 26 | EM32: 11 | EO32: 58 | ET32: Employer Provider | EU32: 3 | EV32: 11 | EW32: 6 | EX32: 5 | EZ32: 25 | GQ32: National Careers Service contractors | GR32: 2 | GS32: 7 | GW32: 9
V33: Grand Total | W33: 13 | X33: 74 | Y33: 58 | Z33: 17 | AA33: 63 | AB33: 225 | AF33: Not for profit organisation | AH33: 9 | AI33: 2 | AK33: 3 | AL33: 14 | EI33: Independent specialist colleges | EJ33: 2 | EK33: 4 | EL33: 4 | EM33: 2 | EO33: 12 | ET33: General further education college | EU33: 2 | EV33: 12 | EW33: 21 | EX33: 7 | EZ33: 42 | GQ33: Grand Total | GR33: 13 | GS33: 74 | GT33: 58 | GU33: 17 | GV33: 63 | GW33: 225
AF34: Sixth form college | AG34: 2 | AH34: 5 | AI34: 6 | AJ34: 1 | AK34: 6 | AL34: 20 | EI34: Dance and drama colleges | EN34: 11 | EO34: 11 | ET34: Higher Education Institution | EU34: 3 | EV34: 3 | EW34: 1 | EZ34: 7
AF35: Specialist designated institution | AH35: 1 | AK35: 1 | AL35: 2 | EI35: Independent learning providers (including employer providers) | EJ35: 9 | EK35: 62 | EL35: 45 | EM35: 13 | EO35: 129 | ET35: Independent Learning Provider | EU35: 6 | EV35: 51 | EW35: 39 | EX35: 8 | EZ35: 104
AF36: Specialist further education college | AH36: 1 | AK36: 2 | AL36: 3 | EI36: Higher education institutions | EJ36: 3 | EK36: 3 | EL36: 1 | EO36: 7 | ET36: Independent Specialist College | EU36: 2 | EV36: 4 | EW36: 4 | EX36: 2 | EZ36: 12
AF37: 16-19 academy sponsor led | AI37: 1 | AL37: 1 | CM37: Effectiveness of leadership and management | EI37: National Careers Service Contractors | EK37: 2 | EO37: 2 | ET37: Local Authority Provider | EV37: 21 | EW37: 10 | EZ37: 31
AF38: National Careers Service contractor | AG38: 2 | AH38: 7 | AL38: 9 | EI38: 2012/2013 | EJ38: 13 | EK38: 194 | EL38: 134 | EM38: 32 | EN38: 1 | EO38: 374 | ET38: National Careers Service Contractor | EV38: 2 | EZ38: 2
AF39: Grand Total | AG39: 13 | AH39: 74 | AI39: 58 | AJ39: 17 | AK39: 63 | AL39: 225 | CM39: Count of URN | CN39: Column Labels | EI39: Community learning and skills providers | EJ39: 4 | EK39: 42 | EL39: 25 | EM39: 12 | EO39: 83 | ET39: Not for Profit Organisation | EU39: 3 | EV39: 16 | EW39: 9 | EX39: 3 | EZ39: 31
V40: Quality of teaching, learning and assessment | CM40: Row Labels | CN40: 1 | CO40: 2 | CP40: 3 | CQ40: 4 | CR40: Grand Total | EI40: Colleges | EJ40: 4 | EK40: 55 | EL40: 42 | EM40: 5 | EO40: 106 | ET40: Sixth form college | EV40: 5 | EW40: 4 | EX40: 4 | EZ40: 13
CM41: 16-19 academies | CN41: 4 | CO41: 5 | CP41: 4 | CQ41: 2 | CR41: 15 | EI41: Independent specialist colleges | EJ41: 3 | EK41: 8 | EL41: 5 | EO41: 16 | ET41: Specialist further education college | EV41: 2 | EW41: 1 | EZ41: 3 | GQ41: Count of URN | GR41: Column Labels
V42: Count of Organisation ID | W42: Column Labels | AF42: Count of Organisation ID | AG42: Column Labels | CM42: Colleges | CN42: 78 | CO42: 152 | CP42: 68 | CQ42: 12 | CR42: 310 | EI42: Dance and drama colleges | EN42: 1 | EO42: 1 | ET42: 2012/2013 | EU42: 13 | EV42: 194 | EW42: 134 | EX42: 32 | EY42: 1 | EZ42: 374 | GQ42: Row Labels | GR42: 1 | GS42: 2 | GT42: 3 | GU42: 4 | GV42: - | GW42: Grand Total
V43: Row Labels | W43: 1 | X43: 2 | Y43: 3 | Z43: 4 | AA43: - | AB43: Grand Total | AF43: Row Labels | AG43: 1 | AH43: 2 | AI43: 3 | AJ43: 4 | AK43: - | AL43: Grand Total | CM43: Community learning and skills providers | CN43: 24 | CO43: 162 | CP43: 37 | CQ43: 3 | CR43: 226 | EI43: Independent learning providers (including employer providers) | EJ43: 1 | EK43: 77 | EL43: 61 | EM43: 15 | EO43: 154 | ET43: Dance and Drama College | EY43: 1 | EZ43: 1 | GQ43: 16-19 academies | GR43: 4 | GS43: 2 | GT43: 1 | GU43: 1 | GV43: 1 | GW43: 9
V44: 16-19 academies | W44: 3 | X44: 2 | Y44: 2 | Z44: 1 | AA44: 1 | AB44: 9 | AF44: 16-19 free school | AG44: 3 | AH44: 2 | AI44: 1 | AJ44: 1 | AK44: 1 | AL44: 8 | CM44: Dance and drama colleges | CN44: 13 | CO44: 4 | CP44: 1 | CR44: 18 | EI44: Higher education institutions | EJ44: 1 | EK44: 5 | EL44: 1 | EO44: 7 | ET44: Employer Provider | EU44: 1 | EV44: 12 | EW44: 6 | EX44: 3 | EZ44: 22 | GQ44: Colleges | GR44: 3 | GS44: 23 | GT44: 20 | GU44: 4 | GV44: 29 | GW44: 79
V45: Colleges | W45: 2 | X45: 17 | Y45: 28 | Z45: 3 | AA45: 29 | AB45: 79 | AF45: Employer provider | AG45: 2 | AH45: 4 | AI45: 4 | AL45: 10 | CM45: Higher education institutions | CN45: 6 | CO45: 13 | CP45: 6 | CR45: 25 | EI45: National Careers Service Contractors | EK45: 7 | EO45: 7 | ET45: General further education college | EU45: 2 | EV45: 36 | EW45: 29 | EX45: 4 | EZ45: 71 | GQ45: Community learning and skills providers | GR45: 1 | GS45: 17 | GT45: 5 | GU45: 1 | GV45: 18 | GW45: 42
V46: Community learning and skills providers | X46: 15 | Y46: 8 | Z46: 1 | AA46: 18 | AB46: 42 | AF46: General further education college | AH46: 11 | AI46: 22 | AJ46: 2 | AK46: 21 | AL46: 56 | CM46: Independent learning providers (including employer providers) | CN46: 50 | CO46: 278 | CP46: 67 | CQ46: 11 | CR46: 406 | EI46: 2013/2014 | EJ46: 18 | EK46: 227 | EL46: 100 | EM46: 20 | EO46: 365 | ET46: Higher Education Institution | EU46: 1 | EV46: 5 | EW46: 1 | EZ46: 7 | GQ46: Higher education institutions | GR46: 1 | GT46: 1 | GW46: 2
V47: Higher education institutions | W47: 1 | Y47: 1 | AB47: 2 | AF47: Higher education institution | AG47: 1 | AI47: 1 | AL47: 2 | CM47: Independent specialist colleges | CN47: 6 | CO47: 42 | CP47: 11 | CQ47: 1 | CR47: 60 | EI47: Community learning and skills providers | EJ47: 3 | EK47: 49 | EL47: 17 | EM47: 2 | EO47: 71 | ET47: Independent Learning Provider | EV47: 65 | EW47: 55 | EX47: 12 | EZ47: 132 | GQ47: Independent learning providers (including employer providers) | GR47: 4 | GS47: 30 | GT47: 18 | GU47: 7 | GV47: 13 | GW47: 72
V48: Independent learning providers (including employer providers) | W48: 3 | X48: 27 | Y48: 21 | Z48: 8 | AA48: 13 | AB48: 72 | AF48: Independent learning provider | AG48: 1 | AH48: 23 | AI48: 17 | AJ48: 8 | AK48: 13 | AL48: 62 | CM48: National Careers Service contractors | CN48: 2 | CO48: 7 | CR48: 9 | EI48: Colleges | EJ48: 7 | EK48: 64 | EL48: 36 | EM48: 5 | EO48: 112 | ET48: Independent Specialist College | EU48: 3 | EV48: 8 | EW48: 5 | EZ48: 16 | GQ48: Independent specialist colleges | GR48: 1 | GS48: 8 | GT48: 1 | GV48: 2 | GW48: 12
V49: Independent specialist colleges | W49: 1 | X49: 7 | Y49: 2 | AA49: 2 | AB49: 12 | AF49: Independent specialist college | AG49: 1 | AH49: 7 | AI49: 2 | AK49: 2 | AL49: 12 | CM49: Grand Total | CN49: 183 | CO49: 663 | CP49: 194 | CQ49: 29 | CR49: 1069 | EI49: Independent specialist colleges | EJ49: 1 | EK49: 16 | EL49: 3 | EM49: 1 | EO49: 21 | ET49: Local Authority Provider | EU49: 1 | EV49: 26 | EW49: 11 | EX49: 1 | EZ49: 39 | GQ49: National Careers Service contractors | GR49: 2 | GS49: 7 | GW49: 9
V50: National Careers Service contractors | W50: 1 | X50: 8 | AB50: 9 | AF50: Local authority provider | AH50: 5 | AI50: 6 | AJ50: 1 | AK50: 14 | AL50: 26 | EI50: 16-19 academies | EJ50: 1 | EK50: 1 | EL50: 2 | EO50: 4 | ET50: National Careers Service Contractor | EV50: 7 | EZ50: 7 | GQ50: Grand Total | GR50: 16 | GS50: 87 | GT50: 46 | GU50: 13 | GV50: 63 | GW50: 225
V51: Grand Total | W51: 11 | X51: 76 | Y51: 62 | Z51: 13 | AA51: 63 | AB51: 225 | AF51: Not for profit organisation | AH51: 9 | AI51: 2 | AK51: 3 | AL51: 14 | EI51: Independent learning providers (including employer providers) | EJ51: 4 | EK51: 83 | EL51: 42 | EM51: 12 | EO51: 141 | ET51: Not for Profit Organisation | EU51: 2 | EV51: 15 | EW51: 14 | EX51: 10 | EZ51: 41
AF52: Sixth form college | AG52: 2 | AH52: 5 | AI52: 6 | AJ52: 1 | AK52: 6 | AL52: 20 | EI52: Higher education institutions | EJ52: 2 | EK52: 8 | EO52: 10 | ET52: Sixth form college | EU52: 2 | EV52: 15 | EW52: 12 | EX52: 1 | EZ52: 30
AF53: Specialist designated institution | AH53: 1 | AK53: 1 | AL53: 2 | EI53: National Careers Service Contractors | EK53: 6 | EO53: 6 | ET53: Specialist designated institution | EU53: 1 | EV53: 1 | EX53: 1 | EZ53: 3
AF54: Specialist further education college | AH54: 1 | AK54: 2 | AL54: 3 | EI54: 2014/2015 | EJ54: 13 | EK54: 120 | EL54: 106 | EM54: 33 | EO54: 272 | ET54: Specialist further education college | EV54: 4 | EW54: 1 | EZ54: 5
AF55: 16-19 academy sponsor led | AI55: 1 | AL55: 1 | CM55: Personal development, behaviour and welfare | EI55: Community learning and skills providers | EJ55: 2 | EK55: 32 | EL55: 19 | EM55: 7 | EO55: 60 | ET55: 2013/2014 | EU55: 18 | EV55: 227 | EW55: 100 | EX55: 20 | EZ55: 365
AF56: National Careers Service contractor | AG56: 1 | AH56: 8 | AL56: 9 | EI56: Colleges | EJ56: 2 | EK56: 25 | EL56: 31 | EM56: 8 | EO56: 66 | ET56: 16-19 Academy Converter | EW56: 2 | EZ56: 2 | GQ56: Quality of teaching, learning and assessment
AF57: Grand Total | AG57: 11 | AH57: 76 | AI57: 62 | AJ57: 13 | AK57: 63 | AL57: 225 | CM57: Count of URN | CN57: Column Labels | EI57: Independent specialist colleges | EK57: 5 | EL57: 4 | EM57: 2 | EO57: 11 | ET57: 16-19 Free School | EU57: 1 | EV57: 1 | EZ57: 2
V58: Personal development, behaviour and welfare | CM58: Row Labels | CN58: 1 | CO58: 2 | CP58: 3 | CQ58: 4 | CR58: Grand Total | EI58: 16-19 academies | EK58: 1 | EL58: 3 | EM58: 2 | EO58: 6 | ET58: Employer Provider | EV58: 6 | EW58: 5 | EX58: 3 | EZ58: 14 | GQ58: Count of URN | GR58: Column Labels
CM59: 16-19 academies | CN59: 4 | CO59: 3 | CP59: 3 | CQ59: 2 | CR59: 12 | EI59: Independent learning providers (including employer providers) | EJ59: 7 | EK59: 57 | EL59: 49 | EM59: 14 | EO59: 127 | ET59: General further education college | EU59: 5 | EV59: 41 | EW59: 26 | EX59: 4 | EZ59: 76 | GQ59: Row Labels | GR59: 1 | GS59: 2 | GT59: 3 | GU59: 4 | GV59: - | GW59: Grand Total
V60: Count of Organisation ID | W60: Column Labels | AF60: Count of Organisation ID | AG60: Column Labels | CM60: Colleges | CN60: 6 | CO60: 61 | CP60: 53 | CQ60: 7 | CR60: 127 | EI60: Higher education institutions | EJ60: 2 | EO60: 2 | ET60: Higher Education Institution | EU60: 2 | EV60: 8 | EZ60: 10 | GQ60: 16-19 academies | GR60: 3 | GS60: 2 | GT60: 2 | GU60: 1 | GV60: 1 | GW60: 9
V61: Row Labels | W61: 1 | X61: 2 | Y61: 3 | Z61: 4 | AA61: - | AB61: Grand Total | AF61: Row Labels | AG61: 1 | AH61: 2 | AI61: 3 | AJ61: 4 | AK61: - | AL61: Grand Total | CM61: Community learning and skills providers | CN61: 6 | CO61: 48 | CP61: 25 | CQ61: 1 | CR61: 80 | EI61: 2015/2016 | EJ61: 24 | EK61: 254 | EL61: 98 | EM61: 34 | EO61: 410 | ET61: Independent Learning Provider | EU61: 4 | EV61: 77 | EW61: 37 | EX61: 9 | EZ61: 127 | GQ61: Colleges | GR61: 2 | GS61: 17 | GT61: 28 | GU61: 3 | GV61: 29 | GW61: 79
V62: 16-19 academies | W62: 4 | X62: 2 | Y62: 1 | Z62: 1 | AA62: 1 | AB62: 9 | AF62: 16-19 free school | AG62: 4 | AH62: 1 | AI62: 1 | AJ62: 1 | AK62: 1 | AL62: 8 | CM62: Dance and drama colleges | CN62: 14 | CO62: 3 | CP62: 1 | CR62: 18 | EI62: Community learning and skills providers | EJ62: 3 | EK62: 62 | EL62: 23 | EM62: 5 | EO62: 93 | ET62: Independent Specialist College | EU62: 1 | EV62: 16 | EW62: 3 | EX62: 1 | EZ62: 21 | GQ62: Community learning and skills providers | GS62: 15 | GT62: 8 | GU62: 1 | GV62: 18 | GW62: 42
V63: Colleges | W63: 3 | X63: 23 | Y63: 20 | Z63: 4 | AA63: 29 | AB63: 79 | AF63: Employer provider | AG63: 3 | AH63: 4 | AI63: 3 | AL63: 10 | CM63: Higher education institutions | CN63: 1 | CP63: 1 | CR63: 2 | EI63: Colleges | EJ63: 2 | EK63: 57 | EL63: 37 | EM63: 12 | EO63: 108 | ET63: Local Authority Provider | EU63: 1 | EV63: 23 | EW63: 7 | EZ63: 31 | GQ63: Higher education institutions | GR63: 1 | GT63: 1 | GW63: 2
V64: Community learning and skills providers | W64: 1 | X64: 17 | Y64: 5 | Z64: 1 | AA64: 18 | AB64: 42 | AF64: General further education college | AG64: 1 | AH64: 14 | AI64: 17 | AJ64: 3 | AK64: 21 | AL64: 56 | CM64: Independent learning providers (including employer providers) | CN64: 10 | CO64: 98 | CP64: 37 | CQ64: 6 | CR64: 151 | EI64: Independent specialist colleges | EJ64: 1 | EK64: 15 | EL64: 6 | EM64: 1 | EO64: 23 | ET64: National Careers Service Contractor | EV64: 6 | EZ64: 6 | GQ64: Independent learning providers (including employer providers) | GR64: 3 | GS64: 27 | GT64: 21 | GU64: 8 | GV64: 13 | GW64: 72
V65: Higher education institutions | W65: 1 | Y65: 1 | AB65: 2 | AF65: Higher education institution | AG65: 1 | AI65: 1 | AL65: 2 | CM65: Independent specialist colleges | CN65: 4 | CO65: 19 | CP65: 4 | CQ65: 1 | CR65: 28 | EI65: 16-19 academies | EK65: 1 | EL65: 2 | EM65: 1 | EO65: 4 | ET65: Not for Profit Organisation | EU65: 1 | EV65: 23 | EW65: 10 | EX65: 2 | EZ65: 36 | GQ65: Independent specialist colleges | GR65: 1 | GS65: 7 | GT65: 2 | GV65: 2 | GW65: 12
V66: Independent learning providers (including employer providers) | W66: 4 | X66: 30 | Y66: 18 | Z66: 7 | AA66: 13 | AB66: 72 | AF66: Independent learning provider | AG66: 1 | AH66: 26 | AI66: 15 | AJ66: 7 | AK66: 13 | AL66: 62 | CM66: National Careers Service contractors | CN66: 2 | CO66: 7 | CR66: 9 | EI66: Dance and drama colleges | EJ66: 14 | EK66: 3 | EL66: 1 | EO66: 18 | ET66: Sixth form college | EU66: 2 | EV66: 19 | EW66: 9 | EX66: 1 | EZ66: 31 | GQ66: National Careers Service contractors | GR66: 1 | GS66: 8 | GW66: 9
V67: Independent specialist colleges | W67: 1 | X67: 8 | Y67: 1 | AA67: 2 | AB67: 12 | AF67: Independent specialist college | AG67: 1 | AH67: 8 | AI67: 1 | AK67: 2 | AL67: 12 | CM67: Grand Total | CN67: 47 | CO67: 239 | CP67: 124 | CQ67: 17 | CR67: 427 | EI67: Independent learning providers (including employer providers) | EJ67: 4 | EK67: 113 | EL67: 29 | EM67: 15 | EO67: 161 | ET67: Specialist designated institution | EU67: 1 | EV67: 3 | EZ67: 4 | GQ67: Grand Total | GR67: 11 | GS67: 76 | GT67: 62 | GU67: 13 | GV67: 63 | GW67: 225
V68: National Careers Service contractors | W68: 2 | X68: 7 | AB68: 9 | AF68: Local authority provider | AH68: 6 | AI68: 5 | AJ68: 1 | AK68: 14 | AL68: 26 | EI68: Higher education institutions | EK68: 3 | EO68: 3 | ET68: Specialist further education college | EV68: 4 | EW68: 1 | EZ68: 5
V69: Grand Total | W69: 16 | X69: 87 | Y69: 46 | Z69: 13 | AA69: 63 | AB69: 225 | AF69: Not for profit organisation | AH69: 11 | AK69: 3 | AL69: 14 | EI69: Grand Total | EJ69: 87 | EK69: 922 | EL69: 533 | EM69: 148 | EN69: 12 | EO69: 1702 | ET69: 2014/2015 | EU69: 13 | EV69: 120 | EW69: 106 | EX69: 33 | EZ69: 272
AF70: Sixth form college | AG70: 2 | AH70: 8 | AI70: 3 | AJ70: 1 | AK70: 6 | AL70: 20 | ET70: 16-19 Academy Sponsor Led | EW70: 1 | EZ70: 1
AF71: Specialist designated institution | AG71: 1 | AK71: 1 | AL71: 2 | ET71: 16-19 Free School | EV71: 1 | EW71: 2 | EX71: 2 | EZ71: 5
AF72: Specialist further education college | AH72: 1 | AK72: 2 | AL72: 3 | ET72: Employer Provider | EU72: 3 | EV72: 4 | EW72: 4 | EX72: 2 | EZ72: 13
AF73: 16-19 academy sponsor led | AH73: 1 | AL73: 1 | CM73: Quality of teaching, learning and assessment | ET73: General further education college | EU73: 2 | EV73: 15 | EW73: 27 | EX73: 5 | EZ73: 49 | GQ73: Outcomes for learners
AF74: National Careers Service contractor | AG74: 2 | AH74: 7 | AL74: 9 | ET74: Higher Education Institution | EU74: 2 | EZ74: 2
AF75: Grand Total | AG75: 16 | AH75: 87 | AI75: 46 | AJ75: 13 | AK75: 63 | AL75: 225 | CM75: Count of URN | CN75: Column Labels | ET75: Independent Learning Provider | EU75: 4 | EV75: 53 | EW75: 45 | EX75: 12 | EZ75: 114 | GQ75: Count of URN | GR75: Column Labels
V76: Outcomes for learners | CM76: Row Labels | CN76: 1 | CO76: 2 | CP76: 3 | CQ76: 4 | CR76: Grand Total | ET76: Independent Specialist College | EV76: 5 | EW76: 4 | EX76: 2 | EZ76: 11 | GQ76: Row Labels | GR76: 1 | GS76: 2 | GT76: 3 | GU76: 4 | GV76: - | GW76: Grand Total
CM77: 16-19 academies | CN77: 4 | CO77: 5 | CP77: 4 | CQ77: 2 | CR77: 15 | ET77: Local Authority Provider | EU77: 1 | EV77: 20 | EW77: 8 | EX77: 4 | EZ77: 33 | GQ77: 16-19 academies | GR77: 3 | GS77: 2 | GT77: 2 | GU77: 1 | GV77: 1 | GW77: 9
V78: Count of Organisation ID | W78: Column Labels | AF78: Count of Organisation ID | AG78: Column Labels | CM78: Colleges | CN78: 45 | CO78: 182 | CP78: 76 | CQ78: 7 | CR78: 310 | ET78: Not for Profit Organisation | EU78: 1 | EV78: 11 | EW78: 11 | EX78: 2 | EZ78: 25 | GQ78: Colleges | GR78: 2 | GS78: 17 | GT78: 28 | GU78: 3 | GV78: 29 | GW78: 79
V79: Row Labels | W79: 1 | X79: 2 | Y79: 3 | Z79: 4 | AA79: - | AB79: Grand Total | AF79: Row Labels | AG79: 1 | AH79: 2 | AI79: 3 | AJ79: 4 | AK79: - | AL79: Grand Total | CM79: Community learning and skills providers | CN79: 14 | CO79: 171 | CP79: 40 | CQ79: 1 | CR79: 226 | ET79: Sixth form college | EV79: 7 | EW79: 4 | EX79: 3 | EZ79: 14 | GQ79: Community learning and skills providers | GR79: 1 | GS79: 13 | GT79: 9 | GU79: 1 | GV79: 18 | GW79: 42
V80: 16-19 academies | W80: 3 | X80: 2 | Y80: 2 | Z80: 1 | AA80: 1 | AB80: 9 | AF80: 16-19 free school | AG80: 3 | AH80: 2 | AI80: 1 | AJ80: 1 | AK80: 1 | AL80: 8 | CM80: Dance and drama colleges | CN80: 14 | CO80: 3 | CP80: 1 | CR80: 18 | ET80: Specialist designated institution | EV80: 1 | EX80: 1 | EZ80: 2 | GQ80: Higher education institutions | GR80: 1 | GT80: 1 | GW80: 2
V81: Colleges | W81: 2 | X81: 17 | Y81: 28 | Z81: 3 | AA81: 29 | AB81: 79 | AF81: Employer provider | AG81: 2 | AH81: 4 | AI81: 4 | AL81: 10 | CM81: Higher education institutions | CN81: 8 | CO81: 16 | CP81: 1 | CR81: 25 | ET81: Specialist further education college | EV81: 3 | EZ81: 3 | GQ81: Independent learning providers (including employer providers) | GR81: 3 | GS81: 26 | GT81: 20 | GU81: 10 | GV81: 13 | GW81: 72
V82: Community learning and skills providers | W82: 1 | X82: 13 | Y82: 9 | Z82: 1 | AA82: 18 | AB82: 42 | AF82: General further education college | AH82: 11 | AI82: 22 | AJ82: 2 | AK82: 21 | AL82: 56 | CM82: Independent learning providers (including employer providers) | CN82: 39 | CO82: 283 | CP82: 73 | CQ82: 8 | CR82: 403 | ET82: 2015/2016 | EU82: 24 | EV82: 254 | EW82: 98 | EX82: 34 | EZ82: 410 | GQ82: Independent specialist colleges | GR82: 2 | GS82: 7 | GT82: 1 | GV82: 2 | GW82: 12
V83: Higher education institutions | W83: 1 | Y83: 1 | AB83: 2 | AF83: Higher education institution | AG83: 1 | AI83: 1 | AL83: 2 | CM83: Independent specialist colleges | CN83: 5 | CO83: 44 | CP83: 10 | CQ83: 1 | CR83: 60 | ET83: 16-19 Academy Converter | EV83: 1 | EW83: 1 | EZ83: 2 | GQ83: National Careers Service contractors | GR83: 2 | GS83: 7 | GW83: 9
A84: Table 1b | V84: Independent learning providers (including employer providers) | W84: 3 | X84: 26 | Y84: 20 | Z84: 10 | AA84: 13 | AB84: 72 | AF84: Independent learning provider | AG84: 1 | AH84: 22 | AI84: 16 | AJ84: 10 | AK84: 13 | AL84: 62 | CM84: National Careers Service contractors | CN84: 1 | CO84: 8 | CR84: 9 | ET84: 16-19 Free School | EW84: 1 | EX84: 1 | EZ84: 2 | GQ84: Grand Total | GR84: 14 | GS84: 72 | GT84: 61 | GU84: 15 | GV84: 63 | GW84: 225
V85: Independent specialist colleges | W85: 2 | X85: 7 | Y85: 1 | AA85: 2 | AB85: 12 | AF85: Independent specialist college | AG85: 2 | AH85: 7 | AI85: 1 | AK85: 2 | AL85: 12 | CM85: Grand Total | CN85: 130 | CO85: 712 | CP85: 205 | CQ85: 19 | CR85: 1066 | ET85: Dance and Drama College | EU85: 14 | EV85: 3 | EW85: 1 | EZ85: 18
V86: National Careers Service contractors | W86: 2 | X86: 7 | AB86: 9 | AF86: Local authority provider | AH86: 5 | AI86: 6 | AJ86: 1 | AK86: 14 | AL86: 26 | ET86: Employer Provider | EU86: 1 | EV86: 12 | EW86: 5 | EX86: 3 | EZ86: 21
A87: Count of URN | B87: Column Labels | V87: Grand Total | W87: 14 | X87: 72 | Y87: 61 | Z87: 15 | AA87: 63 | AB87: 225 | AF87: Not for profit organisation | AG87: 1 | AH87: 7 | AI87: 3 | AK87: 3 | AL87: 14 | ET87: General further education college | EU87: 1 | EV87: 41 | EW87: 28 | EX87: 12 | EZ87: 82
B88: FES - Full Inspection | D88: FES - Full Inspection Total | E88: FES - Monitoring Inspection | G88: FES - Monitoring Inspection Total | H88: FES - Short inspection | I88: FES - Short inspection Conversion | J88: Grand Total | AF88: Sixth form college | AG88: 2 | AH88: 5 | AI88: 6 | AJ88: 1 | AK88: 6 | AL88: 20 | ET88: Higher Education Institution | EV88: 3 | EZ88: 3
A89: Row Labels | B89: Full | C89: Reinspection | E89: Monitoring | F89: Reinspection monitoring | AF89: Specialist designated institution | AH89: 1 | AK89: 1 | AL89: 2 | ET89: Independent Learning Provider | EU89: 3 | EV89: 101 | EW89: 24 | EX89: 12 | EZ89: 140
A90: Independent specialist colleges | B90: 9 | D90: 9 | F90: 1 | G90: 1 | H90: 1 | I90: 1 | J90: 12 | AF90: Specialist further education college | AH90: 1 | AK90: 2 | AL90: 3 | ET90: Independent Specialist College | EU90: 1 | EV90: 15 | EW90: 6 | EX90: 1 | EZ90: 23 | GQ90: Full-time provision for 14 to 16-year-olds
A91: 16-19 academies | B91: 8 | D91: 8 | F91: 1 | G91: 1 | J91: 9 | AF91: 16-19 academy sponsor led | AI91: 1 | AL91: 1 | CM91: Outcomes for learners | ET91: Local Authority Provider | EU91: 1 | EV91: 44 | EW91: 16 | EX91: 2 | EZ91: 63
A92: Community learning and skills providers | B92: 23 | C92: 1 | D92: 24 | F92: 3 | G92: 3 | H92: 15 | J92: 42 | AF92: National Careers Service contractor | AG92: 2 | AH92: 7 | AL92: 9 | ET92: Not for Profit Organisation | EU92: 2 | EV92: 17 | EW92: 6 | EX92: 3 | EZ92: 28 | GQ92: Count of URN | GR92: Column Labels
A93: Independent learning providers (including employer providers) | B93: 54 | C93: 1 | D93: 55 | F93: 2 | G93: 2 | H93: 11 | I93: 4 | J93: 72 | AF93: Grand Total | AG93: 14 | AH93: 72 | AI93: 61 | AJ93: 15 | AK93: 63 | AL93: 225 | CM93: Count of URN | CN93: Column Labels | ET93: Sixth form college | EU93: 1 | EV93: 15 | EW93: 7 | EZ93: 23 | GQ93: Row Labels | GR93: 2 | GS93: - | GT93: Grand Total
A94: Higher education institutions | B94: 1 | D94: 1 | I94: 1 | J94: 2 | V94: 16-19 study programmes | CM94: Row Labels | CN94: 1 | CO94: 2 | CP94: 3 | CQ94: 4 | CR94: Grand Total | ET94: Specialist designated institution | EV94: 1 | EW94: 1 | EZ94: 2 | GQ94: 16-19 academies | GS94: 9 | GT94: 9
A95: Colleges | B95: 42 | C95: 3 | D95: 45 | E95: 2 | F95: 15 | G95: 17 | H95: 12 | I95: 5 | J95: 79 | CM95: 16-19 academies | CN95: 4 | CO95: 5 | CP95: 4 | CQ95: 2 | CR95: 15 | ET95: Specialist further education college | EV95: 1 | EW95: 2 | EZ95: 3 | GQ95: Colleges | GR95: 2 | GS95: 77 | GT95: 79
A96: National Careers Service contractors | B96: 9 | D96: 9 | J96: 9 | V96: Count of Organisation ID | W96: Column Labels | AF96: Count of Organisation ID | AG96: Column Labels | CM96: Colleges | CN96: 54 | CO96: 152 | CP96: 95 | CQ96: 9 | CR96: 310 | ET96: Grand Total | EU96: 87 | EV96: 922 | EW96: 533 | EX96: 148 | EY96: 12 | EZ96: 1702 | GQ96: Community learning and skills providers | GR96: 1 | GS96: 41 | GT96: 42
A97: Grand Total | B97: 146 | C97: 5 | D97: 151 | E97: 2 | F97: 22 | G97: 24 | H97: 39 | I97: 11 | J97: 225 | V97: Row Labels | W97: 1 | X97: 2 | Y97: 3 | Z97: 4 | AA97: - | AB97: Grand Total | AF97: Row Labels | AG97: 1 | AH97: 2 | AI97: 3 | AJ97: 4 | AK97: - | AL97: Grand Total | CM97: Community learning and skills providers | CN97: 17 | CO97: 168 | CP97: 40 | CQ97: 1 | CR97: 226 | GQ97: Higher education institutions | GS97: 2 | GT97: 2
V98: 16-19 academies | W98: 3 | X98: 2 | Y98: 2 | Z98: 1 | AA98: 1 | AB98: 9 | AF98: 16-19 free school | AG98: 3 | AH98: 2 | AI98: 1 | AJ98: 1 | AK98: 1 | AL98: 8 | CM98: Dance and drama colleges | CN98: 14 | CO98: 3 | CP98: 1 | CR98: 18 | GQ98: Independent learning providers (including employer providers) | GS98: 72 | GT98: 72
V99: Colleges | W99: 2 | X99: 17 | Y99: 27 | Z99: 3 | AA99: 30 | AB99: 79 | AF99: Employer provider | AI99: 1 | AK99: 9 | AL99: 10 | CM99: Higher education institutions | CN99: 11 | CO99: 12 | CP99: 2 | CR99: 25 | GQ99: Independent specialist colleges | GS99: 12 | GT99: 12
V100: Community learning and skills providers | X100: 5 | Y100: 2 | Z100: 1 | AA100: 34 | AB100: 42 | AF100: General further education college | AH100: 11 | AI100: 21 | AJ100: 2 | AK100: 22 | AL100: 56 | CM100: Independent learning providers (including employer providers) | CN100: 60 | CO100: 264 | CP100: 68 | CQ100: 11 | CR100: 403 | GQ100: National Careers Service contractors | GS100: 9 | GT100: 9
V101: Higher education institutions | W101: 1 | Y101: 1 | AB101: 2 | AF101: Higher education institution | AG101: 1 | AI101: 1 | AL101: 2 | CM101: Independent specialist colleges | CN101: 10 | CO101: 41 | CP101: 8 | CQ101: 1 | CR101: 60 | GQ101: Grand Total | GR101: 3 | GS101: 222 | GT101: 225
V102: Independent learning providers (including employer providers) | W102: 1 | X102: 5 | Y102: 7 | Z102: 4 | AA102: 55 | AB102: 72 | AF102: Independent learning provider | AG102: 1 | AH102: 5 | AI102: 6 | AJ102: 4 | AK102: 46 | AL102: 62 | CM102: National Careers Service contractors | CN102: 2 | CO102: 7 | CR102: 9
V103: Independent specialist colleges | AA103: 12 | AB103: 12 | AF103: Independent specialist college | AK103: 12 | AL103: 12 | CM103: Grand Total | CN103: 172 | CO103: 652 | CP103: 218 | CQ103: 24 | CR103: 1066
V104: National Careers Service contractors | AA104: 9 | AB104: 9 | AF104: Local authority provider | AH104: 1 | AI104: 2 | AJ104: 1 | AK104: 22 | AL104: 26
V105: Grand Total | W105: 7 | X105: 29 | Y105: 39 | Z105: 9 | AA105: 141 | AB105: 225 | AF105: Not for profit organisation | AH105: 4 | AK105: 10 | AL105: 14
AF106: Sixth form college | AG106: 2 | AH106: 5 | AI106: 6 | AJ106: 1 | AK106: 6 | AL106: 20
AF107: Specialist designated institution | AK107: 2 | AL107: 2 | GQ107: 16-19 study programmes
AF108: Specialist further education college | AH108: 1 | AK108: 2 | AL108: 3
AF109: 16-19 academy sponsor led | AI109: 1 | AL109: 1 | CM109: Full-time provision for 14 to 16-year-olds | GQ109: Count of URN | GR109: Column Labels
AF110: National Careers Service contractor | AK110: 9 | AL110: 9 | GQ110: Row Labels | GR110: 1 | GS110: 2 | GT110: 3 | GU110: 4 | GV110: - | GW110: Grand Total
AF111: Grand Total | AG111: 7 | AH111: 29 | AI111: 39 | AJ111: 9 | AK111: 141 | AL111: 225 | CM111: Count of URN | CN111: Column Labels | GQ111: 16-19 academies | GR111: 3 | GS111: 2 | GT111: 2 | GU111: 1 | GV111: 1 | GW111: 9
V112: Adult learning programmes | CM112: Row Labels | CN112: 1 | CO112: 2 | CP112: Grand Total | GQ112: Colleges | GR112: 2 | GS112: 17 | GT112: 27 | GU112: 3 | GV112: 30 | GW112: 79
CM113: 16-19 academies | CN113: 1 | CP113: 1 | GQ113: Community learning and skills providers | GS113: 5 | GT113: 2 | GU113: 1 | GV113: 34 | GW113: 42
V114: Count of Organisation ID | W114: Column Labels | AF114: Count of Organisation ID | AG114: Column Labels | CM114: Colleges | CN114: 1 | CO114: 10 | CP114: 11 | GQ114: Higher education institutions | GR114: 1 | GT114: 1 | GW114: 2
V115: Row Labels | W115: 1 | X115: 2 | Y115: 3 | Z115: 4 | AA115: - | AB115: Grand Total | AF115: Row Labels | AG115: 1 | AH115: 2 | AI115: 3 | AJ115: 4 | AK115: - | AL115: Grand Total | CM115: Community learning and skills providers | CO115: 1 | CP115: 1 | GQ115: Independent learning providers (including employer providers) | GR115: 1 | GS115: 5 | GT115: 7 | GU115: 4 | GV115: 55 | GW115: 72
V116: 16-19 academies | AA116: 9 | AB116: 9 | AF116: 16-19 free school | AK116: 8 | AL116: 8 | CM116: Dance and drama colleges | GQ116: Independent specialist colleges | GV116: 12 | GW116: 12
V117: Colleges | W117: 1 | X117: 16 | Y117: 16 | Z117: 1 | AA117: 45 | AB117: 79 | AF117: Employer provider | AK117: 10 | AL117: 10 | CM117: Higher education institutions | GQ117: National Careers Service contractors | GV117: 9 | GW117: 9
V118: Community learning and skills providers | X118: 8 | Y118: 4 | Z118: 2 | AA118: 28 | AB118: 42 | AF118: General further education college | AG118: 1 | AH118: 14 | AI118: 16 | AJ118: 1 | AK118: 24 | AL118: 56 | CM118: Independent learning providers (including employer providers) | GQ118: Grand Total | GR118: 7 | GS118: 29 | GT118: 39 | GU118: 9 | GV118: 141 | GW118: 225
V119: Higher education institutions | Y119: 1 | AA119: 1 | AB119: 2 | AF119: Higher education institution | AI119: 1 | AK119: 1 | AL119: 2 | CM119: Independent specialist colleges
V120: Independent learning providers (including employer providers) | W120: 1 | X120: 5 | Y120: 3 | Z120: 2 | AA120: 61 | AB120: 72 | AF120: Independent learning provider | AG120: 1 | AH120: 5 | AI120: 3 | AJ120: 2 | AK120: 51 | AL120: 62 | CM120: National Careers Service contractors
V121: Independent specialist colleges | AA121: 12 | AB121: 12 | AF121: Independent specialist college | AK121: 12 | AL121: 12 | CM121: Grand Total | CN121: 2 | CO121: 11 | CP121: 13
V122: National Careers Service contractors | AA122: 9 | AB122: 9 | AF122: Local authority provider | AH122: 4 | AI122: 4 | AJ122: 2 | AK122: 16 | AL122: 26
V123: Grand Total | W123: 2 | X123: 29 | Y123: 24 | Z123: 5 | AA123: 165 | AB123: 225 | AF123: Not for profit organisation | AH123: 3 | AK123: 11 | AL123: 14
AF124: Sixth form college | AH124: 1 | AK124: 19 | AL124: 20 | GQ124: Adult learning programmes
AF125: Specialist designated institution | AH125: 1 | AK125: 1 | AL125: 2
AF126: Specialist further education college | AH126: 1 | AK126: 2 | AL126: 3 | GQ126: Count of URN | GR126: Column Labels
AF127: 16-19 academy sponsor led | AK127: 1 | AL127: 1 | CM127: 16-19 study programmes | GQ127: Row Labels | GR127: 1 | GS127: 2 | GT127: 3 | GU127: 4 | GV127: - | GW127: Grand Total
AF128: National Careers Service contractor | AK128: 9 | AL128: 9 | GQ128: 16-19 academies | GV128: 9 | GW128: 9
AF129: Grand Total | AG129: 2 | AH129: 29 | AI129: 24 | AJ129: 5 | AK129: 165 | AL129: 225 | CM129: Count of URN | CN129: Column Labels | GQ129: Colleges | GR129: 1 | GS129: 16 | GT129: 16 | GU129: 1 | GV129: 45 | GW129: 79
V130: Apprenticeships | CM130: Row Labels | CN130: 1 | CO130: 2 | CP130: 3 | CQ130: 4 | CR130: Grand Total | GQ130: Community learning and skills providers | GS130: 8 | GT130: 4 | GU130: 2 | GV130: 28 | GW130: 42
CM131: 16-19 academies | CN131: 4 | CO131: 5 | CP131: 4 | CQ131: 2 | CR131: 15 | GQ131: Higher education institutions | GT131: 1 | GV131: 1 | GW131: 2
V132: Count of Organisation ID | W132: Column Labels | AF132: Count of Organisation ID | AG132: Column Labels | CM132: Colleges | CN132: 13 | CO132: 106 | CP132: 74 | CQ132: 7 | CR132: 200 | GQ132: Independent learning providers (including employer providers) | GR132: 1 | GS132: 5 | GT132: 3 | GU132: 2 | GV132: 61 | GW132: 72
V133: Row Labels | W133: 1 | X133: 2 | Y133: 3 | Z133: 4 | AA133: - | AB133: Grand Total | AF133: Row Labels | AG133: 1 | AH133: 2 | AI133: 3 | AJ133: 4 | AK133: - | AL133: Grand Total | CM133: Community learning and skills providers | CN133: 4 | CO133: 32 | CP133: 8 | CQ133: 1 | CR133: 45 | GQ133: Independent specialist colleges | GV133: 12 | GW133: 12
V134: 16-19 academies | AA134: 9 | AB134: 9 | AF134: 16-19 free school | AK134: 8 | AL134: 8 | CM134: Dance and drama colleges | GQ134: National Careers Service contractors | GV134: 9 | GW134: 9
V135: Colleges | W135: 2 | X135: 14 | Y135: 16 | Z135: 4 | AA135: 43 | AB135: 79 | AF135: Employer provider | AG135: 2 | AH135: 4 | AI135: 4 | AL135: 10 | CM135: Higher education institutions | CN135: 5 | CO135: 5 | CP135: 1 | CR135: 11 | GQ135: Grand Total | GR135: 2 | GS135: 29 | GT135: 24 | GU135: 5 | GV135: 165 | GW135: 225
V136: Community learning and skills providers | X136: 8 | Y136: 5 | Z136: 2 | AA136: 27 | AB136: 42 | AF136: General further education college | AG136: 2 | AH136: 13 | AI136: 14 | AJ136: 4 | AK136: 23 | AL136: 56 | CM136: Independent learning providers (including employer providers) | CN136: 4 | CO136: 40 | CP136: 23 | CQ136: 5 | CR136: 72
V137: Higher education institutions | X137: 1 | AA137: 1 | AB137: 2 | AF137: Higher education institution | AH137: 1 | AK137: 1 | AL137: 2 | CM137: Independent specialist colleges | CO137: 12 | CP137: 1 | CR137: 13
V138: Independent learning providers (including employer providers) | W138: 2 | X138: 23 | Y138: 16 | Z138: 4 | AA138: 27 | AB138: 72 | AF138: Independent learning provider | AH138: 19 | AI138: 12 | AJ138: 4 | AK138: 27 | AL138: 62 | CM138: National Careers Service contractors
V139: Independent specialist colleges | AA139: 12 | AB139: 12 | AF139: Independent specialist college | AK139: 12 | AL139: 12 | CM139: Grand Total | CN139: 30 | CO139: 200 | CP139: 111 | CQ139: 15 | CR139: 356
V140: National Careers Service contractors | AA140: 9 | AB140: 9 | AF140: Local authority provider | AH140: 3 | AI140: 3 | AJ140: 2 | AK140: 18 | AL140: 26
V141: Grand Total | W141: 4 | X141: 46 | Y141: 37 | Z141: 10 | AA141: 128 | AB141: 225 | AF141: Not for profit organisation | AH141: 5 | AI141: 2 | AK141: 7 | AL141: 14 | GQ141: Traineeships
AF142: Sixth form college | AI142: 2 | AK142: 18 | AL142: 20
AF143: Specialist designated institution | AK143: 2 | AL143: 2 | GQ143: Count of URN | GR143: Column Labels
AF144: Specialist further education college | AH144: 1 | AK144: 2 | AL144: 3 | GQ144: Row Labels | GR144: 2 | GS144: 3 | GT144: - | GU144: Grand Total
AF145: 16-19 academy sponsor led | AK145: 1 | AL145: 1 | CM145: Adult learning programmes | GQ145: 16-19 academies | GT145: 9 | GU145: 9
AF146: National Careers Service contractor | AK146: 9 | AL146: 9 | GQ146: Colleges | GS146: 1 | GT146: 78 | GU146: 79
AF147: Grand Total | AG147: 4 | AH147: 46 | AI147: 37 | AJ147: 10 | AK147: 128 | AL147: 225 | CM147: Count of URN | CN147: Column Labels | GQ147: Community learning and skills providers | GR147: 1 | GT147: 41 | GU147: 42
V148: Traineeships | CM148: Row Labels | CN148: 1 | CO148: 2 | CP148: 3 | CQ148: 4 | CR148: Grand Total | GQ148: Higher education institutions | GT148: 2 | GU148: 2
CM149: 16-19 academies | GQ149: Independent learning providers (including employer providers) | GR149: 5 | GS149: 2 | GT149: 65 | GU149: 72
V150: Count of Organisation ID | W150: Column Labels | AF150: Count of Organisation ID | AG150: Column Labels | CM150: Colleges | CN150: 42 | CO150: 156 | CP150: 40 | CQ150: 3 | CR150: 241 | GQ150: Independent specialist colleges | GT150: 12 | GU150: 12
V151: Row Labels | W151: 2 | X151: 3 | Y151: - | Z151: Grand Total | AF151: Row Labels | AG151: 2 | AH151: 3 | AI151: - | AJ151: Grand Total | CM151: Community learning and skills providers | CN151: 7 | CO151: 99 | CP151: 25 | CQ151: 2 | CR151: 133 | GQ151: National Careers Service contractors | GT151: 9 | GU151: 9
V152: 16-19 academies | Y152: 9 | Z152: 9 | AF152: 16-19 free school | AI152: 8 | AJ152: 8 | CM152: Dance and drama colleges | GQ152: Grand Total | GR152: 6 | GS152: 3 | GT152: 216 | GU152: 225
V153: Colleges | X153: 1 | Y153: 78 | Z153: 79 | AF153: Employer provider | AG153: 1 | AI153: 9 | AJ153: 10 | CM153: Higher education institutions | CN153: 6 | CO153: 13 | CP153: 1 | CR153: 20
V154: Community learning and skills providers | W154: 1 | Y154: 41 | Z154: 42 | AF154: General further education college | AI154: 56 | AJ154: 56 | CM154: Independent learning providers (including employer providers) | CN154: 3 | CO154: 53 | CP154: 13 | CQ154: 2 | CR154: 71
V155: Higher education institutions | Y155: 2 | Z155: 2 | AF155: Higher education institution | AI155: 2 | AJ155: 2 | CM155: Independent specialist colleges | CN155: 3 | CO155: 22 | CP155: 2 | CR155: 27
V156: Independent learning providers (including employer providers) | W156: 5 | X156: 2 | Y156: 65 | Z156: 72 | AF156: Independent learning provider | AG156: 4 | AH156: 2 | AI156: 56 | AJ156: 62 | CM156: National Careers Service contractors
V157: Independent specialist colleges | Y157: 12 | Z157: 12 | AF157: Independent specialist college | AI157: 12 | AJ157: 12 | CM157: Grand Total | CN157: 61 | CO157: 343 | CP157: 81 | CQ157: 7 | CR157: 492
V158: National Careers Service contractors | Y158: 9 | Z158: 9 | AF158: Local authority provider | AI158: 26 | AJ158: 26 | GQ158: Apprenticeships
V159: Grand Total | W159: 6 | X159: 3 | Y159: 216 | Z159: 225 | AF159: Not for profit organisation | AG159: 1 | AI159: 13 | AJ159: 14
AF160: Sixth form college | AH160: 1 | AI160: 19 | AJ160: 20 | GQ160: Count of URN | GR160: Column Labels
AF161: Specialist designated institution | AI161: 2 | AJ161: 2 | GQ161: Row Labels | GR161: 1 | GS161: 2 | GT161: 3 | GU161: 4 | GV161: - | GW161: Grand Total
AF162: Specialist further education college | AI162: 3 | AJ162: 3 | GQ162: 16-19 academies | GV162: 9 | GW162: 9
AF163: 16-19 academy sponsor led | AI163: 1 | AJ163: 1 | CM163: Traineeships | GQ163: Colleges | GR163: 2 | GS163: 14 | GT163: 16 | GU163: 4 | GV163: 43 | GW163: 79
AF164: National Careers Service contractor | AI164: 9 | AJ164: 9 | GQ164: Community learning and skills providers | GS164: 8 | GT164: 5 | GU164: 2 | GV164: 27 | GW164: 42
AF165: Grand Total | AG165: 6 | AH165: 3 | AI165: 216 | AJ165: 225 | CM165: Count of URN | CN165: Column Labels | GQ165: Higher education institutions | GS165: 1 | GV165: 1 | GW165: 2
A166: Pivots!$A$108 | V166: Provision for learners with high needs | CM166: Row Labels | CN166: 1 | CO166: 2 | CP166: 3 | CQ166: 4 | CR166: Grand Total | GQ166: Independent learning providers (including employer providers) | GR166: 2 | GS166: 23 | GT166: 16 | GU166: 4 | GV166: 27 | GW166: 72
CM167: 16-19 academies | GQ167: Independent specialist colleges | GV167: 12 | GW167: 12
V168: Count of Organisation ID | W168: Column Labels | AF168: Count of Organisation ID | AG168: Column Labels | CM168: Colleges | CN168: 1 | CO168: 3 | CP168: 1 | CR168: 5 | GQ168: National Careers Service contractors | GV168: 9 | GW168: 9
V169: Row Labels | W169: 1 | X169: 2 | Y169: 3 | Z169: 4 | AA169: - | AB169: Grand Total | AF169: Row Labels | AG169: 1 | AH169: 2 | AI169: 3 | AJ169: 4 | AK169: - | AL169: Grand Total | CM169: Community learning and skills providers | CO169: 5 | CP169: 1 | CQ169: 1 | CR169: 7 | GQ169: Grand Total | GR169: 4 | GS169: 46 | GT169: 37 | GU169: 10 | GV169: 128 | GW169: 225
A170: Provider groups: | C170: Inspection Judgements: | V170: 16-19 academies | AA170: 9 | AB170: 9 | AF170: 16-19 free school | AK170: 8 | AL170: 8 | CM170: Dance and drama colleges
A171: <All providers> | C171: Overall effectiveness | V171: Colleges | W171: 2 | X171: 17 | Y171: 7 | Z171: 2 | AA171: 51 | AB171: 79 | AF171: Employer provider | AK171: 10 | AL171: 10 | CM171: Higher education institutions
A172: All colleges | C172: Effectiveness of leadership and management | V172: Community learning and skills providers | AA172: 42 | AB172: 42 | AF172: General further education college | AG172: 2 | AH172: 16 | AI172: 6 | AJ172: 2 | AK172: 30 | AL172: 56 | CM172: Independent learning providers (including employer providers) | CN172: 1 | CO172: 26 | CP172: 5 | CR172: 32
A173: Independent specialist colleges | C173: Quality of teaching, learning and assessment | V173: Higher education institutions | Y173: 1 | AA173: 1 | AB173: 2 | AF173: Higher education institution | AI173: 1 | AK173: 1 | AL173: 2 | CM173: Independent specialist colleges
A174: All independent learning providers | C174: Personal development, behaviour and welfare | V174: Independent learning providers (including employer providers) | X174: 1 | Z174: 1 | AA174: 70 | AB174: 72 | AF174: Independent learning provider | AH174: 1 | AJ174: 1 | AK174: 60 | AL174: 62 | CM174: National Careers Service contractors
A175: All community learning and skills providers | C175: Outcomes for learners | V175: Independent specialist colleges | W175: 1 | X175: 7 | Y175: 2 | AA175: 2 | AB175: 12 | AF175: Independent specialist college | AG175: 1 | AH175: 7 | AI175: 2 | AK175: 2 | AL175: 12 | CM175: Grand Total | CN175: 2 | CO175: 34 | CP175: 7 | CQ175: 1 | CR175: 44 | GQ175: Provision for learners with high needs
A176: All 16-19 academies | C176: Full-time provision for 14 to 16-year-olds | V176: National Careers Service contractors | AA176: 9 | AB176: 9 | AF176: Local authority provider | AK176: 26 | AL176: 26
A177: Dance and drama colleges | C177: 16-19 study programmes | V177: Grand Total | W177: 3 | X177: 25 | Y177: 10 | Z177: 3 | AA177: 184 | AB177: 225 | AF177: Not for profit organisation | AK177: 14 | AL177: 14 | GQ177: Count of URN | GR177: Column Labels
A178: Higher education institutions | C178: Adult learning programmes | AF178: Sixth form college | AH178: 1 | AI178: 1 | AK178: 18 | AL178: 20 | GQ178: Row Labels | GR178: 1 | GS178: 2 | GT178: 3 | GU178: 4 | GV178: - | GW178: Grand Total
A179: National Careers Service contractors | C179: Traineeships | AF179: Specialist designated institution | AK179: 2 | AL179: 2 | GQ179: 16-19 academies | GV179: 9 | GW179: 9
C180: Apprenticeships | AF180: Specialist further education college | AK180: 3 | AL180: 3 | GQ180: Colleges | GR180: 2 | GS180: 17 | GT180: 7 | GU180: 2 | GV180: 51 | GW180: 79
C181: Provision for learners with high needs | AF181: 16-19 academy sponsor led | AK181: 1 | AL181: 1 | CM181: Apprenticeships | GQ181: Community learning and skills providers | GV181: 42 | GW181: 42
AF182: National Careers Service contractor | AK182: 9 | AL182: 9 | GQ182: Higher education institutions | GT182: 1 | GV182: 1 | GW182: 2
AF183: Grand Total | AG183: 3 | AH183: 25 | AI183: 10 | AJ183: 3 | AK183: 184 | AL183: 225 | CM183: Count of URN | CN183: Column Labels | GQ183: Independent learning providers (including employer providers) | GS183: 1 | GU183: 1 | GV183: 70 | GW183: 72
V184: Full-time provision for 14 to 16-year-olds | CM184: Row Labels | CN184: 1 | CO184: 2 | CP184: 3 | CQ184: 4 | CR184: Grand Total | GQ184: Independent specialist colleges | GR184: 1 | GS184: 7 | GT184: 2 | GV184: 2 | GW184: 12
CM185: 16-19 academies | GQ185: National Careers Service contractors | GV185: 9 | GW185: 9
V186: Count of Organisation ID | W186: Column Labels | AF186: Count of Organisation ID | AG186: Column Labels | CM186: Colleges | CN186: 11 | CO186: 99 | CP186: 53 | CQ186: 7 | CR186: 170 | GQ186: Grand Total | GR186: 3 | GS186: 25 | GT186: 10 | GU186: 3 | GV186: 184 | GW186: 225
V187: Row Labels | W187: 2 | X187: - | Y187: Grand Total | AF187: Row Labels | AG187: 2 | AH187: - | AI187: Grand Total | CM187: Community learning and skills providers | CN187: 6 | CO187: 61 | CP187: 13 | CQ187: 2 | CR187: 82
V188: 16-19 academies | X188: 9 | Y188: 9 | AF188: 16-19 free school | AH188: 8 | AI188: 8 | CM188: Dance and drama colleges
V189: Colleges | W189: 2 | X189: 77 | Y189: 79 | AF189: Employer provider | AH189: 10 | AI189: 10 | CM189: Higher education institutions | CN189: 1 | CO189: 3 | CR189: 4
V190: Community learning and skills providers | W190: 1 | X190: 41 | Y190: 42 | AF190: General further education college | AG190: 2 | AH190: 54 | AI190: 56 | CM190: Independent learning providers (including employer providers) | CN190: 21 | CO190: 200 | CP190: 50 | CQ190: 3 | CR190: 274
V191: Higher education institutions | X191: 2 | Y191: 2 | AF191: Higher education institution | AH191: 2 | AI191: 2 | CM191: Independent specialist colleges
V192: Independent learning providers (including employer providers) | X192: 72 | Y192: 72 | AF192: Independent learning provider | AH192: 62 | AI192: 62 | CM192: National Careers Service contractors
V193: Independent specialist colleges | X193: 12 | Y193: 12 | AF193: Independent specialist college | AH193: 12 | AI193: 12 | CM193: Grand Total | CN193: 39 | CO193: 363 | CP193: 116 | CQ193: 12 | CR193: 530
V194: National Careers Service contractors | X194: 9 | Y194: 9 | AF194: Local authority provider | AG194: 1 | AH194: 25 | AI194: 26
V195: Grand Total | W195: 3 | X195: 222 | Y195: 225 | AF195: Not for profit organisation | AH195: 14 | AI195: 14
AF196: Sixth form college | AH196: 20 | AI196: 20
AF197: Specialist designated institution | AH197: 2 | AI197: 2
AF198: Specialist further education college | AH198: 3 | AI198: 3
AF199: 16-19 academy sponsor led | AH199: 1 | AI199: 1 | CM199: Provision for learners with high needs
AF200: National Careers Service contractor | AH200: 9 | AI200: 9
AF201: Grand Total | AG201: 3 | AH201: 222 | AI201: 225 | CM201: Count of URN | CN201: Column Labels
... 10 more rows

Sheet C2 In-year provider outcomes
B2: Chart 2: Further education and skills full and short inspection outcomes this reporting year, by overall effectiveness and provider group
B3: =Reporting_Period -> 1 September 2016 to 28 February 2017
C6: Total number of inspections | D6: Number of inspections
D7: Outstanding | E7: Good | F7: Requires improvement | G7: Inadequate
B8: All further education and skills providers1 | C8: =SUM(D8:G8) -> 201 | D8: =SUM(D9:D16) -> 12 | E8: =SUM(E9:E16) -> 113 | F8: 59 | G8: 17
A9: Colleges | B9: Colleges2 | C9: =SUM(D9:G9) -> 62 | D9: =IFERROR(GETPIVOTDATA("URN",Pivots!$GH$5,"Provider Group",$A9,"Overall effectiveness",1),0) -> 2 | E9: =IFERROR(GETPIVOTDATA("URN",Pivots!$GH$5,"Provider Group",$A9,"Overall effectiveness",2),0) -> 29 | F9: =IFERROR(GETPIVOTDATA("URN",Pivots!$GH$5,"Provider Group",$A9,"Overall effectiveness",3),0) -> 26 | G9: =IFERROR(GETPIVOTDATA("URN",Pivots!$GH$5,"Provider Group",$A9,"Overall effectiveness",4),0) -> 5
A10: Independent Specialist Colleges | B10: Independent specialist colleges | C10: 11 | D10: =IFERROR(GETPIVOTDATA("URN",Pivots!$GH$5,"Provider Group",$A10,"Overall effectiveness",1),0) -> 1 | E10: =IFERROR(GETPIVOTDATA("URN",Pivots!$GH$5,"Provider Group",$A10,"Overall effectiveness",2),0) -> 8 | F10: =IFERROR(GETPIVOTDATA("URN",Pivots!$GH$5,"Provider Group",$A10,"Overall effectiveness",3),0) -> 2 | G10: =IFERROR(GETPIVOTDATA("URN",Pivots!$GH$5,"Provider Group",$A10,"Overall effectiveness",4),0) -> 0
A11: Independent learning providers (including employer providers) | B11: Independent learning providers3 | C11: 70 | D11: =IFERROR(GETPIVOTDATA("URN",Pivots!$GH$5,"Provider Group",$A11,"Overall effectiveness",1),0) -> 3 | E11: =IFERROR(GETPIVOTDATA("URN",Pivots!$GH$5,"Provider Group",$A11,"Overall effectiveness",2),0) -> 37 | F11: =IFERROR(GETPIVOTDATA("URN",Pivots!$GH$5,"Provider Group",$A11,"Overall effectiveness",3),0) -> 21 | G11: =IFERROR(GETPIVOTDATA("URN",Pivots!$GH$5,"Provider Group",$A11,"Overall effectiveness",4),0) -> 9
A12: Community Learning and Skills Providers | B12: Community learning and skills providers4 | C12: 39 | D12: =IFERROR(GETPIVOTDATA("URN",Pivots!$GH$5,"Provider Group",$A12,"Overall effectiveness",1),0) -> 0 | E12: =IFERROR(GETPIVOTDATA("URN",Pivots!$GH$5,"Provider Group",$A12,"Overall effectiveness",2),0) -> 30 | F12: =IFERROR(GETPIVOTDATA("URN",Pivots!$GH$5,"Provider Group",$A12,"Overall effectiveness",3),0) -> 7 | G12: =IFERROR(GETPIVOTDATA("URN",Pivots!$GH$5,"Provider Group",$A12,"Overall effectiveness",4),0) -> 2
A13: 16-19 Academies | B13: 16-19 academies5 | C13: 8 | D13: =IFERROR(GETPIVOTDATA("URN",Pivots!$GH$5,"Provider Group",$A13,"Overall effectiveness",1),0) -> 3 | E13: =IFERROR(GETPIVOTDATA("URN",Pivots!$GH$5,"Provider Group",$A13,"Overall effectiveness",2),0) -> 2 | F13: =IFERROR(GETPIVOTDATA("URN",Pivots!$GH$5,"Provider Group",$A13,"Overall effectiveness",3),0) -> 2 | G13: =IFERROR(GETPIVOTDATA("URN",Pivots!$GH$5,"Provider Group",$A13,"Overall effectiveness",4),0) -> 1
A14: Dance and Drama Colleges | B14: Dance and drama colleges6 | C14: 0 | D14: =IFERROR(GETPIVOTDATA("URN",Pivots!$GH$5,"Provider Group",$A14,"Overall effectiveness",1),0) -> 0 | E14: =IFERROR(GETPIVOTDATA("URN",Pivots!$GH$5,"Provider Group",$A14,"Overall effectiveness",2),0) -> 0 | F14: =IFERROR(GETPIVOTDATA("URN",Pivots!$GH$5,"Provider Group",$A14,"Overall effectiveness",3),0) -> 0 | G14: =IFERROR(GETPIVOTDATA("URN",Pivots!$GH$5,"Provider Group",$A14,"Overall effectiveness",4),0) -> 0
A15: Higher Education Institutions | B15: Higher education institutions7 | C15: 2 | D15: =IFERROR(GETPIVOTDATA("URN",Pivots!$GH$5,"Provider Group",$A15,"Overall effectiveness",1),0) -> 1 | E15: =IFERROR(GETPIVOTDATA("URN",Pivots!$GH$5,"Provider Group",$A15,"Overall effectiveness",2),0) -> 0 | F15: =IFERROR(GETPIVOTDATA("URN",Pivots!$GH$5,"Provider Group",$A15,"Overall effectiveness",3),0) -> 1 | G15: =IFERROR(GETPIVOTDATA("URN",Pivots!$GH$5,"Provider Group",$A15,"Overall effectiveness",4),0) -> 0
A16: National Careers Service Contractors | B16: National Careers Service contractors | C16: =SUM(D16:G16) -> 9 | D16: =IFERROR(GETPIVOTDATA("URN",Pivots!$GH$5,"Provider Group",$A16,"Overall effectiveness",1),0) -> 2 | E16: =IFERROR(GETPIVOTDATA("URN",Pivots!$GH$5,"Provider Group",$A16,"Overall effectiveness",2),0) -> 7 | F16: =IFERROR(GETPIVOTDATA("URN",Pivots!$GH$5,"Provider Group",$A16,"Overall effectiveness",3),0) -> 0 | G16: =IFERROR(GETPIVOTDATA("URN",Pivots!$GH$5,"Provider Group",$A16,"Overall effectiveness",4),0) -> 0
G17: Source: Ofsted inspection data
C20: % Outstanding | D20: % Good | E20: % Requires improvement | F20: % Inadequate
B21: =IF(OR(RIGHT(B8,1)="1",RIGHT(B8,1)="2",RIGHT(B8,1)="3",RIGHT(B8,1)="4",RIGHT(B8,1)="5",RIGHT(B8,1)="6",RIGHT(B8,1)="7",RIGHT(B8,1)="8",RIGHT(B8,1)="9"),LEFT(B8,LEN(B8)-1),B8)&" ("&TEXT(C8,"#,##0")&")" -> All further education and skills providers (201) | C21: =IFERROR(IF(ROUND(D8/$C8*100,0)=0,NA(),D8/$C8*100),NA()) -> 5.970149254 | D21: =IFERROR(IF(ROUND(E8/$C8*100,0)=0,NA(),E8/$C8*100),NA()) -> 56.21890547 | E21: 29.35323383 | F21: 8.457711443
B22: =IF(OR(RIGHT(B9,1)="1",RIGHT(B9,1)="2",RIGHT(B9,1)="3",RIGHT(B9,1)="4",RIGHT(B9,1)="5",RIGHT(B9,1)="6",RIGHT(B9,1)="7",RIGHT(B9,1)="8",RIGHT(B9,1)="9"),LEFT(B9,LEN(B9)-1),B9)&" ("&TEXT(C9,"#,##0")&")" -> Colleges (62) | C22: =IFERROR(IF(ROUND(D9/$C9*100,0)=0,NA(),D9/$C9*100),NA()) -> 3.225806452 | D22: 46.77419355 | E22: 41.93548387 | F22: 8.064516129
B23: Independent specialist colleges (11) | C23: =IFERROR(IF(ROUND(D10/$C10*100,0)=0,NA(),D10/$C10*100),NA()) -> 9.090909091 | D23: 72.72727273 | E23: 18.18181818
B24: Independent learning providers (70) | C24: =IFERROR(IF(ROUND(D11/$C11*100,0)=0,NA(),D11/$C11*100),NA()) -> 4.285714286 | D24: 52.85714286 | E24: 30 | F24: 12.85714286
B25: Community learning and skills providers (39) | C25: =IFERROR(IF(ROUND(D12/$C12*100,0)=0,NA(),D12/$C12*100),NA()) ->  | D25: 76.92307692 | E25: 17.94871795 | F25: 5.128205128
B26: 16-19 academies (8) | C26: =IFERROR(IF(ROUND(D13/$C13*100,0)=0,NA(),D13/$C13*100),NA()) -> 37.5 | D26: 25 | E26: 25 | F26: 12.5
B27: Dance and drama colleges (0) | C27: =IFERROR(IF(ROUND(D14/$C14*100,0)=0,NA(),D14/$C14*100),NA()) -> 
B28: Higher education institutions (2) | C28: =IFERROR(IF(ROUND(D15/$C15*100,0)=0,NA(),D15/$C15*100),NA()) -> 50 | E28: 50
B29: National Careers Service contractors (9) | C29: =IFERROR(IF(ROUND(D16/$C16*100,0)=0,NA(),D16/$C16*100),NA()) -> 22.22222222 | D29: 77.77777778
B40: 1. Does not include prison and young offender institution inspections.
B41: 2. Includes general further education colleges, sixth form colleges and specialist further education colleges.
B42: 3. Includes employer providers.
B43: 4. Includes local authority, not for profit and specialist designated providers.
B44: 5. Includes 16-19 free schools, 16-19 academy converters and 16-19 sponsor led academies.
B45: 6. Inspections from 1 September 2015.
B46: 7. Inspection of further education provision only, not provider as a whole.
B47: 8. Percentages are rounded and may not add to 100. Where the number of inspections is small, percentages should be treated with caution.

Sheet C3 In-year outcomes over time
B2: Chart 3: Further education and skills full and short inspection outcomes, by overall effectiveness and reporting year
B3: ="1 September 2011 to "&Inspections_To -> 1 September 2011 to 28 February 2017
B5: Select provider group1: | D5: <All providers>
B7: Select provider type: | D7: <All>
E8: 1 | F8: 2 | G8: 3 | H8: 4
C9: Total number of inspections | E9: Number of inspections
E10: Outstanding | F10: Good | G10: Requires improvement / satisfactory2 | H10: Inadequate
B11: 1 September 2016 - 28 February 2017 | C11: =SUM(E11:H11) -> 201 | E11: =IF(T2_PG="<All providers>", IFERROR(GETPIVOTDATA("Organisation ID",Pivots!$AP$6,"Overall effectiveness",E$8),0), IF(T2_PT="<All>", IFERROR(GETPIVOTDATA("Organisation ID",Pivots!$AP$6,"Provider Group",T2_PG1,"Overall effectiveness",E$8),0), IFERROR(GETPIVOTDATA("Organisation ID",Pivots!$AZ$6,"Reporting provider type",T2_PT,"Overall effectiveness",E$8),0))) -> 12 | F11: =IF(T2_PG="<All providers>", IFERROR(GETPIVOTDATA("Organisation ID",Pivots!$AP$6,"Overall effectiveness",F$8),0), IF(T2_PT="<All>", IFERROR(GETPIVOTDATA("Organisation ID",Pivots!$AP$6,"Provider Group",T2_PG1,"Overall effectiveness",F$8),0), IFERROR(GETPIVOTDATA("Organisation ID",Pivots!$AZ$6,"Reporting provider type",T2_PT,"Overall effectiveness",F$8),0))) -> 113 | G11: =IF(T2_PG="<All providers>", IFERROR(GETPIVOTDATA("Organisation ID",Pivots!$AP$6,"Overall effectiveness",G$8),0), IF(T2_PT="<All>", IFERROR(GETPIVOTDATA("Organisation ID",Pivots!$AP$6,"Provider Group",T2_PG1,"Overall effectiveness",G$8),0), IFERROR(GETPIVOTDATA("Organisation ID",Pivots!$AZ$6,"Reporting provider type",T2_PT,"Overall effectiveness",G$8),0))) -> 59 | H11: =IF(T2_PG="<All providers>", IFERROR(GETPIVOTDATA("Organisation ID",Pivots!$AP$6,"Overall effectiveness",H$8),0), IF(T2_PT="<All>", IFERROR(GETPIVOTDATA("Organisation ID",Pivots!$AP$6,"Provider Group",T2_PG1,"Overall effectiveness",H$8),0), IFERROR(GETPIVOTDATA("Organisation ID",Pivots!$AZ$6,"Reporting provider type",T2_PT,"Overall effectiveness",H$8),0))) -> 17
A12: 2015/2016 | B12: 1 September 2015 - 31 August 2016 | C12: =SUM(E12:H12) -> 410 | E12: =IF(T2_PG="<All providers>", IFERROR(GETPIVOTDATA("provider Name",Pivots!$EI$28,"Overall effectiveness",E$8,"YEAR",$A12),0), IF(OR(ISBLANK(T2_PT),T2_PT="<All>"), IFERROR(GETPIVOTDATA("provider Name",Pivots!$EI$28,"Reporting Provider Group 1_Name",T2_PG1,"Overall effectiveness",E$8,"YEAR",$A12),0), IFERROR(GETPIVOTDATA("provider Name",Pivots!$ET$28,"Reporting Provider Type_Name",T2_PT,"Overall effectiveness",E$8,"YEAR",$A12),0))) -> 24 | F12: =IF(T2_PG="<All providers>", IFERROR(GETPIVOTDATA("provider Name",Pivots!$EI$28,"Overall effectiveness",F$8,"YEAR",$A12),0), IF(OR(ISBLANK(T2_PT),T2_PT="<All>"), IFERROR(GETPIVOTDATA("provider Name",Pivots!$EI$28,"Reporting Provider Group 1_Name",T2_PG1,"Overall effectiveness",F$8,"YEAR",$A12),0), IFERROR(GETPIVOTDATA("provider Name",Pivots!$ET$28,"Reporting Provider Type_Name",T2_PT,"Overall effectiveness",F$8,"YEAR",$A12),0))) -> 254 | G12: =IF(T2_PG="<All providers>", IFERROR(GETPIVOTDATA("provider Name",Pivots!$EI$28,"Overall effectiveness",G$8,"YEAR",$A12),0), IF(OR(ISBLANK(T2_PT),T2_PT="<All>"), IFERROR(GETPIVOTDATA("provider Name",Pivots!$EI$28,"Reporting Provider Group 1_Name",T2_PG1,"Overall effectiveness",G$8,"YEAR",$A12),0), IFERROR(GETPIVOTDATA("provider Name",Pivots!$ET$28,"Reporting Provider Type_Name",T2_PT,"Overall effectiveness",G$8,"YEAR",$A12),0))) -> 98 | H12: =IF(T2_PG="<All providers>", IFERROR(GETPIVOTDATA("provider Name",Pivots!$EI$28,"Overall effectiveness",H$8,"YEAR",$A12),0), IF(OR(ISBLANK(T2_PT),T2_PT="<All>"), IFERROR(GETPIVOTDATA("provider Name",Pivots!$EI$28,"Reporting Provider Group 1_Name",T2_PG1,"Overall effectiveness",H$8,"YEAR",$A12),0), IFERROR(GETPIVOTDATA("provider Name",Pivots!$ET$28,"Reporting Provider Type_Name",T2_PT,"Overall effectiveness",H$8,"YEAR",$A12),0))) -> 34
A13: 2014/2015 | B13: 1 September 2014 - 31 August 2015 | C13: =SUM(E13:H13) -> 272 | E13: =IF(T2_PG="<All providers>", IFERROR(GETPIVOTDATA("provider Name",Pivots!$EI$28,"Overall effectiveness",E$8,"YEAR",$A13),0), IF(OR(ISBLANK(T2_PT),T2_PT="<All>"), IFERROR(GETPIVOTDATA("provider Name",Pivots!$EI$28,"Reporting Provider Group 1_Name",T2_PG1,"Overall effectiveness",E$8,"YEAR",$A13),0), IFERROR(GETPIVOTDATA("provider Name",Pivots!$ET$28,"Reporting Provider Type_Name",T2_PT,"Overall effectiveness",E$8,"YEAR",$A13),0))) -> 13 | F13: =IF(T2_PG="<All providers>", IFERROR(GETPIVOTDATA("provider Name",Pivots!$EI$28,"Overall effectiveness",F$8,"YEAR",$A13),0), IF(OR(ISBLANK(T2_PT),T2_PT="<All>"), IFERROR(GETPIVOTDATA("provider Name",Pivots!$EI$28,"Reporting Provider Group 1_Name",T2_PG1,"Overall effectiveness",F$8,"YEAR",$A13),0), IFERROR(GETPIVOTDATA("provider Name",Pivots!$ET$28,"Reporting Provider Type_Name",T2_PT,"Overall effectiveness",F$8,"YEAR",$A13),0))) -> 120 | G13: =IF(T2_PG="<All providers>", IFERROR(GETPIVOTDATA("provider Name",Pivots!$EI$28,"Overall effectiveness",G$8,"YEAR",$A13),0), IF(OR(ISBLANK(T2_PT),T2_PT="<All>"), IFERROR(GETPIVOTDATA("provider Name",Pivots!$EI$28,"Reporting Provider Group 1_Name",T2_PG1,"Overall effectiveness",G$8,"YEAR",$A13),0), IFERROR(GETPIVOTDATA("provider Name",Pivots!$ET$28,"Reporting Provider Type_Name",T2_PT,"Overall effectiveness",G$8,"YEAR",$A13),0))) -> 106 | H13: =IF(T2_PG="<All providers>", IFERROR(GETPIVOTDATA("provider Name",Pivots!$EI$28,"Overall effectiveness",H$8,"YEAR",$A13),0), IF(OR(ISBLANK(T2_PT),T2_PT="<All>"), IFERROR(GETPIVOTDATA("provider Name",Pivots!$EI$28,"Reporting Provider Group 1_Name",T2_PG1,"Overall effectiveness",H$8,"YEAR",$A13),0), IFERROR(GETPIVOTDATA("provider Name",Pivots!$ET$28,"Reporting Provider Type_Name",T2_PT,"Overall effectiveness",H$8,"YEAR",$A13),0))) -> 33
A14: 2013/2014 | B14: 1 September 2013 - 31 August 2014 | C14: 365 | E14: =IF(T2_PG="<All providers>", IFERROR(GETPIVOTDATA("provider Name",Pivots!$EI$28,"Overall effectiveness",E$8,"YEAR",$A14),0), IF(OR(ISBLANK(T2_PT),T2_PT="<All>"), IFERROR(GETPIVOTDATA("provider Name",Pivots!$EI$28,"Reporting Provider Group 1_Name",T2_PG1,"Overall effectiveness",E$8,"YEAR",$A14),0), IFERROR(GETPIVOTDATA("provider Name",Pivots!$ET$28,"Reporting Provider Type_Name",T2_PT,"Overall effectiveness",E$8,"YEAR",$A14),0))) -> 18 | F14: =IF(T2_PG="<All providers>", IFERROR(GETPIVOTDATA("provider Name",Pivots!$EI$28,"Overall effectiveness",F$8,"YEAR",$A14),0), IF(OR(ISBLANK(T2_PT),T2_PT="<All>"), IFERROR(GETPIVOTDATA("provider Name",Pivots!$EI$28,"Reporting Provider Group 1_Name",T2_PG1,"Overall effectiveness",F$8,"YEAR",$A14),0), IFERROR(GETPIVOTDATA("provider Name",Pivots!$ET$28,"Reporting Provider Type_Name",T2_PT,"Overall effectiveness",F$8,"YEAR",$A14),0))) -> 227 | G14: =IF(T2_PG="<All providers>", IFERROR(GETPIVOTDATA("provider Name",Pivots!$EI$28,"Overall effectiveness",G$8,"YEAR",$A14),0), IF(OR(ISBLANK(T2_PT),T2_PT="<All>"), IFERROR(GETPIVOTDATA("provider Name",Pivots!$EI$28,"Reporting Provider Group 1_Name",T2_PG1,"Overall effectiveness",G$8,"YEAR",$A14),0), IFERROR(GETPIVOTDATA("provider Name",Pivots!$ET$28,"Reporting Provider Type_Name",T2_PT,"Overall effectiveness",G$8,"YEAR",$A14),0))) -> 100 | H14: =IF(T2_PG="<All providers>", IFERROR(GETPIVOTDATA("provider Name",Pivots!$EI$28,"Overall effectiveness",H$8,"YEAR",$A14),0), IF(OR(ISBLANK(T2_PT),T2_PT="<All>"), IFERROR(GETPIVOTDATA("provider Name",Pivots!$EI$28,"Reporting Provider Group 1_Name",T2_PG1,"Overall effectiveness",H$8,"YEAR",$A14),0), IFERROR(GETPIVOTDATA("provider Name",Pivots!$ET$28,"Reporting Provider Type_Name",T2_PT,"Overall effectiveness",H$8,"YEAR",$A14),0))) -> 20
A15: 2012/2013 | B15: 1 September 2012 - 31 August 2013 | C15: 373 | E15: =IF(T2_PG="<All providers>", IFERROR(GETPIVOTDATA("provider Name",Pivots!$EI$28,"Overall effectiveness",E$8,"YEAR",$A15),0), IF(OR(ISBLANK(T2_PT),T2_PT="<All>"), IFERROR(GETPIVOTDATA("provider Name",Pivots!$EI$28,"Reporting Provider Group 1_Name",T2_PG1,"Overall effectiveness",E$8,"YEAR",$A15),0), IFERROR(GETPIVOTDATA("provider Name",Pivots!$ET$28,"Reporting Provider Type_Name",T2_PT,"Overall effectiveness",E$8,"YEAR",$A15),0))) -> 13 | F15: =IF(T2_PG="<All providers>", IFERROR(GETPIVOTDATA("provider Name",Pivots!$EI$28,"Overall effectiveness",F$8,"YEAR",$A15),0), IF(OR(ISBLANK(T2_PT),T2_PT="<All>"), IFERROR(GETPIVOTDATA("provider Name",Pivots!$EI$28,"Reporting Provider Group 1_Name",T2_PG1,"Overall effectiveness",F$8,"YEAR",$A15),0), IFERROR(GETPIVOTDATA("provider Name",Pivots!$ET$28,"Reporting Provider Type_Name",T2_PT,"Overall effectiveness",F$8,"YEAR",$A15),0))) -> 194 | G15: =IF(T2_PG="<All providers>", IFERROR(GETPIVOTDATA("provider Name",Pivots!$EI$28,"Overall effectiveness",G$8,"YEAR",$A15),0), IF(OR(ISBLANK(T2_PT),T2_PT="<All>"), IFERROR(GETPIVOTDATA("provider Name",Pivots!$EI$28,"Reporting Provider Group 1_Name",T2_PG1,"Overall effectiveness",G$8,"YEAR",$A15),0), IFERROR(GETPIVOTDATA("provider Name",Pivots!$ET$28,"Reporting Provider Type_Name",T2_PT,"Overall effectiveness",G$8,"YEAR",$A15),0))) -> 134 | H15: =IF(T2_PG="<All providers>", IFERROR(GETPIVOTDATA("provider Name",Pivots!$EI$28,"Overall effectiveness",H$8,"YEAR",$A15),0), IF(OR(ISBLANK(T2_PT),T2_PT="<All>"), IFERROR(GETPIVOTDATA("provider Name",Pivots!$EI$28,"Reporting Provider Group 1_Name",T2_PG1,"Overall effectiveness",H$8,"YEAR",$A15),0), IFERROR(GETPIVOTDATA("provider Name",Pivots!$ET$28,"Reporting Provider Type_Name",T2_PT,"Overall effectiveness",H$8,"YEAR",$A15),0))) -> 32
A16: 2011/2012 | B16: 1 September 2011 - 31 August 2012 | C16: 270 | E16: =IF(T2_PG="<All providers>", IFERROR(GETPIVOTDATA("provider Name",Pivots!$EI$28,"Overall effectiveness",E$8,"YEAR",$A16),0), IF(OR(ISBLANK(T2_PT),T2_PT="<All>"), IFERROR(GETPIVOTDATA("provider Name",Pivots!$EI$28,"Reporting Provider Group 1_Name",T2_PG1,"Overall effectiveness",E$8,"YEAR",$A16),0), IFERROR(GETPIVOTDATA("provider Name",Pivots!$ET$28,"Reporting Provider Type_Name",T2_PT,"Overall effectiveness",E$8,"YEAR",$A16),0))) -> 19 | F16: =IF(T2_PG="<All providers>", IFERROR(GETPIVOTDATA("provider Name",Pivots!$EI$28,"Overall effectiveness",F$8,"YEAR",$A16),0), IF(OR(ISBLANK(T2_PT),T2_PT="<All>"), IFERROR(GETPIVOTDATA("provider Name",Pivots!$EI$28,"Reporting Provider Group 1_Name",T2_PG1,"Overall effectiveness",F$8,"YEAR",$A16),0), IFERROR(GETPIVOTDATA("provider Name",Pivots!$ET$28,"Reporting Provider Type_Name",T2_PT,"Overall effectiveness",F$8,"YEAR",$A16),0))) -> 127 | G16: =IF(T2_PG="<All providers>", IFERROR(GETPIVOTDATA("provider Name",Pivots!$EI$28,"Overall effectiveness",G$8,"YEAR",$A16),0), IF(OR(ISBLANK(T2_PT),T2_PT="<All>"), IFERROR(GETPIVOTDATA("provider Name",Pivots!$EI$28,"Reporting Provider Group 1_Name",T2_PG1,"Overall effectiveness",G$8,"YEAR",$A16),0), IFERROR(GETPIVOTDATA("provider Name",Pivots!$ET$28,"Reporting Provider Type_Name",T2_PT,"Overall effectiveness",G$8,"YEAR",$A16),0))) -> 95 | H16: =IF(T2_PG="<All providers>", IFERROR(GETPIVOTDATA("provider Name",Pivots!$EI$28,"Overall effectiveness",H$8,"YEAR",$A16),0), IF(OR(ISBLANK(T2_PT),T2_PT="<All>"), IFERROR(GETPIVOTDATA("provider Name",Pivots!$EI$28,"Reporting Provider Group 1_Name",T2_PG1,"Overall effectiveness",H$8,"YEAR",$A16),0), IFERROR(GETPIVOTDATA("provider Name",Pivots!$ET$28,"Reporting Provider Type_Name",T2_PT,"Overall effectiveness",H$8,"YEAR",$A16),0))) -> 29
H17: Source: Ofsted inspection data
C19: % Outstanding | E19: % Good | F19: ="% Requires improvement / satisfactory"&CHAR(178) -> % Requires improvement / satisfactory² | G19: % Inadequate
B20: =B11&" ("&TEXT(C11,"#,##0")&") Full and short inspections" -> 1 September 2016 - 28 February 2017 (201) Full and short inspections | C20: =IF(IFERROR(ROUND(E11/$C11*100,0),0)=0,NA(),E11/$C11*100) -> 5.970149254 | E20: =IF(IFERROR(ROUND(F11/$C11*100,0),0)=0,NA(),F11/$C11*100) -> 56.21890547 | F20: 29.35323383 | G20: 8.457711443
B21: =B12&" ("&TEXT(C12,"#,##0")&") Full and short inspections" -> 1 September 2015 - 31 August 2016 (410) Full and short inspections | C21: 5.853658537 | E21: 61.95121951 | F21: 23.90243902 | G21: 8.292682927
B22: =B13&" ("&TEXT(C13,"#,##0")&") Full inspections only" -> 1 September 2014 - 31 August 2015 (272) Full inspections only | C22: 4.779411765 | E22: 44.11764706 | F22: 38.97058824 | G22: 12.13235294
B23: =B14&" ("&TEXT(C14,"#,##0")&") Full inspections only" -> 1 September 2013 - 31 August 2014 (365) Full inspections only | C23: 4.931506849 | E23: 62.19178082 | F23: 27.39726027 | G23: 5.479452055
B24: =B15&" ("&TEXT(C15,"#,##0")&") Full inspections only" -> 1 September 2012 - 31 August 2013 (373) Full inspections only | C24: 3.485254692 | E24: 52.01072386 | F24: 35.92493298 | G24: 8.579088472
B25: =B16&" ("&TEXT(C16,"#,##0")&") Full inspections only" -> 1 September 2011 - 31 August 2012 (270) Full inspections only | C25: 7.037037037 | E25: 47.03703704 | F25: 35.18518519 | G25: 10.74074074
B40: 1. See 'notes' tab for a description of which providers are included in each group.
B41: 2. Prior to 1 September 2012, providers with an inspection outcome of grade 3 were judged as satisfactory.
B42: 3. Percentages are rounded and may not add to 100. Where the number of inspections is small, percentages should be treated with caution.

Sheet Lookups (hidden)
A1: Provider types
B2: Column for reporting | C2: Column in data | E2: <All providers> | F2: Colleges | G2: Independent specialist colleges | H2: Independent learning providers | I2: Community learning and skills providers | J2: 16-19 academies | K2: Dance and drama colleges | L2: Higher education institutions | M2: National Careers Service contractors | O2: College | P2: Independent specialist college | Q2: Independent learning provider | R2: Community learning and skills provider | S2: 16-19 Academy | T2: Dance and drama college | U2: Higher education institution | V2: National Careers Service Contractor
B3: <All providers> | C3: <All providers> | E3: <All> | F3: <All> | G3: <All> | H3: <All> | I3: <All> | J3: <All> | K3: <All> | L3: <All> | M3: <All>
B4: Colleges | C4: Colleges | F4: General further education college | G4: Independent specialist college | H4: Independent learning provider | I4: Not for profit organisation | J4: 16-19 Free school | K4: Dance and drama college | L4: Higher education institution
B5: Independent specialist colleges | C5: Independent specialist colleges | F5: Sixth form college | H5: Employer provider | I5: Local authority provider | J5: 16-19 Academy converter
B6: Independent learning providers | C6: Independent learning providers (including employer providers) | F6: Specialist further education college | I6: Specialist designated institution | J6: 16-19 Academy sponsor led
B7: Community learning and skills providers | C7: Community learning and skills providers
B8: 16-19 academies | C8: 16-19 academies
B9: Dance and drama colleges | C9: Dance and drama colleges
B10: Higher education institutions | C10: Higher education institutions
B11: National Careers Service contractors | C11: National Careers Service Contractors

Sheet C4 In-year grade 3 outcomes
B2: Chart 4: Proportion of previously grade 3 further education and skills providers that improved, declined or stayed the same at their next full inspection
B3: ="1 September 2011 - "&Inspections_To -> 1 September 2011 - 28 February 2017
C5: Total number inspected that were previously grade 3 | D5: Number of inspections
D6: Improved | E6: Same | F6: Declined
B7: 1 September 2016 - 28 February 2017 | C7: =SUM(D7:F7) -> 49 | D7: =GETPIVOTDATA("URN",Pivots!$HB$9,"Improved/Declined","Improved") -> 25 | E7: =GETPIVOTDATA("URN",Pivots!$HB$9,"Improved/Declined","Stayed the same") -> 17 | F7: =GETPIVOTDATA("URN",Pivots!$HB$9,"Improved/Declined","Declined") -> 7
B8: ="1 September 2015 - 31 August 2016" -> 1 September 2015 - 31 August 2016 | C8: =SUM(D8:F8) -> 80 | D8: 45 | E8: 22 | F8: 13
B9: ="1 September 2014 - 31 August 2015" -> 1 September 2014 - 31 August 2015 | C9: 96 | D9: 52 | E9: 34 | F9: 10
B10: ="1 September 2013 - 31 August 2014" -> 1 September 2013 - 31 August 2014 | C10: 188 | D10: 134 | E10: 46 | F10: 8
B11: ="1 September 2012 - 31 August 2013" -> 1 September 2012 - 31 August 2013 | C11: 215 | D11: 108 | E11: 87 | F11: 20
B12: ="1 September 2011 - 31 August 2012" -> 1 September 2011 - 31 August 2012 | C12: 76 | D12: 36 | E12: 31 | F12: 9
F13: Source: Ofsted inspection data
D16: % Improved | E16: % Same | F16: % Declined
B17: =B7&" ("&C7&")" -> 1 September 2016 - 28 February 2017 (49) | C17: =C7 -> 49 | D17: =D7/$C7*100 -> 51.02040816 | E17: =E7/$C7*100 -> 34.69387755 | F17: 14.28571429
B18: 1 September 2015 - 31 August 2016 (80) | C18: 80 | D18: 56.25 | E18: =E8/$C8*100 -> 27.5 | F18: 16.25
B19: 1 September 2014 - 31 August 2015 (96) | C19: 96 | D19: 54.16666667 | E19: 35.41666667 | F19: 10.41666667
B20: 1 September 2013 - 31 August 2014 (188) | C20: 188 | D20: 71.27659574 | E20: 24.46808511 | F20: 4.255319149
B21: 1 September 2012 - 31 August 2013 (215) | C21: 215 | D21: 50.23255814 | E21: 40.46511628 | F21: 9.302325581
B22: 1 September 2011 - 31 August 2012 (76) | C22: 76 | D22: 47.36842105 | E22: 40.78947368 | F22: 11.84210526
K35: 1
B38: 1. Percentages are rounded and may not add to 100. Where the number of inspections is small, percentages should be treated with caution.

Sheet C5 Most recent outcomes
B2: Chart 5: Overall effectiveness of further education and skills providers at their most recent inspection
B3: ="As at "&Inspections_To -> As at 28 February 2017
C5: Inspection judgement: | H5: Overall effectiveness
I6: 1 | J6: 2 | K6: 3 | L6: 4
D7: Total number of open and funded providers | F7: Number of providers that have not yet been inspected | H7: Number of providers with inspection judgement
H8: Total | I8: Outstanding | J8: Good | K8: Requires improvement / satisfactory8 | L8: Inadequate | M8: Not judged
B9: All further education and skills providers1 | D9: =GETPIVOTDATA("Organisation ID",Pivots!$CM$5) -> 1198 | F9: =D9-H9 -> 129 | H9: =SUM(H10:H17) -> 1069 | I9: =SUM(I10:I17) -> 160 | J9: =SUM(J10:J17) -> 697 | K9: =SUM(K10:K17) -> 182 | L9: =SUM(L10:L17) -> 30
A10: Colleges | B10: Colleges2 | D10: =GETPIVOTDATA("Organisation ID",Pivots!$CM$5,"Provider Group",A10) -> 312 | F10: =D10-H10 -> 2 | H10: =IF($H$5=Pivots!$C$171,GETPIVOTDATA("Organisation ID",Pivots!$CM$21,"Provider Group",$A10), IF($H$5=Pivots!$C$172,GETPIVOTDATA("URN",Pivots!$CM$39,"Provider Group",$A10), IF($H$5=Pivots!$C$174,GETPIVOTDATA("URN",Pivots!$CM$57,"Provider Group",$A10), IF($H$5=Pivots!$C$173,GETPIVOTDATA("URN",Pivots!$CM$75,"Provider Group",$A10), IF($H$5=Pivots!$C$175,GETPIVOTDATA("URN",Pivots!$CM$93,"Provider Group",$A10), IF($H$5=Pivots!$C$176,GETPIVOTDATA("URN",Pivots!$CM$111,"Provider Group",$A10), IF($H$5=Pivots!$C$177,GETPIVOTDATA("URN",Pivots!$CM$129,"Provider Group",$A10), IF($H$5=Pivots!$C$178,GETPIVOTDATA("URN",Pivots!$CM$147,"Provider Group",$A10), IF($H$5=Pivots!$C$179,GETPIVOTDATA("URN",Pivots!$CM$165,"Provider Group",$A10), IF($H$5=Pivots!$C$180,GETPIVOTDATA("URN",Pivots!$CM$183,"Provider Group",$A10), IF($H$5=Pivots!$C$181,GETPIVOTDATA("URN",Pivots!$CM$201,"Provider Group",$A10),0))))))))))) -> 310 | I10: =IF($H$5=Pivots!$C$171,GETPIVOTDATA("Organisation ID",Pivots!$CM$21,"Provider Group",$A10,"Overall effectiveness",I$6), IF($H$5=Pivots!$C$172,GETPIVOTDATA("URN",Pivots!$CM$39,"Provider Group",$A10,"Effectiveness of leadership and management",I$6), IF($H$5=Pivots!$C$174,GETPIVOTDATA("URN",Pivots!$CM$57,"Provider Group",$A10,"Personal development, behaviour and welfare",I$6), IF($H$5=Pivots!$C$173,GETPIVOTDATA("URN",Pivots!$CM$75,"Provider Group",$A10,"Quality of teaching, learning and assessment",I$6), IF($H$5=Pivots!$C$175,GETPIVOTDATA("URN",Pivots!$CM$93,"Provider Group",$A10,"Outcomes for learners",I$6)))))) -> 62 | J10: =IF($H$5=Pivots!$C$171,GETPIVOTDATA("Organisation ID",Pivots!$CM$21,"Provider Group",$A10,"Overall effectiveness",J$6), IF($H$5=Pivots!$C$172,GETPIVOTDATA("URN",Pivots!$CM$39,"Provider Group",$A10,"Effectiveness of leadership and management",J$6), IF($H$5=Pivots!$C$174,GETPIVOTDATA("URN",Pivots!$CM$57,"Provider Group",$A10,"Personal development, behaviour and welfare",J$6), IF($H$5=Pivots!$C$173,GETPIVOTDATA("URN",Pivots!$CM$75,"Provider Group",$A10,"Quality of teaching, learning and assessment",J$6), IF($H$5=Pivots!$C$175,GETPIVOTDATA("URN",Pivots!$CM$93,"Provider Group",$A10,"Outcomes for learners",J$6)))))) -> 167 | K10: =IF($H$5=Pivots!$C$171,GETPIVOTDATA("Organisation ID",Pivots!$CM$21,"Provider Group",$A10,"Overall effectiveness",K$6), IF($H$5=Pivots!$C$172,GETPIVOTDATA("URN",Pivots!$CM$39,"Provider Group",$A10,"Effectiveness of leadership and management",K$6), IF($H$5=Pivots!$C$174,GETPIVOTDATA("URN",Pivots!$CM$57,"Provider Group",$A10,"Personal development, behaviour and welfare",K$6), IF($H$5=Pivots!$C$173,GETPIVOTDATA("URN",Pivots!$CM$75,"Provider Group",$A10,"Quality of teaching, learning and assessment",K$6), IF($H$5=Pivots!$C$175,GETPIVOTDATA("URN",Pivots!$CM$93,"Provider Group",$A10,"Outcomes for learners",K$6)))))) -> 68 | L10: =IF($H$5=Pivots!$C$171,GETPIVOTDATA("Organisation ID",Pivots!$CM$21,"Provider Group",$A10,"Overall effectiveness",L$6), IF($H$5=Pivots!$C$172,GETPIVOTDATA("URN",Pivots!$CM$39,"Provider Group",$A10,"Effectiveness of leadership and management",L$6), IF($H$5=Pivots!$C$174,GETPIVOTDATA("URN",Pivots!$CM$57,"Provider Group",$A10,"Personal development, behaviour and welfare",L$6), IF($H$5=Pivots!$C$173,GETPIVOTDATA("URN",Pivots!$CM$75,"Provider Group",$A10,"Quality of teaching, learning and assessment",L$6), IF($H$5=Pivots!$C$175,GETPIVOTDATA("URN",Pivots!$CM$93,"Provider Group",$A10,"Outcomes for learners",L$6)))))) -> 13
A11: Independent specialist colleges | B11: Independent specialist colleges | D11: =GETPIVOTDATA("Organisation ID",Pivots!$CM$5,"Provider Group",A11) -> 70 | F11: 10 | H11: =IF($H$5=Pivots!$C$171,GETPIVOTDATA("Organisation ID",Pivots!$CM$21,"Provider Group",$A11), IF($H$5=Pivots!$C$172,GETPIVOTDATA("URN",Pivots!$CM$39,"Provider Group",$A11), IF($H$5=Pivots!$C$174,GETPIVOTDATA("URN",Pivots!$CM$57,"Provider Group",$A11), IF($H$5=Pivots!$C$173,GETPIVOTDATA("URN",Pivots!$CM$75,"Provider Group",$A11), IF($H$5=Pivots!$C$175,GETPIVOTDATA("URN",Pivots!$CM$93,"Provider Group",$A11), IF($H$5=Pivots!$C$176,GETPIVOTDATA("URN",Pivots!$CM$111,"Provider Group",$A11), IF($H$5=Pivots!$C$177,GETPIVOTDATA("URN",Pivots!$CM$129,"Provider Group",$A11), IF($H$5=Pivots!$C$178,GETPIVOTDATA("URN",Pivots!$CM$147,"Provider Group",$A11), IF($H$5=Pivots!$C$179,GETPIVOTDATA("URN",Pivots!$CM$165,"Provider Group",$A11), IF($H$5=Pivots!$C$180,GETPIVOTDATA("URN",Pivots!$CM$183,"Provider Group",$A11), IF($H$5=Pivots!$C$181,GETPIVOTDATA("URN",Pivots!$CM$201,"Provider Group",$A11),0))))))))))) -> 60 | I11: =IF($H$5=Pivots!$C$171,GETPIVOTDATA("Organisation ID",Pivots!$CM$21,"Provider Group",$A11,"Overall effectiveness",I$6), IF($H$5=Pivots!$C$172,GETPIVOTDATA("URN",Pivots!$CM$39,"Provider Group",$A11,"Effectiveness of leadership and management",I$6), IF($H$5=Pivots!$C$174,GETPIVOTDATA("URN",Pivots!$CM$57,"Provider Group",$A11,"Personal development, behaviour and welfare",I$6), IF($H$5=Pivots!$C$173,GETPIVOTDATA("URN",Pivots!$CM$75,"Provider Group",$A11,"Quality of teaching, learning and assessment",I$6), IF($H$5=Pivots!$C$175,GETPIVOTDATA("URN",Pivots!$CM$93,"Provider Group",$A11,"Outcomes for learners",I$6)))))) -> 6 | J11: =IF($H$5=Pivots!$C$171,GETPIVOTDATA("Organisation ID",Pivots!$CM$21,"Provider Group",$A11,"Overall effectiveness",J$6), IF($H$5=Pivots!$C$172,GETPIVOTDATA("URN",Pivots!$CM$39,"Provider Group",$A11,"Effectiveness of leadership and management",J$6), IF($H$5=Pivots!$C$174,GETPIVOTDATA("URN",Pivots!$CM$57,"Provider Group",$A11,"Personal development, behaviour and welfare",J$6), IF($H$5=Pivots!$C$173,GETPIVOTDATA("URN",Pivots!$CM$75,"Provider Group",$A11,"Quality of teaching, learning and assessment",J$6), IF($H$5=Pivots!$C$175,GETPIVOTDATA("URN",Pivots!$CM$93,"Provider Group",$A11,"Outcomes for learners",J$6)))))) -> 43 | K11: =IF($H$5=Pivots!$C$171,GETPIVOTDATA("Organisation ID",Pivots!$CM$21,"Provider Group",$A11,"Overall effectiveness",K$6), IF($H$5=Pivots!$C$172,GETPIVOTDATA("URN",Pivots!$CM$39,"Provider Group",$A11,"Effectiveness of leadership and management",K$6), IF($H$5=Pivots!$C$174,GETPIVOTDATA("URN",Pivots!$CM$57,"Provider Group",$A11,"Personal development, behaviour and welfare",K$6), IF($H$5=Pivots!$C$173,GETPIVOTDATA("URN",Pivots!$CM$75,"Provider Group",$A11,"Quality of teaching, learning and assessment",K$6), IF($H$5=Pivots!$C$175,GETPIVOTDATA("URN",Pivots!$CM$93,"Provider Group",$A11,"Outcomes for learners",K$6)))))) -> 10 | L11: =IF($H$5=Pivots!$C$171,GETPIVOTDATA("Organisation ID",Pivots!$CM$21,"Provider Group",$A11,"Overall effectiveness",L$6), IF($H$5=Pivots!$C$172,GETPIVOTDATA("URN",Pivots!$CM$39,"Provider Group",$A11,"Effectiveness of leadership and management",L$6), IF($H$5=Pivots!$C$174,GETPIVOTDATA("URN",Pivots!$CM$57,"Provider Group",$A11,"Personal development, behaviour and welfare",L$6), IF($H$5=Pivots!$C$173,GETPIVOTDATA("URN",Pivots!$CM$75,"Provider Group",$A11,"Quality of teaching, learning and assessment",L$6), IF($H$5=Pivots!$C$175,GETPIVOTDATA("URN",Pivots!$CM$93,"Provider Group",$A11,"Outcomes for learners",L$6)))))) -> 1
A12: Independent learning providers (including employer providers) | B12: Independent learning providers3 | D12: =GETPIVOTDATA("Organisation ID",Pivots!$CM$5,"Provider Group",A12) -> 506 | F12: 100 | H12: =IF($H$5=Pivots!$C$171,GETPIVOTDATA("Organisation ID",Pivots!$CM$21,"Provider Group",$A12), IF($H$5=Pivots!$C$172,GETPIVOTDATA("URN",Pivots!$CM$39,"Provider Group",$A12), IF($H$5=Pivots!$C$174,GETPIVOTDATA("URN",Pivots!$CM$57,"Provider Group",$A12), IF($H$5=Pivots!$C$173,GETPIVOTDATA("URN",Pivots!$CM$75,"Provider Group",$A12), IF($H$5=Pivots!$C$175,GETPIVOTDATA("URN",Pivots!$CM$93,"Provider Group",$A12), IF($H$5=Pivots!$C$176,GETPIVOTDATA("URN",Pivots!$CM$111,"Provider Group",$A12), IF($H$5=Pivots!$C$177,GETPIVOTDATA("URN",Pivots!$CM$129,"Provider Group",$A12), IF($H$5=Pivots!$C$178,GETPIVOTDATA("URN",Pivots!$CM$147,"Provider Group",$A12), IF($H$5=Pivots!$C$179,GETPIVOTDATA("URN",Pivots!$CM$165,"Provider Group",$A12), IF($H$5=Pivots!$C$180,GETPIVOTDATA("URN",Pivots!$CM$183,"Provider Group",$A12), IF($H$5=Pivots!$C$181,GETPIVOTDATA("URN",Pivots!$CM$201,"Provider Group",$A12),0))))))))))) -> 406 | I12: =IF($H$5=Pivots!$C$171,GETPIVOTDATA("Organisation ID",Pivots!$CM$21,"Provider Group",$A12,"Overall effectiveness",I$6), IF($H$5=Pivots!$C$172,GETPIVOTDATA("URN",Pivots!$CM$39,"Provider Group",$A12,"Effectiveness of leadership and management",I$6), IF($H$5=Pivots!$C$174,GETPIVOTDATA("URN",Pivots!$CM$57,"Provider Group",$A12,"Personal development, behaviour and welfare",I$6), IF($H$5=Pivots!$C$173,GETPIVOTDATA("URN",Pivots!$CM$75,"Provider Group",$A12,"Quality of teaching, learning and assessment",I$6), IF($H$5=Pivots!$C$175,GETPIVOTDATA("URN",Pivots!$CM$93,"Provider Group",$A12,"Outcomes for learners",I$6)))))) -> 49 | J12: =IF($H$5=Pivots!$C$171,GETPIVOTDATA("Organisation ID",Pivots!$CM$21,"Provider Group",$A12,"Overall effectiveness",J$6), IF($H$5=Pivots!$C$172,GETPIVOTDATA("URN",Pivots!$CM$39,"Provider Group",$A12,"Effectiveness of leadership and management",J$6), IF($H$5=Pivots!$C$174,GETPIVOTDATA("URN",Pivots!$CM$57,"Provider Group",$A12,"Personal development, behaviour and welfare",J$6), IF($H$5=Pivots!$C$173,GETPIVOTDATA("URN",Pivots!$CM$75,"Provider Group",$A12,"Quality of teaching, learning and assessment",J$6), IF($H$5=Pivots!$C$175,GETPIVOTDATA("URN",Pivots!$CM$93,"Provider Group",$A12,"Outcomes for learners",J$6)))))) -> 283 | K12: =IF($H$5=Pivots!$C$171,GETPIVOTDATA("Organisation ID",Pivots!$CM$21,"Provider Group",$A12,"Overall effectiveness",K$6), IF($H$5=Pivots!$C$172,GETPIVOTDATA("URN",Pivots!$CM$39,"Provider Group",$A12,"Effectiveness of leadership and management",K$6), IF($H$5=Pivots!$C$174,GETPIVOTDATA("URN",Pivots!$CM$57,"Provider Group",$A12,"Personal development, behaviour and welfare",K$6), IF($H$5=Pivots!$C$173,GETPIVOTDATA("URN",Pivots!$CM$75,"Provider Group",$A12,"Quality of teaching, learning and assessment",K$6), IF($H$5=Pivots!$C$175,GETPIVOTDATA("URN",Pivots!$CM$93,"Provider Group",$A12,"Outcomes for learners",K$6)))))) -> 63 | L12: =IF($H$5=Pivots!$C$171,GETPIVOTDATA("Organisation ID",Pivots!$CM$21,"Provider Group",$A12,"Overall effectiveness",L$6), IF($H$5=Pivots!$C$172,GETPIVOTDATA("URN",Pivots!$CM$39,"Provider Group",$A12,"Effectiveness of leadership and management",L$6), IF($H$5=Pivots!$C$174,GETPIVOTDATA("URN",Pivots!$CM$57,"Provider Group",$A12,"Personal development, behaviour and welfare",L$6), IF($H$5=Pivots!$C$173,GETPIVOTDATA("URN",Pivots!$CM$75,"Provider Group",$A12,"Quality of teaching, learning and assessment",L$6), IF($H$5=Pivots!$C$175,GETPIVOTDATA("URN",Pivots!$CM$93,"Provider Group",$A12,"Outcomes for learners",L$6)))))) -> 11
A13: Community learning and skills providers | B13: Community learning and skills providers4 | D13: =GETPIVOTDATA("Organisation ID",Pivots!$CM$5,"Provider Group",A13) -> 228 | F13: 2 | H13: =IF($H$5=Pivots!$C$171,GETPIVOTDATA("Organisation ID",Pivots!$CM$21,"Provider Group",$A13), IF($H$5=Pivots!$C$172,GETPIVOTDATA("URN",Pivots!$CM$39,"Provider Group",$A13), IF($H$5=Pivots!$C$174,GETPIVOTDATA("URN",Pivots!$CM$57,"Provider Group",$A13), IF($H$5=Pivots!$C$173,GETPIVOTDATA("URN",Pivots!$CM$75,"Provider Group",$A13), IF($H$5=Pivots!$C$175,GETPIVOTDATA("URN",Pivots!$CM$93,"Provider Group",$A13), IF($H$5=Pivots!$C$176,GETPIVOTDATA("URN",Pivots!$CM$111,"Provider Group",$A13), IF($H$5=Pivots!$C$177,GETPIVOTDATA("URN",Pivots!$CM$129,"Provider Group",$A13), IF($H$5=Pivots!$C$178,GETPIVOTDATA("URN",Pivots!$CM$147,"Provider Group",$A13), IF($H$5=Pivots!$C$179,GETPIVOTDATA("URN",Pivots!$CM$165,"Provider Group",$A13), IF($H$5=Pivots!$C$180,GETPIVOTDATA("URN",Pivots!$CM$183,"Provider Group",$A13), IF($H$5=Pivots!$C$181,GETPIVOTDATA("URN",Pivots!$CM$201,"Provider Group",$A13),0))))))))))) -> 226 | I13: =IF($H$5=Pivots!$C$171,GETPIVOTDATA("Organisation ID",Pivots!$CM$21,"Provider Group",$A13,"Overall effectiveness",I$6), IF($H$5=Pivots!$C$172,GETPIVOTDATA("URN",Pivots!$CM$39,"Provider Group",$A13,"Effectiveness of leadership and management",I$6), IF($H$5=Pivots!$C$174,GETPIVOTDATA("URN",Pivots!$CM$57,"Provider Group",$A13,"Personal development, behaviour and welfare",I$6), IF($H$5=Pivots!$C$173,GETPIVOTDATA("URN",Pivots!$CM$75,"Provider Group",$A13,"Quality of teaching, learning and assessment",I$6), IF($H$5=Pivots!$C$175,GETPIVOTDATA("URN",Pivots!$CM$93,"Provider Group",$A13,"Outcomes for learners",I$6)))))) -> 14 | J13: =IF($H$5=Pivots!$C$171,GETPIVOTDATA("Organisation ID",Pivots!$CM$21,"Provider Group",$A13,"Overall effectiveness",J$6), IF($H$5=Pivots!$C$172,GETPIVOTDATA("URN",Pivots!$CM$39,"Provider Group",$A13,"Effectiveness of leadership and management",J$6), IF($H$5=Pivots!$C$174,GETPIVOTDATA("URN",Pivots!$CM$57,"Provider Group",$A13,"Personal development, behaviour and welfare",J$6), IF($H$5=Pivots!$C$173,GETPIVOTDATA("URN",Pivots!$CM$75,"Provider Group",$A13,"Quality of teaching, learning and assessment",J$6), IF($H$5=Pivots!$C$175,GETPIVOTDATA("URN",Pivots!$CM$93,"Provider Group",$A13,"Outcomes for learners",J$6)))))) -> 174 | K13: =IF($H$5=Pivots!$C$171,GETPIVOTDATA("Organisation ID",Pivots!$CM$21,"Provider Group",$A13,"Overall effectiveness",K$6), IF($H$5=Pivots!$C$172,GETPIVOTDATA("URN",Pivots!$CM$39,"Provider Group",$A13,"Effectiveness of leadership and management",K$6), IF($H$5=Pivots!$C$174,GETPIVOTDATA("URN",Pivots!$CM$57,"Provider Group",$A13,"Personal development, behaviour and welfare",K$6), IF($H$5=Pivots!$C$173,GETPIVOTDATA("URN",Pivots!$CM$75,"Provider Group",$A13,"Quality of teaching, learning and assessment",K$6), IF($H$5=Pivots!$C$175,GETPIVOTDATA("URN",Pivots!$CM$93,"Provider Group",$A13,"Outcomes for learners",K$6)))))) -> 35 | L13: =IF($H$5=Pivots!$C$171,GETPIVOTDATA("Organisation ID",Pivots!$CM$21,"Provider Group",$A13,"Overall effectiveness",L$6), IF($H$5=Pivots!$C$172,GETPIVOTDATA("URN",Pivots!$CM$39,"Provider Group",$A13,"Effectiveness of leadership and management",L$6), IF($H$5=Pivots!$C$174,GETPIVOTDATA("URN",Pivots!$CM$57,"Provider Group",$A13,"Personal development, behaviour and welfare",L$6), IF($H$5=Pivots!$C$173,GETPIVOTDATA("URN",Pivots!$CM$75,"Provider Group",$A13,"Quality of teaching, learning and assessment",L$6), IF($H$5=Pivots!$C$175,GETPIVOTDATA("URN",Pivots!$CM$93,"Provider Group",$A13,"Outcomes for learners",L$6)))))) -> 3
A14: 16-19 academies | B14: 16-19 academies5 | D14: =GETPIVOTDATA("Organisation ID",Pivots!$CM$5,"Provider Group",A14) -> 24 | F14: 9 | H14: =IF($H$5=Pivots!$C$171,GETPIVOTDATA("Organisation ID",Pivots!$CM$21,"Provider Group",$A14), IF($H$5=Pivots!$C$172,GETPIVOTDATA("URN",Pivots!$CM$39,"Provider Group",$A14), IF($H$5=Pivots!$C$174,GETPIVOTDATA("URN",Pivots!$CM$57,"Provider Group",$A14), IF($H$5=Pivots!$C$173,GETPIVOTDATA("URN",Pivots!$CM$75,"Provider Group",$A14), IF($H$5=Pivots!$C$175,GETPIVOTDATA("URN",Pivots!$CM$93,"Provider Group",$A14), IF($H$5=Pivots!$C$176,GETPIVOTDATA("URN",Pivots!$CM$111,"Provider Group",$A14), IF($H$5=Pivots!$C$177,GETPIVOTDATA("URN",Pivots!$CM$129,"Provider Group",$A14), IF($H$5=Pivots!$C$178,GETPIVOTDATA("URN",Pivots!$CM$147,"Provider Group",$A14), IF($H$5=Pivots!$C$179,GETPIVOTDATA("URN",Pivots!$CM$165,"Provider Group",$A14), IF($H$5=Pivots!$C$180,GETPIVOTDATA("URN",Pivots!$CM$183,"Provider Group",$A14), IF($H$5=Pivots!$C$181,GETPIVOTDATA("URN",Pivots!$CM$201,"Provider Group",$A14),0))))))))))) -> 15 | I14: =IF($H$5=Pivots!$C$171,GETPIVOTDATA("Organisation ID",Pivots!$CM$21,"Provider Group",$A14,"Overall effectiveness",I$6), IF($H$5=Pivots!$C$172,GETPIVOTDATA("URN",Pivots!$CM$39,"Provider Group",$A14,"Effectiveness of leadership and management",I$6), IF($H$5=Pivots!$C$174,GETPIVOTDATA("URN",Pivots!$CM$57,"Provider Group",$A14,"Personal development, behaviour and welfare",I$6), IF($H$5=Pivots!$C$173,GETPIVOTDATA("URN",Pivots!$CM$75,"Provider Group",$A14,"Quality of teaching, learning and assessment",I$6), IF($H$5=Pivots!$C$175,GETPIVOTDATA("URN",Pivots!$CM$93,"Provider Group",$A14,"Outcomes for learners",I$6)))))) -> 4 | J14: =IF($H$5=Pivots!$C$171,GETPIVOTDATA("Organisation ID",Pivots!$CM$21,"Provider Group",$A14,"Overall effectiveness",J$6), IF($H$5=Pivots!$C$172,GETPIVOTDATA("URN",Pivots!$CM$39,"Provider Group",$A14,"Effectiveness of leadership and management",J$6), IF($H$5=Pivots!$C$174,GETPIVOTDATA("URN",Pivots!$CM$57,"Provider Group",$A14,"Personal development, behaviour and welfare",J$6), IF($H$5=Pivots!$C$173,GETPIVOTDATA("URN",Pivots!$CM$75,"Provider Group",$A14,"Quality of teaching, learning and assessment",J$6), IF($H$5=Pivots!$C$175,GETPIVOTDATA("URN",Pivots!$CM$93,"Provider Group",$A14,"Outcomes for learners",J$6)))))) -> 5 | K14: =IF($H$5=Pivots!$C$171,GETPIVOTDATA("Organisation ID",Pivots!$CM$21,"Provider Group",$A14,"Overall effectiveness",K$6), IF($H$5=Pivots!$C$172,GETPIVOTDATA("URN",Pivots!$CM$39,"Provider Group",$A14,"Effectiveness of leadership and management",K$6), IF($H$5=Pivots!$C$174,GETPIVOTDATA("URN",Pivots!$CM$57,"Provider Group",$A14,"Personal development, behaviour and welfare",K$6), IF($H$5=Pivots!$C$173,GETPIVOTDATA("URN",Pivots!$CM$75,"Provider Group",$A14,"Quality of teaching, learning and assessment",K$6), IF($H$5=Pivots!$C$175,GETPIVOTDATA("URN",Pivots!$CM$93,"Provider Group",$A14,"Outcomes for learners",K$6)))))) -> 4 | L14: =IF($H$5=Pivots!$C$171,GETPIVOTDATA("Organisation ID",Pivots!$CM$21,"Provider Group",$A14,"Overall effectiveness",L$6), IF($H$5=Pivots!$C$172,GETPIVOTDATA("URN",Pivots!$CM$39,"Provider Group",$A14,"Effectiveness of leadership and management",L$6), IF($H$5=Pivots!$C$174,GETPIVOTDATA("URN",Pivots!$CM$57,"Provider Group",$A14,"Personal development, behaviour and welfare",L$6), IF($H$5=Pivots!$C$173,GETPIVOTDATA("URN",Pivots!$CM$75,"Provider Group",$A14,"Quality of teaching, learning and assessment",L$6), IF($H$5=Pivots!$C$175,GETPIVOTDATA("URN",Pivots!$CM$93,"Provider Group",$A14,"Outcomes for learners",L$6)))))) -> 2
A15: Dance and drama colleges | B15: Dance and drama colleges6 | D15: =GETPIVOTDATA("Organisation ID",Pivots!$CM$5,"Provider Group",A15) -> 18 | F15: 0 | H15: =IF($H$5=Pivots!$C$171,GETPIVOTDATA("Organisation ID",Pivots!$CM$21,"Provider Group",$A15), IF($H$5=Pivots!$C$172,GETPIVOTDATA("URN",Pivots!$CM$39,"Provider Group",$A15), IF($H$5=Pivots!$C$174,GETPIVOTDATA("URN",Pivots!$CM$57,"Provider Group",$A15), IF($H$5=Pivots!$C$173,GETPIVOTDATA("URN",Pivots!$CM$75,"Provider Group",$A15), IF($H$5=Pivots!$C$175,GETPIVOTDATA("URN",Pivots!$CM$93,"Provider Group",$A15), IF($H$5=Pivots!$C$176,GETPIVOTDATA("URN",Pivots!$CM$111,"Provider Group",$A15), IF($H$5=Pivots!$C$177,GETPIVOTDATA("URN",Pivots!$CM$129,"Provider Group",$A15), IF($H$5=Pivots!$C$178,GETPIVOTDATA("URN",Pivots!$CM$147,"Provider Group",$A15), IF($H$5=Pivots!$C$179,GETPIVOTDATA("URN",Pivots!$CM$165,"Provider Group",$A15), IF($H$5=Pivots!$C$180,GETPIVOTDATA("URN",Pivots!$CM$183,"Provider Group",$A15), IF($H$5=Pivots!$C$181,GETPIVOTDATA("URN",Pivots!$CM$201,"Provider Group",$A15),0))))))))))) -> 18 | I15: =IF($H$5=Pivots!$C$171,GETPIVOTDATA("Organisation ID",Pivots!$CM$21,"Provider Group",$A15,"Overall effectiveness",I$6), IF($H$5=Pivots!$C$172,GETPIVOTDATA("URN",Pivots!$CM$39,"Provider Group",$A15,"Effectiveness of leadership and management",I$6), IF($H$5=Pivots!$C$174,GETPIVOTDATA("URN",Pivots!$CM$57,"Provider Group",$A15,"Personal development, behaviour and welfare",I$6), IF($H$5=Pivots!$C$173,GETPIVOTDATA("URN",Pivots!$CM$75,"Provider Group",$A15,"Quality of teaching, learning and assessment",I$6), IF($H$5=Pivots!$C$175,GETPIVOTDATA("URN",Pivots!$CM$93,"Provider Group",$A15,"Outcomes for learners",I$6)))))) -> 14 | J15: =IF($H$5=Pivots!$C$171,GETPIVOTDATA("Organisation ID",Pivots!$CM$21,"Provider Group",$A15,"Overall effectiveness",J$6), IF($H$5=Pivots!$C$172,GETPIVOTDATA("URN",Pivots!$CM$39,"Provider Group",$A15,"Effectiveness of leadership and management",J$6), IF($H$5=Pivots!$C$174,GETPIVOTDATA("URN",Pivots!$CM$57,"Provider Group",$A15,"Personal development, behaviour and welfare",J$6), IF($H$5=Pivots!$C$173,GETPIVOTDATA("URN",Pivots!$CM$75,"Provider Group",$A15,"Quality of teaching, learning and assessment",J$6), IF($H$5=Pivots!$C$175,GETPIVOTDATA("URN",Pivots!$CM$93,"Provider Group",$A15,"Outcomes for learners",J$6)))))) -> 3 | K15: =IF($H$5=Pivots!$C$171,GETPIVOTDATA("Organisation ID",Pivots!$CM$21,"Provider Group",$A15,"Overall effectiveness",K$6), IF($H$5=Pivots!$C$172,GETPIVOTDATA("URN",Pivots!$CM$39,"Provider Group",$A15,"Effectiveness of leadership and management",K$6), IF($H$5=Pivots!$C$174,GETPIVOTDATA("URN",Pivots!$CM$57,"Provider Group",$A15,"Personal development, behaviour and welfare",K$6), IF($H$5=Pivots!$C$173,GETPIVOTDATA("URN",Pivots!$CM$75,"Provider Group",$A15,"Quality of teaching, learning and assessment",K$6), IF($H$5=Pivots!$C$175,GETPIVOTDATA("URN",Pivots!$CM$93,"Provider Group",$A15,"Outcomes for learners",K$6)))))) -> 1 | L15: =IF($H$5=Pivots!$C$171,GETPIVOTDATA("Organisation ID",Pivots!$CM$21,"Provider Group",$A15,"Overall effectiveness",L$6), IF($H$5=Pivots!$C$172,GETPIVOTDATA("URN",Pivots!$CM$39,"Provider Group",$A15,"Effectiveness of leadership and management",L$6), IF($H$5=Pivots!$C$174,GETPIVOTDATA("URN",Pivots!$CM$57,"Provider Group",$A15,"Personal development, behaviour and welfare",L$6), IF($H$5=Pivots!$C$173,GETPIVOTDATA("URN",Pivots!$CM$75,"Provider Group",$A15,"Quality of teaching, learning and assessment",L$6), IF($H$5=Pivots!$C$175,GETPIVOTDATA("URN",Pivots!$CM$93,"Provider Group",$A15,"Outcomes for learners",L$6)))))) -> 0
A16: Higher education institutions | B16: Higher education institutions7 | D16: =GETPIVOTDATA("Organisation ID",Pivots!$CM$5,"Provider Group",A16) -> 27 | F16: 2 | H16: =IF($H$5=Pivots!$C$171,GETPIVOTDATA("Organisation ID",Pivots!$CM$21,"Provider Group",$A16), IF($H$5=Pivots!$C$172,GETPIVOTDATA("URN",Pivots!$CM$39,"Provider Group",$A16), IF($H$5=Pivots!$C$174,GETPIVOTDATA("URN",Pivots!$CM$57,"Provider Group",$A16), IF($H$5=Pivots!$C$173,GETPIVOTDATA("URN",Pivots!$CM$75,"Provider Group",$A16), IF($H$5=Pivots!$C$175,GETPIVOTDATA("URN",Pivots!$CM$93,"Provider Group",$A16), IF($H$5=Pivots!$C$176,GETPIVOTDATA("URN",Pivots!$CM$111,"Provider Group",$A16), IF($H$5=Pivots!$C$177,GETPIVOTDATA("URN",Pivots!$CM$129,"Provider Group",$A16), IF($H$5=Pivots!$C$178,GETPIVOTDATA("URN",Pivots!$CM$147,"Provider Group",$A16), IF($H$5=Pivots!$C$179,GETPIVOTDATA("URN",Pivots!$CM$165,"Provider Group",$A16), IF($H$5=Pivots!$C$180,GETPIVOTDATA("URN",Pivots!$CM$183,"Provider Group",$A16), IF($H$5=Pivots!$C$181,GETPIVOTDATA("URN",Pivots!$CM$201,"Provider Group",$A16),0))))))))))) -> 25 | I16: =IF($H$5=Pivots!$C$171,GETPIVOTDATA("Organisation ID",Pivots!$CM$21,"Provider Group",$A16,"Overall effectiveness",I$6), IF($H$5=Pivots!$C$172,GETPIVOTDATA("URN",Pivots!$CM$39,"Provider Group",$A16,"Effectiveness of leadership and management",I$6), IF($H$5=Pivots!$C$174,GETPIVOTDATA("URN",Pivots!$CM$57,"Provider Group",$A16,"Personal development, behaviour and welfare",I$6), IF($H$5=Pivots!$C$173,GETPIVOTDATA("URN",Pivots!$CM$75,"Provider Group",$A16,"Quality of teaching, learning and assessment",I$6), IF($H$5=Pivots!$C$175,GETPIVOTDATA("URN",Pivots!$CM$93,"Provider Group",$A16,"Outcomes for learners",I$6)))))) -> 9 | J16: =IF($H$5=Pivots!$C$171,GETPIVOTDATA("Organisation ID",Pivots!$CM$21,"Provider Group",$A16,"Overall effectiveness",J$6), IF($H$5=Pivots!$C$172,GETPIVOTDATA("URN",Pivots!$CM$39,"Provider Group",$A16,"Effectiveness of leadership and management",J$6), IF($H$5=Pivots!$C$174,GETPIVOTDATA("URN",Pivots!$CM$57,"Provider Group",$A16,"Personal development, behaviour and welfare",J$6), IF($H$5=Pivots!$C$173,GETPIVOTDATA("URN",Pivots!$CM$75,"Provider Group",$A16,"Quality of teaching, learning and assessment",J$6), IF($H$5=Pivots!$C$175,GETPIVOTDATA("URN",Pivots!$CM$93,"Provider Group",$A16,"Outcomes for learners",J$6)))))) -> 15 | K16: =IF($H$5=Pivots!$C$171,GETPIVOTDATA("Organisation ID",Pivots!$CM$21,"Provider Group",$A16,"Overall effectiveness",K$6), IF($H$5=Pivots!$C$172,GETPIVOTDATA("URN",Pivots!$CM$39,"Provider Group",$A16,"Effectiveness of leadership and management",K$6), IF($H$5=Pivots!$C$174,GETPIVOTDATA("URN",Pivots!$CM$57,"Provider Group",$A16,"Personal development, behaviour and welfare",K$6), IF($H$5=Pivots!$C$173,GETPIVOTDATA("URN",Pivots!$CM$75,"Provider Group",$A16,"Quality of teaching, learning and assessment",K$6), IF($H$5=Pivots!$C$175,GETPIVOTDATA("URN",Pivots!$CM$93,"Provider Group",$A16,"Outcomes for learners",K$6)))))) -> 1 | L16: =IF($H$5=Pivots!$C$171,GETPIVOTDATA("Organisation ID",Pivots!$CM$21,"Provider Group",$A16,"Overall effectiveness",L$6), IF($H$5=Pivots!$C$172,GETPIVOTDATA("URN",Pivots!$CM$39,"Provider Group",$A16,"Effectiveness of leadership and management",L$6), IF($H$5=Pivots!$C$174,GETPIVOTDATA("URN",Pivots!$CM$57,"Provider Group",$A16,"Personal development, behaviour and welfare",L$6), IF($H$5=Pivots!$C$173,GETPIVOTDATA("URN",Pivots!$CM$75,"Provider Group",$A16,"Quality of teaching, learning and assessment",L$6), IF($H$5=Pivots!$C$175,GETPIVOTDATA("URN",Pivots!$CM$93,"Provider Group",$A16,"Outcomes for learners",L$6)))))) -> 0
A17: National Careers Service Contractors | B17: National Careers Service contractors | D17: =GETPIVOTDATA("Organisation ID",Pivots!$CM$5,"Provider Group",A17) -> 13 | F17: 4 | H17: =IF($H$5=Pivots!$C$171,GETPIVOTDATA("Organisation ID",Pivots!$CM$21,"Provider Group",$A17), IF($H$5=Pivots!$C$172,GETPIVOTDATA("URN",Pivots!$CM$39,"Provider Group",$A17), IF($H$5=Pivots!$C$174,GETPIVOTDATA("URN",Pivots!$CM$57,"Provider Group",$A17), IF($H$5=Pivots!$C$173,GETPIVOTDATA("URN",Pivots!$CM$75,"Provider Group",$A17), IF($H$5=Pivots!$C$175,GETPIVOTDATA("URN",Pivots!$CM$93,"Provider Group",$A17), IF($H$5=Pivots!$C$176,GETPIVOTDATA("URN",Pivots!$CM$111,"Provider Group",$A17), IF($H$5=Pivots!$C$177,GETPIVOTDATA("URN",Pivots!$CM$129,"Provider Group",$A17), IF($H$5=Pivots!$C$178,GETPIVOTDATA("URN",Pivots!$CM$147,"Provider Group",$A17), IF($H$5=Pivots!$C$179,GETPIVOTDATA("URN",Pivots!$CM$165,"Provider Group",$A17), IF($H$5=Pivots!$C$180,GETPIVOTDATA("URN",Pivots!$CM$183,"Provider Group",$A17), IF($H$5=Pivots!$C$181,GETPIVOTDATA("URN",Pivots!$CM$201,"Provider Group",$A17),0))))))))))) -> 9 | I17: =IF($H$5=Pivots!$C$171,GETPIVOTDATA("Organisation ID",Pivots!$CM$21,"Provider Group",$A17,"Overall effectiveness",I$6), IF($H$5=Pivots!$C$172,GETPIVOTDATA("URN",Pivots!$CM$39,"Provider Group",$A17,"Effectiveness of leadership and management",I$6), IF($H$5=Pivots!$C$174,GETPIVOTDATA("URN",Pivots!$CM$57,"Provider Group",$A17,"Personal development, behaviour and welfare",I$6), IF($H$5=Pivots!$C$173,GETPIVOTDATA("URN",Pivots!$CM$75,"Provider Group",$A17,"Quality of teaching, learning and assessment",I$6), IF($H$5=Pivots!$C$175,GETPIVOTDATA("URN",Pivots!$CM$93,"Provider Group",$A17,"Outcomes for learners",I$6)))))) -> 2 | J17: =IF($H$5=Pivots!$C$171,GETPIVOTDATA("Organisation ID",Pivots!$CM$21,"Provider Group",$A17,"Overall effectiveness",J$6), IF($H$5=Pivots!$C$172,GETPIVOTDATA("URN",Pivots!$CM$39,"Provider Group",$A17,"Effectiveness of leadership and management",J$6), IF($H$5=Pivots!$C$174,GETPIVOTDATA("URN",Pivots!$CM$57,"Provider Group",$A17,"Personal development, behaviour and welfare",J$6), IF($H$5=Pivots!$C$173,GETPIVOTDATA("URN",Pivots!$CM$75,"Provider Group",$A17,"Quality of teaching, learning and assessment",J$6), IF($H$5=Pivots!$C$175,GETPIVOTDATA("URN",Pivots!$CM$93,"Provider Group",$A17,"Outcomes for learners",J$6)))))) -> 7 | K17: =IF($H$5=Pivots!$C$171,GETPIVOTDATA("Organisation ID",Pivots!$CM$21,"Provider Group",$A17,"Overall effectiveness",K$6), IF($H$5=Pivots!$C$172,GETPIVOTDATA("URN",Pivots!$CM$39,"Provider Group",$A17,"Effectiveness of leadership and management",K$6), IF($H$5=Pivots!$C$174,GETPIVOTDATA("URN",Pivots!$CM$57,"Provider Group",$A17,"Personal development, behaviour and welfare",K$6), IF($H$5=Pivots!$C$173,GETPIVOTDATA("URN",Pivots!$CM$75,"Provider Group",$A17,"Quality of teaching, learning and assessment",K$6), IF($H$5=Pivots!$C$175,GETPIVOTDATA("URN",Pivots!$CM$93,"Provider Group",$A17,"Outcomes for learners",K$6)))))) -> 0 | L17: =IF($H$5=Pivots!$C$171,GETPIVOTDATA("Organisation ID",Pivots!$CM$21,"Provider Group",$A17,"Overall effectiveness",L$6), IF($H$5=Pivots!$C$172,GETPIVOTDATA("URN",Pivots!$CM$39,"Provider Group",$A17,"Effectiveness of leadership and management",L$6), IF($H$5=Pivots!$C$174,GETPIVOTDATA("URN",Pivots!$CM$57,"Provider Group",$A17,"Personal development, behaviour and welfare",L$6), IF($H$5=Pivots!$C$173,GETPIVOTDATA("URN",Pivots!$CM$75,"Provider Group",$A17,"Quality of teaching, learning and assessment",L$6), IF($H$5=Pivots!$C$175,GETPIVOTDATA("URN",Pivots!$CM$93,"Provider Group",$A17,"Outcomes for learners",L$6)))))) -> 0
L18: Source: Ofsted inspection data
I19: % Outstanding | J19: % Good | K19: % Requires improvement / satisfactory⁸ | L19: % Inadequate
B20: =IF(OR(RIGHT(B9,1)="1",RIGHT(B9,1)="2",RIGHT(B9,1)="3",RIGHT(B9,1)="4",RIGHT(B9,1)="5",RIGHT(B9,1)="6",RIGHT(B9,1)="7",RIGHT(B9,1)="8",RIGHT(B9,1)="9"),LEFT(B9,LEN(B9)-1),B9)&" ("&TEXT(H9,"#,##0")&")" -> All further education and skills providers (1,069) | I20: =IFERROR(IF(ROUND(I9/$H9*100,0)=0,NA(),I9/$H9*100),NA()) -> 14.96725912 | J20: 65.20112254 | K20: 17.02525725 | L20: 2.806361085 | M20: =100-(IFERROR(I20,0)+IFERROR(J20,0)+IFERROR(K20,0)+IFERROR(L20,0)) -> 0
B21: Colleges (310) | I21: 20 | J21: 53.87096774 | K21: 21.93548387 | L21: 4.193548387 | M21: =100-(IFERROR(I21,0)+IFERROR(J21,0)+IFERROR(K21,0)+IFERROR(L21,0)) -> 0
B22: Independent specialist colleges (60) | I22: =IFERROR(IF(ROUND(I11/$H11*100,0)=0,NA(),I11/$H11*100),NA()) -> 10 | J22: 71.66666667 | K22: 16.66666667 | L22: 1.666666667 | M22: 0
B23: Independent learning providers (406) | I23: =IFERROR(IF(ROUND(I12/$H12*100,0)=0,NA(),I12/$H12*100),NA()) -> 12.06896552 | J23: 69.7044335 | K23: 15.51724138 | L23: 2.709359606 | M23: 0
B24: Community learning and skills providers (226) | I24: =IFERROR(IF(ROUND(I13/$H13*100,0)=0,NA(),I13/$H13*100),NA()) -> 6.194690265 | J24: 76.99115044 | K24: 15.48672566 | L24: 1.327433628 | M24: 0
B25: 16-19 academies (15) | I25: =IFERROR(IF(ROUND(I14/$H14*100,0)=0,NA(),I14/$H14*100),NA()) -> 26.66666667 | J25: 33.33333333 | K25: 26.66666667 | L25: 13.33333333 | M25: 0
B26: Dance and drama colleges (18) | I26: =IFERROR(IF(ROUND(I15/$H15*100,0)=0,NA(),I15/$H15*100),NA()) -> 77.77777778 | J26: 16.66666667 | K26: 5.555555556 | M26: 0
B27: Higher education institutions (25) | I27: =IFERROR(IF(ROUND(I16/$H16*100,0)=0,NA(),I16/$H16*100),NA()) -> 36 | J27: 60 | K27: 4 | M27: 0
B28: National Careers Service contractors (9) | I28: =IFERROR(IF(ROUND(I17/$H17*100,0)=0,NA(),I17/$H17*100),NA()) -> 22.22222222 | J28: 77.77777778 | M28: 0
B43: 1. Does not include prison and young offender institution inspections.
B44: 2. Includes general further education colleges, sixth form colleges and specialist further education colleges.
B45: 3. Includes employer providers.
B46: 4. Includes local authority, not for profit and specialist designated providers.
B47: 5. Includes 16-19 free schools, 16-19 academy converters and 16-19 sponsor led academies.
B48: 6. Inspections from 1 September 2015.
B49: 7. Inspection of further education provision only, not provider as a whole.
B50: 8. Prior to 1 September 2012, providers with an inspection outcome of grade 3 were judged as satisfactory.
B51: 9. Percentages are rounded and may not add to 100. Where the number of providers is small, percentages should be treated with caution.

Sheet C6 Most recent over time
B2: Chart 6: Most recent overall effectiveness of further education and skills providers, over time
B3: ="31 August 2012 to "&Inspections_To -> 31 August 2012 to 28 February 2017
C5: Total number of open and funded providers inspected1 | D5: Number of providers
B6: Latest inspection as at: | D6: Outstanding | E6: Good | F6: Requires improvement / satisfactory2 | G6: Inadequate
B7: =Dates1!B14 -> 28 February 2017 | C7: =SUM(D7:G7) -> 1069 | D7: =GETPIVOTDATA("URN",Pivots!$HU$7,"Overall effectiveness",1) -> 160 | E7: =GETPIVOTDATA("URN",Pivots!$HU$7,"Overall effectiveness",2) -> 697 | F7: =GETPIVOTDATA("URN",Pivots!$HU$7,"Overall effectiveness",3) -> 182 | G7: =GETPIVOTDATA("URN",Pivots!$HU$7,"Overall effectiveness",4) -> 30
B8: =Dates1!B15 -> 31 August 2016 | C8: =SUM(D8:G8) -> 1064 | D8: 156 | E8: 705 | F8: 174 | G8: 29
B9: =Dates1!B16 -> 31 August 2015 | C9: =SUM(D9:G9) -> 1058 | D9: 141 | E9: 722 | F9: 162 | G9: 33
B10: =Dates1!B17 -> 31 August 2014 | C10: =SUM(D10:G10) -> 1058 | D10: 145 | E10: 712 | F10: 173 | G10: 28
B11: =Dates1!B18 -> 31 August 2013 | C11: 1083 | D11: 151 | E11: 623 | F11: 270 | G11: 39
B12: =Dates1!B19 -> 31 August 2012 | C12: 1130 | D12: 151 | E12: 574 | F12: 371 | G12: 34
G13: Source: Ofsted inspection data
C15: % Outstanding | D15: % Good | E15: ="% Requires improvement / satisfactory"&CHAR(178) -> % Requires improvement / satisfactory² | F15: % Inadequate
B16: =B7&" ("&TEXT(C7,"#,####")&")" -> 28 February 2017 (1,069) | C16: =IFERROR(D7/$C7*100,0) -> 14.96725912 | D16: 65.20112254 | E16: 17.02525725 | F16: 2.806361085
B17: =B8&" ("&TEXT(C8,"#,####")&")" -> 31 August 2016 (1,064) | C17: 14.66165414 | D17: 66.2593985 | E17: 16.35338346 | F17: 2.72556391
B18: 31 August 2015 (1,058) | C18: 13.32703214 | D18: 68.24196597 | E18: 15.31190926 | F18: 3.119092628
B19: 31 August 2014 (1,058) | C19: 13.70510397 | D19: 67.29678639 | E19: 16.35160681 | F19: 2.646502836
B20: 31 August 2013 (1,083) | C20: 13.94275162 | D20: 57.52539243 | E20: 24.93074792 | F20: 3.601108033
B21: 31 August 2012 (1,130) | C21: 13.36283186 | D21: 50.79646018 | E21: 32.83185841 | F21: 3.008849558
B39: 1. Does not include prison and young offender institutions.
B40: 2. Prior to 1 September 2012, providers with an inspection outcome of grade 3 were judged as satisfactory.
B41: 3. Excludes higher education institutions and National Careers Service contractors before 1 September 2015.
B42: 4. Providers that ceased to be funded or closed during the corresponding reporting year are included before 1 September 2015.
B43: 5. Dance and drama colleges eligible for inclusion from 1 September 2015.
B44: 6. Academies introduced from 1 September 2013.
B45: 7. Percentages are rounded and may not add to 100.
Z1433: NULL

Sheet INSTRUCTIONS (hidden)
A1: PRE-QA
A3: Step | B3: Description | C3: Link | D3: Notes
A4: 1 | B4: Run stored procedures in SQL and get data ready to paste into excel. | C4: REPORT > Programmability > osf.sp_FES_OS_exe | D4: Enter appropriate end date
A5: 2 | B5: Paste dataset 1 (REPORT > Tables > tbl_FES_OS_dataset_1 - full and other inspections all together - not for publication) into the "Dataset 1 (all)" tab. Do not populate the "In-year data" tab - this comes after QA is complete! | C5: Dataset 1 (all) tab
A6: 3 | B6: Ensure that the named range "Table_1_DS1" refers to the whole of this tab. This named range is used in several pivot tables. | D6: If you add or remove rows during QA you may have to revisit this stage to ensure named ranges are consistent.
B7: Paste the same dataset into 'Data 1 (all) (SHORT inc)', filter for 'FES - Short Inspection', and change all of the 9s to 2s for Overall Effectiveness only. Everything else remains the same. Unfilter, and make sure the named range Table_1_DS13 refers to the data within this tab (not including the top row).
A8: 4 | B8: The remit team deal with dataset 1P into the "In-year prisons" tab, therefore there is currently no action necessary for this tab. | C8: In-year prisons
A9: 5 | B9: As above, but leaving this in here so there is a record. Ensure that the named range "Table_2a_DS1P" refers to the whole of this dataset. This named range is used for the table on prison inspections. | D9: If you add or remove rows during QA you may have to revisit this stage to ensure named ranges are consistent.
A10: 6 | B10: Paste dataset 2 (REPORT > Tables > tbl_FES_OS_dataset_2) into the "Most recent insp" tab. | C10: Most recent insp
A11: 7 | B11: Ensure that the named range "Table_2_DS1" refers to the whole of this dataset. This is used for a number of charts and tables. | D11: If you add or remove rows during QA you may have to revisit this stage to ensure named ranges are consistent.
A12: 8 | B12: The remit team currently do the following step: Update the "In-year historical dataset (1H)" dataset. You'll need to open the previous official stats release, copy and paste the entirety of the "In-year data" tab from that release to the bottom of this sheet. This effectively adds last year's data to the historical record. You'll likely need to faff with the columns to ensure they line up properly (sorry!). You'll also need to paste in the current reporting year into column AA (e.g. you might need to add rows for 2015/2016) | C12: In-year historical (1H)
A13: 9 | B13: Navigate to the "Pivots" tab. Click on a pivot table and select "refresh all" | C13: Pivots tab
A14: 10 | B14: Quickly scan the whole "pivots" tab for any obvious errors, issues or fails (for example, NULLS, blanks or unknown data values). Check especially for anything that falls outside of standard provider or event groupings. Such data will need careful attention and may need corrections in the code. | C14: Pivots tab
A15: 11 | B15: Quickly scan the charts and tables for any obvious errors, issues or fails (for example rows with all 0 entries but where data exists).
A16: 12 | B16: If starting a new period (June Official Stats release), you'll need to do some work on charts that contain historical information, by copying the information from the previous OS release into a new row, as follows:
A17: 13 | B17: Chart 3 - add a new row below the top row. You should now have a blank row 12. Now type the appropriate reporting year (e.g. 1 September 2015 - 31 August 2016) into cell B12. Type into cell A12 the year reference (e.g. 2015/2016) as per dataset 1H. You'll also need to update cells A11 and B11 for the current reporting year (e.g. 1 September 2016 - 28 February 2017 and "2016/2017"). | D17: If you change tab names the dropdown menus will stop working. Ask Adam Bennell for help with the VBA if this happens!
A18: 14 | B18: Next, copy the formulae from cells C13:H13 into C12:H12. This should populate with the previous year's data (do a quick sense check against the last official stats if you need to be sure) | C18: C3 in-year outcomes over time
A19: 15 | B19: Do the same thing for Chart 4. | C19: C4 In-year Grade 3 outcomes
A20: 16 | B20: You'll also need to update C6. Add in last year's data as a new row below row 7 (paste values as this is a static table). Then type this year's dates into cell B7.
A21: 17 | B21: You're now ready to QA the data, charts and tables!
A23: POST-QA!
A25: Step | B25: Description | C25: Link | D25: Notes
A26: 1 | B26: I'm assuming you've now fully QA-d the data and are happy that it is ready for publication. The remit team will do the majority of the tidying up and hiding things to make sure this document is ready to upload to the website.
A27: 2 | B27: Go to "Dataset 1 (all)" tab and filter for just items in Dataset 1. Then paste this data into the "In-year data" tab. | C27: Dataset 1 (all) tab
A28: 6 | B28: Do the same for Most recent insp | C28: Most recent insp
A29: 9 | B29: Fill in the "Dates1" tab with dates of the latest publication. These should populate automatically everywhere else. | C29: Dates1
A30: 10 | B30: Fill in the cover sheet and notes sheet where necessary. The remit team might need to help you.

Sheet Dataset 1 (all) (hidden)
A1: Web link | B1: Organisation ID | C1: Provider name | D1: URN | E1: UPIN | F1: UKPRN | G1: Provider Type | H1: Reporting provider type | I1: Further education type | J1: Provider Group | K1: Local authority | L1: Region | M1: Ofsted region | N1: Postcode | O1: Inspection number | P1: First day of inspection | Q1: Last day of inspection | R1: Publication date | S1: Withdrawn date | T1: Inspection type | U1: Inspection type grouping | V1: Event type grouping | W1: Converted inspection number | X1: Converted end date | Y1: Overall effectiveness | Z1: Effectiveness of leadership and management | AA1: Personal development, behaviour and welfare | AB1: Quality of teaching, learning and assessment | AC1: Outcomes for learners | AD1: 16 to 19 study programmes | AE1: Adult learning programmes | AF1: Apprenticeships | AG1: Full-time provision for 14 to 16-year-olds | AH1: Traineeships | AI1: Provision for learners with high needs | AJ1: Previous inspection number | AK1: Previous first day of inspection | AL1: Previous last day of inspection | AM1: Previous publication date | AN1: Previous withdrawn date | AO1: Previous inspection type | AP1: Previous inspection type grouping | AQ1: Previous event type grouping | AR1: Previous converted inspection number | AS1: Previous converted end date | AT1: Previous overall effectiveness | AU1: Previous effectiveness of leadership and management | AV1: Previous personal development, behaviour and welfare | AW1: Previous quality of teaching, learning and assessment | AX1: Previous outcomes for learners | AY1: Improved/declined | AZ1: Flag DS_1a | BA1: Flag DS_1b | BB1: [Did the short inspection convert to a full inspection?]
A2: =IF(D2<>"",HYPERLINK(CONCATENATE("http://reports.ofsted.gov.uk/inspection-reports/find-inspection-report/provider/ELS/",D2),"Ofsted web link"),"") -> Ofsted web link | B2: 1159142 | C2: TRN (Train) Ltd. | D2: 50315 | E2: 115666 | F2: 10000082 | G2: Independent Learning Provider | H2: Independent learning provider | I2: Not Applicable | J2: Independent learning providers (including employer providers) | K2: Gateshead | L2: North East | M2: North East, Yorkshire and the Humber | N2: NE11 0EF | O2: 10030668 | P2: 2017-02-21 | Q2: 2017-02-22 | R2: 2017-03-31 | S2: NULL | T2: Independent Learning Provider (Regional) - Short | U2: Short | V2: FES - Short inspection | W2: NULL | X2: NULL | Y2: 9 | Z2: - | AA2: - | AB2: - | AC2: - | AD2: - | AE2: - | AF2: - | AG2: - | AH2: - | AI2: - | AJ2: ITS410660 | AK2: 2013-05-13 | AL2: 2013-05-17 | AM2: 2013-06-20 | AN2: NULL | AO2: WBL (national) - Full | AP2: Full | AQ2: FES - Full Inspection | AR2: NULL | AS2: NULL | AT2: 2 | AU2: 2 | AV2: - | AW2: 2 | AX2: 2 | AY2: Not Applicable | AZ2: NULL | BA2: NULL | BB2: -
A3: Ofsted web link | B3: 1155423 | C3: Long Road Sixth Form College | D3: 130616 | E3: 108411 | F3: 10004088 | G3: Further Education | H3: Sixth form college | I3: Sixth Form College (General) | J3: Colleges | K3: Cambridgeshire | L3: East of England | M3: East of England | N3: CB2 8PX | O3: 10022599 | P3: 2017-01-24 | Q3: 2017-01-27 | R3: 2017-03-31 | S3: NULL | T3: SFC - Full | U3: Full | V3: FES - Full Inspection | W3: NULL | X3: NULL | Y3: 2 | Z3: 2 | AA3: 2 | AB3: 2 | AC3: 2 | AD3: 2 | AE3: - | AF3: - | AG3: - | AH3: - | AI3: - | AJ3: ITS429175 | AK3: 2014-02-04 | AL3: 2014-02-07 | AM3: 2014-03-11 | AN3: NULL | AO3: SFC - Full | AP3: Full | AQ3: FES - Full Inspection | AR3: NULL | AS3: NULL | AT3: 2 | AU3: 2 | AV3: - | AW3: 2 | AX3: 2 | AY3: Stayed the Same | AZ3: NULL | BA3: NULL | BB3: -
A4: Ofsted web link | B4: 1155569 | C4: Norwich City College of Further and Higher Education | D4: 130764 | E4: 106947 | F4: 10004772 | G4: Further Education | H4: General further education college | I4: General Further Education College | J4: Colleges | K4: Norfolk | L4: East of England | M4: East of England | N4: NR2 2LJ | O4: 10022603 | P4: 2017-02-07 | Q4: 2017-02-10 | R4: 2017-03-31 | S4: NULL | T4: FE College - Full | U4: Full | V4: FES - Full Inspection | W4: NULL | X4: NULL | Y4: 2 | Z4: 2 | AA4: 2 | AB4: 2 | AC4: 2 | AD4: 2 | AE4: 2 | AF4: 2 | AG4: - | AH4: - | AI4: 1 | AJ4: ITS410615 | AK4: 2013-03-18 | AL4: 2013-03-22 | AM4: 2013-06-06 | AN4: NULL | AO4: FE College - Full | AP4: Full | AQ4: FES - Full Inspection | AR4: NULL | AS4: NULL | AT4: 2 | AU4: 2 | AV4: - | AW4: 2 | AX4: 3 | AY4: Stayed the Same | AZ4: NULL | BA4: NULL | BB4: -
A5: Ofsted web link | B5: 1158746 | C5: Poultec Training Limited | D5: 53951 | E5: 106953 | F5: 10005172 | G5: Independent Learning Provider | H5: Independent learning provider | I5: Not Applicable | J5: Independent learning providers (including employer providers) | K5: Norfolk | L5: East of England | M5: East of England | N5: NR20 3JY | O5: 10022602 | P5: 2017-01-17 | Q5: 2017-01-18 | R5: 2017-03-29 | S5: NULL | T5: Independent Learning Provider (Regional) - Short | U5: Short | V5: FES - Short inspection | W5: NULL | X5: NULL | Y5: 9 | Z5: - | AA5: - | AB5: - | AC5: - | AD5: - | AE5: - | AF5: - | AG5: - | AH5: - | AI5: - | AJ5: ITS363195 | AK5: 2011-07-04 | AL5: 2011-07-08 | AM5: 2011-08-13 | AN5: NULL | AO5: WBL (national) - Full | AP5: Full | AQ5: FES - Full Inspection | AR5: NULL | AS5: NULL | AT5: 2 | AU5: 2 | AV5: - | AW5: 2 | AX5: 2 | AY5: Not Applicable | AZ5: NULL | BA5: NULL | BB5: -
A6: Ofsted web link | B6: 1141197 | C6: University of the Arts London | D6: 133900 | E6: 108268 | F6: 10007162 | G6: Higher Education Institutions | H6: Higher education institution | I6: Not Applicable | J6: Higher education institutions | K6: Camden | L6: London | M6: London | N6: WC1V 7EY | O6: 10022558 | P6: 2017-02-01 | Q6: 2017-02-28 | R6: 2017-03-29 | S6: NULL | T6: FE in HE - Short | U6: Full | V6: FES - Short inspection Conversion | W6: 10022558-2 | X6: 2017-02-28 | Y6: 1 | Z6: 1 | AA6: 1 | AB6: 1 | AC6: 1 | AD6: 1 | AE6: - | AF6: - | AG6: - | AH6: - | AI6: - | AJ6: ITS386024 | AK6: 2012-01-23 | AL6: 2012-01-27 | AM6: 2012-03-02 | AN6: NULL | AO6: FE in HE - Good Historic | AP6: Full | AQ6: FES - Full Inspection | AR6: NULL | AS6: NULL | AT6: 2 | AU6: 2 | AV6: - | AW6: 2 | AX6: 2 | AY6: Improved | AZ6: NULL | BA6: NULL | BB6: -
A7: Ofsted web link | B7: 1158998 | C7: Sutton and District Training Limited | D7: 54698 | E7: 109318 | F7: 10006438 | G7: Independent Learning Provider | H7: Independent learning provider | I7: Not Applicable | J7: Independent learning providers (including employer providers) | K7: Sutton | L7: London | M7: London | N7: SM1 1PA | O7: 10022547 | P7: 2017-02-21 | Q7: 2017-02-24 | R7: 2017-03-27 | S7: NULL | T7: Independent Learning Provider (Regional) - Full | U7: Full | V7: FES - Full Inspection | W7: NULL | X7: NULL | Y7: 2 | Z7: 2 | AA7: 2 | AB7: 2 | AC7: 2 | AD7: 2 | AE7: - | AF7: - | AG7: - | AH7: - | AI7: - | AJ7: ITS429120 | AK7: 2014-03-25 | AL7: 2014-03-28 | AM7: 2014-05-06 | AN7: NULL | AO7: Employer - Full | AP7: Full | AQ7: FES - Full Inspection | AR7: NULL | AS7: NULL | AT7: 2 | AU7: 2 | AV7: - | AW7: 2 | AX7: 3 | AY7: Stayed the Same | AZ7: NULL | BA7: NULL | BB7: -
A8: Ofsted web link | B8: 1143684 | C8: Sense College | D8: 132011 | E8: 114876 | F8: 10005748 | G8: Special College | H8: Independent specialist college | I8: Not Applicable | J8: Independent specialist colleges | K8: Peterborough | L8: East of England | M8: East of England | N8: PE7 8JB | O8: 10022598 | P8: 2017-02-07 | Q8: 2017-02-09 | R8: 2017-03-27 | S8: NULL | T8: ISC - Full | U8: Full | V8: FES - Full Inspection | W8: NULL | X8: NULL | Y8: 2 | Z8: 2 | AA8: 2 | AB8: 2 | AC8: 2 | AD8: - | AE8: - | AF8: - | AG8: - | AH8: - | AI8: 2 | AJ8: ITS427886 | AK8: 2014-06-16 | AL8: 2014-06-18 | AM8: 2014-07-15 | AN8: NULL | AO8: ISC - Full | AP8: Full | AQ8: FES - Full Inspection | AR8: NULL | AS8: NULL | AT8: 2 | AU8: 3 | AV8: - | AW8: 2 | AX8: 2 | AY8: Stayed the Same | AZ8: NULL | BA8: NULL | BB8: -
A9: Ofsted web link | B9: 1159007 | C9: System Group Limited | D9: 54726 | E9: 112419 | F9: 10006472 | G9: Independent Learning Provider | H9: Independent learning provider | I9: Not Applicable | J9: Independent learning providers (including employer providers) | K9: Liverpool | L9: North West | M9: North West | N9: L19 2RF | O9: 10022629 | P9: 2017-02-20 | Q9: 2017-02-23 | R9: 2017-03-24 | S9: NULL | T9: Independent Learning Provider (National) - Requires improvement | U9: Full | V9: FES - Full Inspection | W9: NULL | X9: NULL | Y9: 2 | Z9: 2 | AA9: 2 | AB9: 2 | AC9: 2 | AD9: - | AE9: 2 | AF9: 2 | AG9: - | AH9: - | AI9: - | AJ9: ITS455589 | AK9: 2015-06-15 | AL9: 2015-06-19 | AM9: 2015-07-22 | AN9: NULL | AO9: WBL (national) - Full | AP9: Full | AQ9: FES - Full Inspection | AR9: NULL | AS9: NULL | AT9: 3 | AU9: 3 | AV9: - | AW9: 3 | AX9: 3 | AY9: Improved | AZ9: NULL | BA9: NULL | BB9: -
A10: Ofsted web link | B10: 1157926 | C10: Capital Engineering Group Holdings Ltd | D10: 58587 | E10: 118533 | F10: 10022461 | G10: Independent Learning Provider | H10: Independent learning provider | I10: Not Applicable | J10: Independent learning providers (including employer providers) | K10: Tower Hamlets | L10: London | M10: London | N10: E1 1LN | O10: 10022543 | P10: 2017-01-10 | Q10: 2017-01-13 | R10: 2017-03-24 | S10: NULL | T10: Independent Learning Provider (National) - Full | U10: Full | V10: FES - Full Inspection | W10: NULL | X10: NULL | Y10: 3 | Z10: 3 | AA10: 3 | AB10: 3 | AC10: 3 | AD10: - | AE10: 3 | AF10: 2 | AG10: - | AH10: - | AI10: - | AJ10: ITS429239 | AK10: 2014-05-27 | AL10: 2014-05-30 | AM10: 2014-07-04 | AN10: NULL | AO10: Employer - Requires improvement | AP10: Full | AQ10: FES - Full Inspection | AR10: NULL | AS10: NULL | AT10: 2 | AU10: 2 | AV10: - | AW10: 2 | AX10: 2 | AY10: Declined | AZ10: NULL | BA10: NULL | BB10: -
A11: Ofsted web link | B11: 1157857 | C11: Blake College LLP | D11: 50743 | E11: 119224 | F11: 10030748 | G11: Independent Learning Provider | H11: Independent learning provider | I11: Not Applicable | J11: Independent learning providers (including employer providers) | K11: Islington | L11: London | M11: London | N11: N4 3JB | O11: 10020111 | P11: 2016-10-10 | Q11: 2016-10-12 | R11: 2017-03-22 | S11: NULL | T11: Independent Learning Provider (Regional) - Full | U11: Full | V11: FES - Full Inspection | W11: NULL | X11: NULL | Y11: 4 | Z11: 4 | AA11: 4 | AB11: 3 | AC11: 4 | AD11: 4 | AE11: - | AF11: - | AG11: - | AH11: - | AI11: - | AJ11: ITS404216 | AK11: 2013-01-30 | AL11: 2013-02-01 | AM11: 2013-03-08 | AN11: NULL | AO11: Adult and Community - full (regional) Historic | AP11: Full | AQ11: FES - Full Inspection | AR11: NULL | AS11: NULL | AT11: 2 | AU11: 3 | AV11: - | AW11: 2 | AX11: 2 | AY11: Declined | AZ11: NULL | BA11: NULL | BB11: -
A12: Ofsted web link | B12: 1155326 | C12: Tameside College | D12: 130516 | E12: 106868 | F12: 10006494 | G12: Further Education | H12: General further education college | I12: General Further Education College | J12: Colleges | K12: Tameside | L12: North West | M12: North West | N12: OL6 6NX | O12: 10022618 | P12: 2017-02-14 | Q12: 2017-02-17 | R12: 2017-03-21 | S12: NULL | T12: FE College - Requires improvement | U12: Full | V12: FES - Full Inspection | W12: NULL | X12: NULL | Y12: 3 | Z12: 3 | AA12: 3 | AB12: 3 | AC12: 3 | AD12: 3 | AE12: 2 | AF12: 3 | AG12: - | AH12: - | AI12: 2 | AJ12: ITS452546 | AK12: 2015-03-02 | AL12: 2015-03-06 | AM12: 2015-04-10 | AN12: NULL | AO12: FE College - Full | AP12: Full | AQ12: FES - Full Inspection | AR12: NULL | AS12: NULL | AT12: 3 | AU12: 3 | AV12: - | AW12: 3 | AX12: 3 | AY12: Stayed the Same | AZ12: NULL | BA12: NULL | BB12: -
A13: Ofsted web link | B13: 1155333 | C13: St John Rigby RC Sixth Form College | D13: 130523 | E13: 108328 | F13: 10006195 | G13: Further Education | H13: Sixth form college | I13: Sixth Form College (Voluntary Aided) | J13: Colleges | K13: Wigan | L13: North West | M13: North West | N13: WN5 0LJ | O13: 10020087 | P13: 2017-02-14 | Q13: 2017-02-17 | R13: 2017-03-21 | S13: NULL | T13: SFC - Full | U13: Full | V13: FES - Short inspection Conversion | W13: 10020087-2 | X13: 2017-02-17 | Y13: 1 | Z13: 1 | AA13: 1 | AB13: 1 | AC13: 1 | AD13: 1 | AE13: - | AF13: - | AG13: - | AH13: - | AI13: - | AJ13: ITS408455 | AK13: 2012-11-06 | AL13: 2012-11-09 | AM13: 2012-12-14 | AN13: NULL | AO13: SFC - Full | AP13: Full | AQ13: FES - Full Inspection | AR13: NULL | AS13: NULL | AT13: 2 | AU13: 2 | AV13: - | AW13: 2 | AX13: 2 | AY13: Improved | AZ13: NULL | BA13: NULL | BB13: -
A14: Ofsted web link | B14: 1155582 | C14: Vision West Nottinghamshire College | D14: 130777 | E14: 107960 | F14: 10007427 | G14: Further Education | H14: General further education college | I14: General Further Education College | J14: Colleges | K14: Nottinghamshire | L14: East Midlands | M14: East Midlands | N14: NG18 5BH | O14: 10011442 | P14: 2017-02-07 | Q14: 2017-02-10 | R14: 2017-03-21 | S14: NULL | T14: FE College - Full | U14: Full | V14: FES - Full Inspection | W14: NULL | X14: NULL | Y14: 2 | Z14: 2 | AA14: 2 | AB14: 2 | AC14: 2 | AD14: 3 | AE14: 2 | AF14: 2 | AG14: - | AH14: - | AI14: 2 | AJ14: ITS388004 | AK14: 2012-05-28 | AL14: 2012-06-01 | AM14: 2012-07-10 | AN14: NULL | AO14: College Inspection FE - Good Historic | AP14: Full | AQ14: FES - Full Inspection | AR14: NULL | AS14: NULL | AT14: 2 | AU14: 2 | AV14: - | AW14: 3 | AX14: 2 | AY14: Stayed the Same | AZ14: NULL | BA14: NULL | BB14: -
A15: Ofsted web link | B15: 1158929 | C15: South West Regional Assessment Centre Limited | D15: 54501 | E15: 116226 | F15: 10007872 | G15: Independent Learning Provider | H15: Independent learning provider | I15: Not Applicable | J15: Independent learning providers (including employer providers) | K15: Poole | L15: South West | M15: South West | N15: BH21 3AA | O15: 10030679 | P15: 2017-02-23 | Q15: 2017-02-24 | R15: 2017-03-20 | S15: NULL | T15: Independent Learning Provider (National) - Short | U15: Short | V15: FES - Short inspection | W15: NULL | X15: NULL | Y15: 9 | Z15: - | AA15: - | AB15: - | AC15: - | AD15: - | AE15: - | AF15: - | AG15: - | AH15: - | AI15: - | AJ15: ITS408542 | AK15: 2013-06-10 | AL15: 2013-06-14 | AM15: 2013-07-19 | AN15: NULL | AO15: WBL (national) - Full | AP15: Full | AQ15: FES - Full Inspection | AR15: NULL | AS15: NULL | AT15: 2 | AU15: 2 | AV15: - | AW15: 2 | AX15: 2 | AY15: Not Applicable | AZ15: NULL | BA15: NULL | BB15: -
A16: Ofsted web link | B16: 1147904 | C16: Staffordshire County Council | D16: 54584 | E16: 116188 | F16: 10006296 | G16: Community Learning and Skills - Local Authority | H16: Local authority provider | I16: Not Applicable | J16: Community learning and skills providers | K16: Staffordshire | L16: West Midlands | M16: West Midlands | N16: ST16 2DH | O16: 10022590 | P16: 2017-02-27 | Q16: 2017-02-28 | R16: 2017-03-20 | S16: NULL | T16: Community Learning and Skills - Local authority - Short | U16: Short | V16: FES - Short inspection | W16: NULL | X16: NULL | Y16: 9 | Z16: - | AA16: - | AB16: - | AC16: - | AD16: - | AE16: - | AF16: - | AG16: - | AH16: - | AI16: - | AJ16: ITS399146 | AK16: 2012-11-19 | AL16: 2012-11-23 | AM16: 2013-01-02 | AN16: NULL | AO16: Adult and Community - full (regional) Historic | AP16: Full | AQ16: FES - Full Inspection | AR16: NULL | AS16: NULL | AT16: 2 | AU16: 1 | AV16: - | AW16: 2 | AX16: 2 | AY16: Not Applicable | AZ16: NULL | BA16: NULL | BB16: -
A17: Ofsted web link | B17: 1158190 | C17: FIRST4SKILLS Limited | D17: 59142 | E17: 123106 | F17: 10038911 | G17: Independent Learning Provider | H17: Independent learning provider | I17: Not Applicable | J17: Independent learning providers (including employer providers) | K17: Liverpool | L17: North West | M17: North West | N17: L3 1BG | O17: 10022628 | P17: 2017-02-07 | Q17: 2017-02-10 | R17: 2017-03-20 | S17: NULL | T17: Independent Learning Provider (National) - Requires improvement | U17: Full | V17: FES - Full Inspection | W17: NULL | X17: NULL | Y17: 4 | Z17: 4 | AA17: 4 | AB17: 4 | AC17: 4 | AD17: - | AE17: - | AF17: 4 | AG17: - | AH17: - | AI17: - | AJ17: ITS455600 | AK17: 2015-05-18 | AL17: 2015-05-22 | AM17: 2015-06-26 | AN17: NULL | AO17: WBL (national) - Full | AP17: Full | AQ17: FES - Full Inspection | AR17: NULL | AS17: NULL | AT17: 3 | AU17: 3 | AV17: - | AW17: 3 | AX17: 3 | AY17: Declined | AZ17: NULL | BA17: NULL | BB17: -
A18: Ofsted web link | B18: 1155483 | C18: Epping Forest College | D18: 130677 | E18: 108461 | F18: 10002297 | G18: Further Education | H18: General further education college | I18: General Further Education College | J18: Colleges | K18: Essex | L18: East of England | M18: East of England | N18: IG10 3SA | O18: 10030642 | P18: 2017-01-26 | Q18: 2017-01-26 | R18: 2017-03-17 | S18: NULL | T18: FE College - Reinspection monitoring visit | U18: Reinspection monitoring | V18: FES - Monitoring Inspection | W18: NULL | X18: NULL | Y18: - | Z18: - | AA18: - | AB18: - | AC18: - | AD18: - | AE18: - | AF18: - | AG18: - | AH18: - | AI18: - | AJ18: 10004740 | AK18: 2016-11-15 | AL18: 2016-11-18 | AM18: 2017-01-06 | AN18: NULL | AO18: FE College - Requires improvement - second inspection | AP18: Full | AQ18: FES - Full Inspection | AR18: NULL | AS18: NULL | AT18: 4 | AU18: 4 | AV18: 4 | AW18: 4 | AX18: 4 | AY18: Not Applicable | AZ18: NULL | BA18: NULL | BB18: -
A19: Ofsted web link | B19: 1149227 | C19: Busy Bees Nurseries Limited | D19: 50936 | E19: 119214 | F19: 10030637 | G19: Employer | H19: Employer provider | I19: Not Applicable | J19: Independent learning providers (including employer providers) | K19: Staffordshire | L19: West Midlands | M19: West Midlands | N19: WS14 0SB | O19: 10022580 | P19: 2017-02-01 | Q19: 2017-02-09 | R19: 2017-03-16 | S19: NULL | T19: Independent Learning Provider (National) - Short | U19: Full | V19: FES - Short inspection Conversion | W19: 10022580-2 | X19: 2017-02-09 | Y19: 1 | Z19: 1 | AA19: 1 | AB19: 1 | AC19: 1 | AD19: - | AE19: - | AF19: 1 | AG19: - | AH19: - | AI19: - | AJ19: ITS404570 | AK19: 2012-10-16 | AL19: 2012-10-19 | AM19: 2012-11-23 | AN19: NULL | AO19: WBL (national) - Full | AP19: Full | AQ19: FES - Full Inspection | AR19: NULL | AS19: NULL | AT19: 2 | AU19: 2 | AV19: - | AW19: 2 | AX19: 2 | AY19: Improved | AZ19: NULL | BA19: NULL | BB19: -
A20: Ofsted web link | B20: 1155277 | C20: Birmingham Metropolitan College | D20: 130466 | E20: 106368 | F20: 10006442 | G20: Further Education | H20: General further education college | I20: General Further Education College | J20: Colleges | K20: Birmingham | L20: West Midlands | M20: West Midlands | N20: B4 7PS | O20: 10022579 | P20: 2017-02-14 | Q20: 2017-02-17 | R20: 2017-03-16 | S20: NULL | T20: FE College - Requires improvement | U20: Full | V20: FES - Full Inspection | W20: NULL | X20: NULL | Y20: 3 | Z20: 3 | AA20: 3 | AB20: 3 | AC20: 3 | AD20: 3 | AE20: 3 | AF20: 2 | AG20: - | AH20: - | AI20: 2 | AJ20: ITS455456 | AK20: 2015-05-18 | AL20: 2015-05-22 | AM20: 2015-06-18 | AN20: NULL | AO20: FE College - Full | AP20: Full | AQ20: FES - Full Inspection | AR20: NULL | AS20: NULL | AT20: 3 | AU20: 3 | AV20: - | AW20: 3 | AX20: 3 | AY20: Stayed the Same | AZ20: NULL | BA20: NULL | BB20: -
A21: Ofsted web link | B21: 1155415 | C21: Amersham and Wycombe College | D21: 130608 | E21: 105019 | F21: 10000275 | G21: Further Education | H21: General further education college | I21: General Further Education College | J21: Colleges | K21: Buckinghamshire | L21: South East | M21: South East | N21: HP7 9HN | O21: 10025585 | P21: 2017-02-22 | Q21: 2017-02-23 | R21: 2017-03-16 | S21: NULL | T21: FE College - Reinspection monitoring visit | U21: Reinspection monitoring | V21: FES - Monitoring Inspection | W21: NULL | X21: NULL | Y21: - | Z21: - | AA21: - | AB21: - | AC21: - | AD21: - | AE21: - | AF21: - | AG21: - | AH21: - | AI21: - | AJ21: 10011426 | AK21: 2016-06-07 | AL21: 2016-06-10 | AM21: 2016-07-12 | AN21: NULL | AO21: FE College - Requires improvement - second inspection | AP21: Full | AQ21: FES - Full Inspection | AR21: NULL | AS21: NULL | AT21: 4 | AU21: 4 | AV21: 3 | AW21: 3 | AX21: 3 | AY21: Not Applicable | AZ21: NULL | BA21: NULL | BB21: -
A22: Ofsted web link | B22: 1147327 | C22: Kimberley 16 - 19 Stem College | D22: 139798 | E22: 123318 | F22: 10042040 | G22: Free School - 16-19 | H22: 16-19 free school | I22: Not Applicable | J22: 16-19 academies | K22: Bedford | L22: East of England | M22: East of England | N22: MK43 9LY | O22: 10022600 | P22: 2017-01-24 | Q22: 2017-01-26 | R22: 2017-03-16 | S22: NULL | T22: 16-19 academy - Requires Improvement | U22: Full | V22: FES - Full Inspection | W22: NULL | X22: NULL | Y22: 2 | Z22: 2 | AA22: 1 | AB22: 2 | AC22: 2 | AD22: 2 | AE22: - | AF22: - | AG22: - | AH22: - | AI22: - | AJ22: ITS452501 | AK22: 2015-03-10 | AL22: 2015-03-13 | AM22: 2015-04-21 | AN22: NULL | AO22: 16-19 academy - Full | AP22: Full | AQ22: FES - Full Inspection | AR22: NULL | AS22: NULL | AT22: 3 | AU22: 3 | AV22: - | AW22: 3 | AX22: 3 | AY22: Improved | AZ22: NULL | BA22: NULL | BB22: No
A23: Ofsted web link | B23: 1158846 | C23: S.Y.T.G. Limited | D23: 54504 | E23: 106993 | F23: 10010846 | G23: Independent Learning Provider | H23: Independent learning provider | I23: Not Applicable | J23: Independent learning providers (including employer providers) | K23: Sheffield | L23: Yorkshire and The Humber | M23: North East, Yorkshire and the Humber | N23: S9 5AF | O23: 10022106 | P23: 2016-12-06 | Q23: 2016-12-09 | R23: 2017-03-15 | S23: NULL | T23: Independent Learning Provider (Regional) - Full | U23: Full | V23: FES - Full Inspection | W23: NULL | X23: NULL | Y23: 4 | Z23: 4 | AA23: 4 | AB23: 4 | AC23: 4 | AD23: 4 | AE23: - | AF23: - | AG23: - | AH23: - | AI23: - | AJ23: ITS430256 | AK23: 2014-11-11 | AL23: 2014-11-14 | AM23: 2014-12-17 | AN23: NULL | AO23: Employer - Requires improvement | AP23: Full | AQ23: FES - Full Inspection | AR23: NULL | AS23: NULL | AT23: 2 | AU23: 3 | AV23: - | AW23: 2 | AX23: 2 | AY23: Declined | AZ23: NULL | BA23: NULL | BB23: No
A24: Ofsted web link | B24: 1155305 | C24: Bolton College | D24: 130495 | E24: 106815 | F24: 10000794 | G24: Further Education | H24: General further education college | I24: General Further Education College | J24: Colleges | K24: Bolton | L24: North West | M24: North West | N24: BL3 5BG | O24: 10022613 | P24: 2017-02-07 | Q24: 2017-02-10 | R24: 2017-03-15 | S24: NULL | T24: FE College - Requires improvement | U24: Full | V24: FES - Full Inspection | W24: NULL | X24: NULL | Y24: 2 | Z24: 2 | AA24: 2 | AB24: 2 | AC24: 2 | AD24: 2 | AE24: 3 | AF24: 2 | AG24: - | AH24: - | AI24: 2 | AJ24: ITS455663 | AK24: 2015-03-16 | AL24: 2015-03-20 | AM24: 2015-06-03 | AN24: NULL | AO24: FE College - Full | AP24: Full | AQ24: FES - Full Inspection | AR24: NULL | AS24: NULL | AT24: 3 | AU24: 3 | AV24: - | AW24: 2 | AX24: 3 | AY24: Improved | AZ24: NULL | BA24: NULL | BB24: No
A25: Ofsted web link | B25: 1155309 | C25: Holy Cross College | D25: 130499 | E25: 108367 | F25: 10003128 | G25: Further Education | H25: Sixth form college | I25: Sixth Form College (Voluntary Aided) | J25: Colleges | K25: Bury | L25: North West | M25: North West | N25: BL9 9BB | O25: 10020157 | P25: 2017-01-31 | Q25: 2017-02-03 | R25: 2017-03-15 | S25: NULL | T25: SFC - Full | U25: Full | V25: FES - Full Inspection | W25: NULL | X25: NULL | Y25: 3 | Z25: 3 | AA25: 2 | AB25: 3 | AC25: 3 | AD25: 3 | AE25: - | AF25: - | AG25: - | AH25: - | AI25: - | AJ25: ITS298683 | AK25: 2007-02-26 | AL25: 2007-03-02 | AM25: 2007-06-21 | AN25: NULL | AO25: College Inspection SFC - Good Historic | AP25: Full | AQ25: FES - Full Inspection | AR25: NULL | AS25: NULL | AT25: 1 | AU25: 1 | AV25: - | AW25: 1 | AX25: 1 | AY25: Declined | AZ25: NULL | BA25: NULL | BB25: No
A26: Ofsted web link | B26: 1147330 | C26: Salisbury Sixth Form College | D26: 140621 | E26: 130539 | F26: 10046731 | G26: Free School - 16-19 | H26: 16-19 free school | I26: Not Applicable | J26: 16-19 academies | K26: Wiltshire | L26: South West | M26: South West | N26: SP1 2JJ | O26: 10022512 | P26: 2017-02-08 | Q26: 2017-02-10 | R26: 2017-03-15 | S26: NULL | T26: 16-19 academy - Full | U26: Full | V26: FES - Full Inspection | W26: NULL | X26: NULL | Y26: 2 | Z26: 2 | AA26: 2 | AB26: 2 | AC26: 2 | AD26: 2 | AE26: - | AF26: - | AG26: - | AH26: - | AI26: - | AJ26: NULL | AK26: NULL | AL26: NULL | AM26: NULL | AN26: NULL | AO26: NULL | AP26: NULL | AQ26: NULL | AR26: NULL | AS26: NULL | AT26: NULL | AU26: NULL | AV26: NULL | AW26: NULL | AX26: NULL | AY26: Not Applicable | AZ26: NULL | BA26: NULL | BB26: No
A27: Ofsted web link | B27: 1147765 | C27: BROADLAND DISTRICT COUNCIL | D27: 50098 | E27: 106945 | F27: 10000941 | G27: Community Learning and Skills - Local Authority | H27: Local authority provider | I27: Not Applicable | J27: Community learning and skills providers | K27: Norfolk | L27: East of England | M27: East of England | N27: NR7 0DU | O27: 10022597 | P27: 2017-01-24 | Q27: 2017-01-27 | R27: 2017-03-14 | S27: NULL | T27: Community Learning and Skills - Local authority - Requires Improvement | U27: Full | V27: FES - Full Inspection | W27: NULL | X27: NULL | Y27: 2 | Z27: 2 | AA27: 2 | AB27: 2 | AC27: 2 | AD27: - | AE27: - | AF27: 2 | AG27: 2 | AH27: - | AI27: - | AJ27: ITS452973 | AK27: 2015-03-09 | AL27: 2015-03-13 | AM27: 2015-05-08 | AN27: NULL | AO27: Employer - Full | AP27: Full | AQ27: FES - Full Inspection | AR27: NULL | AS27: NULL | AT27: 3 | AU27: 3 | AV27: - | AW27: 3 | AX27: 3 | AY27: Improved | AZ27: NULL | BA27: NULL | BB27: No
A28: Ofsted web link | B28: 1155568 | C28: The College of West Anglia | D28: 130763 | E28: 105939 | F28: 10007916 | G28: Further Education | H28: General further education college | I28: General Further Education College | J28: Colleges | K28: Norfolk | L28: East of England | M28: East of England | N28: PE30 2QW | O28: 10022608 | P28: 2017-01-11 | Q28: 2017-01-17 | R28: 2017-03-14 | S28: NULL | T28: FE College - Full | U28: Full | V28: FES - Short inspection Conversion | W28: 10022608-2 | X28: 2017-01-17 | Y28: 3 | Z28: 3 | AA28: 3 | AB28: 3 | AC28: 3 | AD28: 3 | AE28: 3 | AF28: 1 | AG28: - | AH28: - | AI28: - | AJ28: ITS408429 | AK28: 2013-01-14 | AL28: 2013-01-18 | AM28: 2013-02-22 | AN28: NULL | AO28: FE College - Full | AP28: Full | AQ28: FES - Full Inspection | AR28: NULL | AS28: NULL | AT28: 2 | AU28: 2 | AV28: - | AW28: 2 | AX28: 2 | AY28: Declined | AZ28: NULL | BA28: NULL | BB28: No
A29: Ofsted web link | B29: 1223878 | C29: Nottingham City Transport Ltd | D29: 1223878 | E29: 121314 | F29: 10034240 | G29: Employer | H29: Employer provider | I29: Not Applicable | J29: Independent learning providers (including employer providers) | K29: Nottingham | L29: East Midlands | M29: East Midlands | N29: NG1 1GG | O29: 10022575 | P29: 2017-02-14 | Q29: 2017-02-16 | R29: 2017-03-14 | S29: NULL | T29: Independent Learning Provider (Regional) - Full | U29: Full | V29: FES - Full Inspection | W29: NULL | X29: NULL | Y29: 3 | Z29: 3 | AA29: 2 | AB29: 3 | AC29: 3 | AD29: - | AE29: - | AF29: 3 | AG29: - | AH29: - | AI29: - | AJ29: NULL | AK29: NULL | AL29: NULL | AM29: NULL | AN29: NULL | AO29: NULL | AP29: NULL | AQ29: NULL | AR29: NULL | AS29: NULL | AT29: NULL | AU29: NULL | AV29: NULL | AW29: NULL | AX29: NULL | AY29: Not Applicable | AZ29: NULL | BA29: NULL | BB29: -
A30: Ofsted web link | B30: 1155224 | C30: Kensington and Chelsea College | D30: 130410 | E30: 108322 | F30: 10003564 | G30: Further Education | H30: General further education college | I30: General Further Education College | J30: Colleges | K30: Kensington and Chelsea | L30: London | M30: London | N30: SW10 0QS | O30: 10022561 | P30: 2017-01-31 | Q30: 2017-02-03 | R30: 2017-03-13 | S30: NULL | T30: FE College - Requires improvement - second inspection | U30: Full | V30: FES - Full Inspection | W30: NULL | X30: NULL | Y30: 3 | Z30: 3 | AA30: 2 | AB30: 3 | AC30: 3 | AD30: 2 | AE30: 3 | AF30: 4 | AG30: - | AH30: - | AI30: - | AJ30: ITS440397 | AK30: 2015-06-02 | AL30: 2015-06-05 | AM30: 2015-07-10 | AN30: NULL | AO30: FE College - Requires improvement | AP30: Full | AQ30: FES - Full Inspection | AR30: NULL | AS30: NULL | AT30: 3 | AU30: 3 | AV30: - | AW30: 3 | AX30: 3 | AY30: Stayed the Same | AZ30: NULL | BA30: NULL | BB30: -
A31: Ofsted web link | B31: 1147838 | C31: Leeds City Council | D31: 52985 | E31: 115315 | F31: 10003853 | G31: Community Learning and Skills - Local Authority | H31: Local authority provider | I31: Not Applicable | J31: Community learning and skills providers | K31: Leeds | L31: Yorkshire and The Humber | M31: North East, Yorkshire and the Humber | N31: LS2 8HD | O31: 10022487 | P31: 2017-02-08 | Q31: 2017-02-09 | R31: 2017-03-08 | S31: NULL | T31: Community Learning and Skills - Local authority - Short | U31: Short | V31: FES - Short inspection | W31: NULL | X31: NULL | Y31: 9 | Z31: - | AA31: - | AB31: - | AC31: - | AD31: - | AE31: - | AF31: - | AG31: - | AH31: - | AI31: - | AJ31: ITS410634 | AK31: 2013-04-15 | AL31: 2013-04-19 | AM31: 2013-05-23 | AN31: NULL | AO31: Adult and Community - full (regional) Historic | AP31: Full | AQ31: FES - Full Inspection | AR31: NULL | AS31: NULL | AT31: 2 | AU31: 2 | AV31: - | AW31: 2 | AX31: 2 | AY31: Not Applicable | AZ31: NULL | BA31: NULL | BB31: No
A32: Ofsted web link | B32: 1158910 | C32: Skills Training UK Limited | D32: 54414 | E32: 108603 | F32: 10005897 | G32: Independent Learning Provider | H32: Independent learning provider | I32: Not Applicable | J32: Independent learning providers (including employer providers) | K32: Brent | L32: London | M32: London | N32: HA9 0PE | O32: 10022548 | P32: 2017-02-14 | Q32: 2017-02-17 | R32: 2017-03-08 | S32: NULL | T32: Independent Learning Provider (National) - Full | U32: Full | V32: FES - Full Inspection | W32: NULL | X32: NULL | Y32: 2 | Z32: 2 | AA32: 2 | AB32: 2 | AC32: 2 | AD32: - | AE32: - | AF32: 2 | AG32: - | AH32: 2 | AI32: - | AJ32: ITS429090 | AK32: 2014-03-04 | AL32: 2014-03-07 | AM32: 2014-04-11 | AN32: NULL | AO32: Employer - Requires improvement | AP32: Full | AQ32: FES - Full Inspection | AR32: NULL | AS32: NULL | AT32: 2 | AU32: 2 | AV32: - | AW32: 2 | AX32: 2 | AY32: Stayed the Same | AZ32: NULL | BA32: NULL | BB32: No
A33: Ofsted web link | B33: 1147787 | C33: Council of the Isles of Scilly | D33: 52550 | E33: 110135 | F33: 10001710 | G33: Community Learning and Skills - Local Authority | H33: Local authority provider | I33: Not Applicable | J33: Community learning and skills providers | K33: Isles of Scilly | L33: South West | M33: South West | N33: TR21 0LW | O33: 10022502 | P33: 2017-02-15 | Q33: 2017-02-15 | R33: 2017-03-07 | S33: NULL | T33: Community Learning and Skills - Local authority - Short | U33: Short | V33: FES - Short inspection | W33: NULL | X33: NULL | Y33: 9 | Z33: - | AA33: - | AB33: - | AC33: - | AD33: - | AE33: - | AF33: - | AG33: - | AH33: - | AI33: - | AJ33: ITS399144 | AK33: 2012-11-06 | AL33: 2012-11-09 | AM33: 2012-12-14 | AN33: NULL | AO33: Adult and Community - full (regional) Historic | AP33: Full | AQ33: FES - Full Inspection | AR33: NULL | AS33: NULL | AT33: 2 | AU33: 2 | AV33: - | AW33: 2 | AX33: 2 | AY33: Not Applicable | AZ33: NULL | BA33: NULL | BB33: -
A34: Ofsted web link | B34: 1155251 | C34: Stanmore College | D34: 130440 | E34: 108462 | F34: 10009439 | G34: Further Education | H34: General further education college | I34: General Further Education College | J34: Colleges | K34: Harrow | L34: London | M34: London | N34: HA7 4BQ | O34: 10022554 | P34: 2017-01-31 | Q34: 2017-02-03 | R34: 2017-03-06 | S34: NULL | T34: FE College - Reinspection | U34: Reinspection | V34: FES - Full Inspection | W34: NULL | X34: NULL | Y34: 2 | Z34: 2 | AA34: 2 | AB34: 2 | AC34: 2 | AD34: 2 | AE34: 2 | AF34: - | AG34: - | AH34: - | AI34: - | AJ34: 10004676 | AK34: 2015-09-22 | AL34: 2015-09-25 | AM34: 2015-11-09 | AN34: NULL | AO34: FE College - Requires improvement | AP34: Full | AQ34: FES - Full Inspection | AR34: NULL | AS34: NULL | AT34: 4 | AU34: 4 | AV34: 4 | AW34: 4 | AX34: 4 | AY34: Improved | AZ34: NULL | BA34: NULL | BB34: No
A35: Ofsted web link | B35: 1155496 | C35: Brockenhurst College | D35: 130690 | E35: 108468 | F35: 10000944 | G35: Further Education | H35: General further education college | I35: General Further Education College | J35: Colleges | K35: Hampshire | L35: South East | M35: South East | N35: SO42 7ZE | O35: 10022532 | P35: 2017-01-31 | Q35: 2017-02-03 | R35: 2017-03-06 | S35: NULL | T35: FE College - Full | U35: Full | V35: FES - Full Inspection | W35: NULL | X35: NULL | Y35: 2 | Z35: 2 | AA35: 2 | AB35: 2 | AC35: 2 | AD35: 2 | AE35: 2 | AF35: 3 | AG35: - | AH35: - | AI35: 2 | AJ35: ITS322401 | AK35: 2008-05-07 | AL35: 2008-05-08 | AM35: 2009-08-10 | AN35: NULL | AO35: College Inspection FE - Good Historic | AP35: Full | AQ35: FES - Full Inspection | AR35: NULL | AS35: NULL | AT35: 1 | AU35: 1 | AV35: - | AW35: 1 | AX35: 1 | AY35: Declined | AZ35: NULL | BA35: NULL | BB35: No
A36: Ofsted web link | B36: 1155534 | C36: East Kent College | D36: 130728 | E36: 106743 | F36: 10006570 | G36: Further Education | H36: General further education college | I36: General Further Education College | J36: Colleges | K36: Kent | L36: South East | M36: South East | N36: CT10 1PN | O36: 10022518 | P36: 2017-01-24 | Q36: 2017-01-27 | R36: 2017-03-06 | S36: NULL | T36: FE College - Full | U36: Full | V36: FES - Full Inspection | W36: NULL | X36: NULL | Y36: 2 | Z36: 1 | AA36: 1 | AB36: 2 | AC36: 2 | AD36: 2 | AE36: 1 | AF36: 1 | AG36: 2 | AH36: - | AI36: 1 | AJ36: ITS409326 | AK36: 2013-03-04 | AL36: 2013-03-08 | AM36: 2013-04-17 | AN36: NULL | AO36: FE College - Full | AP36: Full | AQ36: FES - Full Inspection | AR36: NULL | AS36: NULL | AT36: 2 | AU36: 1 | AV36: - | AW36: 2 | AX36: 2 | AY36: Stayed the Same | AZ36: NULL | BA36: NULL | BB36: No
A37: Ofsted web link | B37: 1236706 | C37: Brooks & Kirk Limited | D37: 1236706 | E37: 131023 | F37: 10039535 | G37: Independent Learning Provider | H37: Independent learning provider | I37: Not Applicable | J37: Independent learning providers (including employer providers) | K37: Lincolnshire | L37: East Midlands | M37: East Midlands | N37: PE21 6SG | O37: 10022563 | P37: 2017-02-15 | Q37: 2017-02-17 | R37: 2017-03-06 | S37: NULL | T37: Independent Learning Provider (Regional) - Full | U37: Full | V37: FES - Full Inspection | W37: NULL | X37: NULL | Y37: 3 | Z37: 3 | AA37: 3 | AB37: 3 | AC37: 3 | AD37: - | AE37: 3 | AF37: - | AG37: - | AH37: - | AI37: - | AJ37: NULL | AK37: NULL | AL37: NULL | AM37: NULL | AN37: NULL | AO37: NULL | AP37: NULL | AQ37: NULL | AR37: NULL | AS37: NULL | AT37: NULL | AU37: NULL | AV37: NULL | AW37: NULL | AX37: NULL | AY37: Not Applicable | AZ37: NULL | BA37: NULL | BB37: -
A38: Ofsted web link | B38: 1147897 | C38: South Tyneside Council | D38: 54492 | E38: 107989 | F38: 10006000 | G38: Community Learning and Skills - Local Authority | H38: Local authority provider | I38: Not Applicable | J38: Community learning and skills providers | K38: South Tyneside | L38: North East | M38: North East, Yorkshire and the Humber | N38: NE33 2RL | O38: 10022496 | P38: 2017-02-01 | Q38: 2017-02-02 | R38: 2017-03-03 | S38: NULL | T38: Community Learning and Skills - Local authority - Short | U38: Short | V38: FES - Short inspection | W38: NULL | X38: NULL | Y38: 9 | Z38: - | AA38: - | AB38: - | AC38: - | AD38: - | AE38: - | AF38: - | AG38: - | AH38: - | AI38: - | AJ38: ITS408467 | AK38: 2013-03-11 | AL38: 2013-03-15 | AM38: 2013-04-25 | AN38: NULL | AO38: Adult and Community - full (regional) Historic | AP38: Full | AQ38: FES - Full Inspection | AR38: NULL | AS38: NULL | AT38: 2 | AU38: 1 | AV38: - | AW38: 2 | AX38: 2 | AY38: Not Applicable | AZ38: NULL | BA38: NULL | BB38: -
A39: Ofsted web link | B39: 1155532 | C39: MidKent College | D39: 130726 | E39: 106733 | F39: 10004340 | G39: Further Education | H39: General further education college | I39: General Further Education College | J39: Colleges | K39: Medway | L39: South East | M39: South East | N39: ME7 1FN | O39: 10022524 | P39: 2017-01-31 | Q39: 2017-02-03 | R39: 2017-03-03 | S39: NULL | T39: FE College - Requires improvement | U39: Full | V39: FES - Full Inspection | W39: NULL | X39: NULL | Y39: 3 | Z39: 3 | AA39: 3 | AB39: 3 | AC39: 3 | AD39: 3 | AE39: 3 | AF39: 3 | AG39: - | AH39: - | AI39: 3 | AJ39: ITS452489 | AK39: 2015-03-02 | AL39: 2015-03-06 | AM39: 2015-04-22 | AN39: NULL | AO39: FE College - Full | AP39: Full | AQ39: FES - Full Inspection | AR39: NULL | AS39: NULL | AT39: 3 | AU39: 3 | AV39: - | AW39: 3 | AX39: 3 | AY39: Stayed the Same | AZ39: NULL | BA39: NULL | BB39: No
A40: Ofsted web link | B40: 1236924 | C40: Education Development Trust NE | D40: 1236924 | E40: 117373 | F40: 10001298 | G40: National Careers Service contractor | H40: National Careers Service contractor | I40: Not Applicable | J40: National Careers Service contractors | K40: Reading | L40: South East | M40: South East | N40: RG1 4BS | O40: 10022692 | P40: 2017-02-07 | Q40: 2017-02-10 | R40: 2017-03-03 | S40: NULL | T40: National Careers Service - Full | U40: Full | V40: FES - Full Inspection | W40: NULL | X40: NULL | Y40: 1 | Z40: 1 | AA40: 1 | AB40: 2 | AC40: 1 | AD40: - | AE40: - | AF40: - | AG40: - | AH40: - | AI40: - | AJ40: NULL | AK40: NULL | AL40: NULL | AM40: NULL | AN40: NULL | AO40: NULL | AP40: NULL | AQ40: NULL | AR40: NULL | AS40: NULL | AT40: NULL | AU40: NULL | AV40: NULL | AW40: NULL | AX40: NULL | AY40: Not Applicable | AZ40: NULL | BA40: NULL | BB40: -
A41: Ofsted web link | B41: 1155510 | C41: Itchen College | D41: 130704 | E41: 108416 | F41: 10003427 | G41: Further Education | H41: Sixth form college | I41: Sixth Form College (General) | J41: Colleges | K41: Southampton | L41: South East | M41: South East | N41: SO19 7TB | O41: 10022526 | P41: 2017-01-31 | Q41: 2017-02-02 | R41: 2017-03-02 | S41: NULL | T41: SFC - Full | U41: Full | V41: FES - Full Inspection | W41: NULL | X41: NULL | Y41: 3 | Z41: 3 | AA41: 3 | AB41: 3 | AC41: 3 | AD41: 3 | AE41: - | AF41: - | AG41: - | AH41: - | AI41: - | AJ41: ITS423383 | AK41: 2013-10-01 | AL41: 2013-10-04 | AM41: 2013-11-08 | AN41: NULL | AO41: SFC - Full | AP41: Full | AQ41: FES - Full Inspection | AR41: NULL | AS41: NULL | AT41: 2 | AU41: 2 | AV41: - | AW41: 2 | AX41: 2 | AY41: Declined | AZ41: NULL | BA41: NULL | BB41: -
A42: Ofsted web link | B42: 1236779 | C42: CXK Ltd SE | D42: 1236779 | E42: 116322 | F42: 10001648 | G42: National Careers Service contractor | H42: National Careers Service contractor | I42: Not Applicable | J42: National Careers Service contractors | K42: Kent | L42: South East | M42: South East | N42: TN23 1QN | O42: 10022693 | P42: 2017-02-14 | Q42: 2017-02-17 | R42: 2017-03-02 | S42: NULL | T42: National Careers Service - Full | U42: Full | V42: FES - Full Inspection | W42: NULL | X42: NULL | Y42: 2 | Z42: 2 | AA42: 2 | AB42: 2 | AC42: 2 | AD42: - | AE42: - | AF42: - | AG42: - | AH42: - | AI42: - | AJ42: NULL | AK42: NULL | AL42: NULL | AM42: NULL | AN42: NULL | AO42: NULL | AP42: NULL | AQ42: NULL | AR42: NULL | AS42: NULL | AT42: NULL | AU42: NULL | AV42: NULL | AW42: NULL | AX42: NULL | AY42: Not Applicable | AZ42: NULL | BA42: NULL | BB42: -
A43: Ofsted web link | B43: 1237215 | C43: The Tess Group | D43: 1237215 | E43: 122998 | F43: 10031093 | G43: Independent Learning Provider | H43: Independent learning provider | I43: Not Applicable | J43: Independent learning providers (including employer providers) | K43: Northamptonshire | L43: East Midlands | M43: East Midlands | N43: NN4 7BF | O43: 10022577 | P43: 2017-02-01 | Q43: 2017-02-03 | R43: 2017-03-02 | S43: NULL | T43: Independent Learning Provider (Regional) - Full | U43: Full | V43: FES - Full Inspection | W43: NULL | X43: NULL | Y43: 2 | Z43: 2 | AA43: 2 | AB43: 2 | AC43: 2 | AD43: - | AE43: 2 | AF43: - | AG43: - | AH43: - | AI43: - | AJ43: NULL | AK43: NULL | AL43: NULL | AM43: NULL | AN43: NULL | AO43: NULL | AP43: NULL | AQ43: NULL | AR43: NULL | AS43: NULL | AT43: NULL | AU43: NULL | AV43: NULL | AW43: NULL | AX43: NULL | AY43: Not Applicable | AZ43: NULL | BA43: NULL | BB43: -
A44: Ofsted web link | B44: 1158619 | C44: Norman Mackie & Associates Limited | D44: 58507 | E44: 115564 | F44: 10004665 | G44: Independent Learning Provider | H44: Independent learning provider | I44: Not Applicable | J44: Independent learning providers (including employer providers) | K44: Tameside | L44: North West | M44: North West | N44: SK15 1EB | O44: 10025966 | P44: 2017-02-08 | Q44: 2017-02-08 | R44: 2017-03-01 | S44: NULL | T44: Independent Learning Provider (Regional) - Reinspection monitoring visit | U44: Reinspection monitoring | V44: FES - Monitoring Inspection | W44: NULL | X44: NULL | Y44: - | Z44: - | AA44: - | AB44: - | AC44: - | AD44: - | AE44: - | AF44: - | AG44: - | AH44: - | AI44: - | AJ44: 10022614 | AK44: 2016-09-20 | AL44: 2016-09-22 | AM44: 2016-11-01 | AN44: NULL | AO44: Independent Learning Provider (Regional) - Full | AP44: Full | AQ44: FES - Full Inspection | AR44: NULL | AS44: NULL | AT44: 4 | AU44: 4 | AV44: 4 | AW44: 4 | AX44: 4 | AY44: Not Applicable | AZ44: NULL | BA44: NULL | BB44: -
A45: Ofsted web link | B45: 1155614 | C45: Newcastle and Stafford Colleges Group | D45: 130812 | E45: 106068 | F45: 10004603 | G45: Further Education | H45: General further education college | I45: General Further Education College | J45: Colleges | K45: Staffordshire | L45: West Midlands | M45: West Midlands | N45: ST5 2GB | O45: 10026078 | P45: 2017-02-08 | Q45: 2017-02-09 | R45: 2017-03-01 | S45: NULL | T45: FE College - Monitoring visit | U45: Monitoring | V45: FES - Monitoring Inspection | W45: NULL | X45: NULL | Y45: - | Z45: - | AA45: - | AB45: - | AC45: - | AD45: - | AE45: - | AF45: - | AG45: - | AH45: - | AI45: - | AJ45: ITS423364 | AK45: 2013-11-25 | AL45: 2013-11-29 | AM45: 2014-01-08 | AN45: NULL | AO45: FE College - Full | AP45: Full | AQ45: FES - Full Inspection | AR45: NULL | AS45: NULL | AT45: 2 | AU45: 2 | AV45: - | AW45: 2 | AX45: 2 | AY45: Not Applicable | AZ45: NULL | BA45: NULL | BB45: -
A46: Ofsted web link | B46: 1143693 | C46: St John's School and College | D46: 132016 | E46: 116895 | F46: 10006199 | G46: Special College | H46: Independent specialist college | I46: Not Applicable | J46: Independent specialist colleges | K46: Brighton and Hove | L46: South East | M46: South East | N46: BN2 0AF | O46: 10022528 | P46: 2017-01-24 | Q46: 2017-01-26 | R46: 2017-03-01 | S46: NULL | T46: ISC - Full | U46: Full | V46: FES - Full Inspection | W46: NULL | X46: NULL | Y46: 3 | Z46: 3 | AA46: 2 | AB46: 3 | AC46: 2 | AD46: - | AE46: - | AF46: - | AG46: - | AH46: - | AI46: 3 | AJ46: ITS408450 | AK46: 2012-10-24 | AL46: 2012-10-26 | AM46: 2012-11-30 | AN46: NULL | AO46: ISC - Full | AP46: Full | AQ46: FES - Full Inspection | AR46: NULL | AS46: NULL | AT46: 2 | AU46: 2 | AV46: - | AW46: 2 | AX46: 2 | AY46: Declined | AZ46: NULL | BA46: NULL | BB46: -
A47: Ofsted web link | B47: 1157837 | C47: Bellis Training Limited | D47: 50656 | E47: 106343 | F47: 10000631 | G47: Independent Learning Provider | H47: Independent learning provider | I47: Not Applicable | J47: Independent learning providers (including employer providers) | K47: Birmingham | L47: West Midlands | M47: West Midlands | N47: B1 3HS | O47: 10022585 | P47: 2017-01-31 | Q47: 2017-02-02 | R47: 2017-02-28 | S47: NULL | T47: Independent Learning Provider (Regional) - Full | U47: Full | V47: FES - Full Inspection | W47: NULL | X47: NULL | Y47: 2 | Z47: 2 | AA47: 2 | AB47: 2 | AC47: 2 | AD47: 2 | AE47: - | AF47: - | AG47: - | AH47: - | AI47: - | AJ47: ITS429000 | AK47: 2013-10-21 | AL47: 2013-10-24 | AM47: 2013-11-19 | AN47: NULL | AO47: Employer - Full | AP47: Full | AQ47: FES - Full Inspection | AR47: NULL | AS47: NULL | AT47: 2 | AU47: 2 | AV47: - | AW47: 2 | AX47: 2 | AY47: Stayed the Same | AZ47: NULL | BA47: NULL | BB47: -
A48: Ofsted web link | B48: 1155256 | C48: Havering Sixth Form College | D48: 130445 | E48: 108421 | F48: 10002937 | G48: Further Education | H48: Sixth form college | I48: Sixth Form College (General) | J48: Colleges | K48: Havering | L48: London | M48: London | N48: RM11 3TB | O48: 10022546 | P48: 2017-01-17 | Q48: 2017-01-20 | R48: 2017-02-28 | S48: NULL | T48: SFC - Full | U48: Full | V48: FES - Full Inspection | W48: NULL | X48: NULL | Y48: 3 | Z48: 3 | AA48: 2 | AB48: 3 | AC48: 3 | AD48: 3 | AE48: - | AF48: - | AG48: - | AH48: - | AI48: - | AJ48: ITS429290 | AK48: 2014-04-01 | AL48: 2014-04-04 | AM48: 2014-05-14 | AN48: NULL | AO48: SFC - Requires improvement | AP48: Full | AQ48: FES - Full Inspection | AR48: NULL | AS48: NULL | AT48: 2 | AU48: 2 | AV48: - | AW48: 2 | AX48: 3 | AY48: Declined | AZ48: NULL | BA48: NULL | BB48: Yes
A49: Ofsted web link | B49: 1147325 | C49: Exeter Mathematics School | D49: 140971 | E49: 130500 | F49: 10045912 | G49: Free School - 16-19 | H49: 16-19 free school | I49: Not Applicable | J49: 16-19 academies | K49: Devon | L49: South West | M49: South West | N49: EX4 3PU | O49: 10022503 | P49: 2017-01-24 | Q49: 2017-01-26 | R49: 2017-02-28 | S49: NULL | T49: 16-19 academy - Full | U49: Full | V49: FES - Full Inspection | W49: NULL | X49: NULL | Y49: 1 | Z49: 1 | AA49: 1 | AB49: 1 | AC49: 1 | AD49: 1 | AE49: - | AF49: - | AG49: - | AH49: - | AI49: - | AJ49: NULL | AK49: NULL | AL49: NULL | AM49: NULL | AN49: NULL | AO49: NULL | AP49: NULL | AQ49: NULL | AR49: NULL | AS49: NULL | AT49: NULL | AU49: NULL | AV49: NULL | AW49: NULL | AX49: NULL | AY49: Not Applicable | AZ49: NULL | BA49: NULL | BB49: Yes
A50: Ofsted web link | B50: 1155308 | C50: Bury College | D50: 130498 | E50: 105763 | F50: 10001005 | G50: Further Education | H50: General further education college | I50: General Further Education College | J50: Colleges | K50: Bury | L50: North West | M50: North West | N50: BL9 0BG | O50: 10025502 | P50: 2017-01-16 | Q50: 2017-01-20 | R50: 2017-02-27 | S50: NULL | T50: FE College - Full | U50: Full | V50: FES - Full Inspection | W50: NULL | X50: NULL | Y50: 3 | Z50: 3 | AA50: 3 | AB50: 3 | AC50: 3 | AD50: 3 | AE50: 2 | AF50: 3 | AG50: - | AH50: - | AI50: 2 | AJ50: ITS298681 | AK50: 2007-02-05 | AL50: 2007-02-09 | AM50: 2007-06-21 | AN50: NULL | AO50: College Inspection FE - Good Historic | AP50: Full | AQ50: FES - Full Inspection | AR50: NULL | AS50: NULL | AT50: 1 | AU50: 1 | AV50: - | AW50: 2 | AX50: 1 | AY50: Declined | AZ50: NULL | BA50: NULL | BB50: -
A51: Ofsted web link | B51: 1147945 | C51: West Sussex County Council | D51: 50208 | E51: 107962 | F51: 10007432 | G51: Community Learning and Skills - Local Authority | H51: Local authority provider | I51: Not Applicable | J51: Community learning and skills providers | K51: West Sussex | L51: South East | M51: South East | N51: PO19 1RF | O51: 10022533 | P51: 2017-01-24 | Q51: 2017-01-27 | R51: 2017-02-24 | S51: NULL | T51: Community Learning and Skills - Local authority - Reinspection | U51: Reinspection | V51: FES - Full Inspection | W51: NULL | X51: NULL | Y51: 2 | Z51: 2 | AA51: 2 | AB51: 2 | AC51: 2 | AD51: - | AE51: 2 | AF51: - | AG51: - | AH51: - | AI51: - | AJ51: 10004865 | AK51: 2015-11-10 | AL51: 2015-11-13 | AM51: 2015-12-16 | AN51: NULL | AO51: Community Learning and Skills - Local authority - Full | AP51: Full | AQ51: FES - Full Inspection | AR51: NULL | AS51: NULL | AT51: 4 | AU51: 4 | AV51: 2 | AW51: 2 | AX51: 2 | AY51: Improved | AZ51: NULL | BA51: NULL | BB51: -
A52: Ofsted web link | B52: 1149506 | C52: Skills for Health Limited | D52: 58437 | E52: 124707 | F52: 10038112 | G52: Community Learning and Skills - Not For Profit Organisation | H52: Not for profit organisation | I52: Not Applicable | J52: Community learning and skills providers | K52: Bristol | L52: South West | M52: South West | N52: BS2 0JP | O52: 10022500 | P52: 2017-01-17 | Q52: 2017-01-20 | R52: 2017-02-24 | S52: NULL | T52: Community Learning and Skills - Not for profit organisation - Full | U52: Full | V52: FES - Full Inspection | W52: NULL | X52: NULL | Y52: 3 | Z52: 3 | AA52: 2 | AB52: 3 | AC52: 3 | AD52: - | AE52: - | AF52: 3 | AG52: - | AH52: - | AI52: - | AJ52: ITS430257 | AK52: 2014-10-20 | AL52: 2014-10-24 | AM52: 2014-11-28 | AN52: NULL | AO52: Employer - Requires improvement | AP52: Full | AQ52: FES - Full Inspection | AR52: NULL | AS52: NULL | AT52: 2 | AU52: 2 | AV52: - | AW52: 2 | AX52: 2 | AY52: Declined | AZ52: NULL | BA52: NULL | BB52: -
A53: Ofsted web link | B53: 1155315 | C53: The Oldham College | D53: 130505 | E53: 110734 | F53: 10006770 | G53: Further Education | H53: General further education college | I53: General Further Education College | J53: Colleges | K53: Oldham | L53: North West | M53: North West | N53: OL9 6AA | O53: 10022620 | P53: 2017-01-16 | Q53: 2017-01-19 | R53: 2017-02-24 | S53: NULL | T53: FE College - Requires improvement | U53: Full | V53: FES - Full Inspection | W53: NULL | X53: NULL | Y53: 3 | Z53: 3 | AA53: 3 | AB53: 3 | AC53: 3 | AD53: 3 | AE53: 3 | AF53: 3 | AG53: - | AH53: - | AI53: 3 | AJ53: ITS463125 | AK53: 2015-05-11 | AL53: 2015-05-15 | AM53: 2015-08-01 | AN53: NULL | AO53: FE College - Full | AP53: Full | AQ53: FES - Full Inspection | AR53: NULL | AS53: NULL | AT53: 3 | AU53: 3 | AV53: - | AW53: 3 | AX53: 3 | AY53: Stayed the Same | AZ53: NULL | BA53: NULL | BB53: -
A54: Ofsted web link | B54: 1236935 | C54: Economic Solutions Limited Manchester | D54: 1236935 | E54: 109219 | F54: 10004177 | G54: National Careers Service contractor | H54: National Careers Service contractor | I54: Not Applicable | J54: National Careers Service contractors | K54: Manchester | L54: North West | M54: North West | N54: M1 5JW | O54: 10022691 | P54: 2017-01-31 | Q54: 2017-02-03 | R54: 2017-02-24 | S54: NULL | T54: National Careers Service - Full | U54: Full | V54: FES - Full Inspection | W54: NULL | X54: NULL | Y54: 2 | Z54: 2 | AA54: 2 | AB54: 2 | AC54: 2 | AD54: - | AE54: - | AF54: - | AG54: - | AH54: - | AI54: - | AJ54: NULL | AK54: NULL | AL54: NULL | AM54: NULL | AN54: NULL | AO54: NULL | AP54: NULL | AQ54: NULL | AR54: NULL | AS54: NULL | AT54: NULL | AU54: NULL | AV54: NULL | AW54: NULL | AX54: NULL | AY54: Not Applicable | AZ54: NULL | BA54: NULL | BB54: -
A55: Ofsted web link | B55: 1158384 | C55: JANCETT CHILDCARE & JACE TRAINING LIMITED | D55: 52794 | E55: 126205 | F55: 10042190 | G55: Independent Learning Provider | H55: Independent learning provider | I55: Not Applicable | J55: Independent learning providers (including employer providers) | K55: Sutton | L55: London | M55: London | N55: SM6 0EU | O55: 10022553 | P55: 2017-01-17 | Q55: 2017-01-20 | R55: 2017-02-23 | S55: NULL | T55: Independent Learning Provider (Regional) - Full | U55: Full | V55: FES - Full Inspection | W55: NULL | X55: NULL | Y55: 3 | Z55: 3 | AA55: 2 | AB55: 3 | AC55: 3 | AD55: 3 | AE55: - | AF55: 3 | AG55: - | AH55: - | AI55: - | AJ55: ITS423764 | AK55: 2013-11-25 | AL55: 2013-11-29 | AM55: 2014-01-08 | AN55: NULL | AO55: Employer - Full | AP55: Full | AQ55: FES - Full Inspection | AR55: NULL | AS55: NULL | AT55: 2 | AU55: 2 | AV55: - | AW55: 2 | AX55: 2 | AY55: Declined | AZ55: NULL | BA55: NULL | BB55: -
A56: Ofsted web link | B56: 1157746 | C56: Anderson Stockley Accredited Training Ltd | D56: 50410 | E56: 118821 | F56: 10023918 | G56: Independent Learning Provider | H56: Independent learning provider | I56: Not Applicable | J56: Independent learning providers (including employer providers) | K56: Northamptonshire | L56: East Midlands | M56: East Midlands | N56: NN7 2DT | O56: 10011469 | P56: 2017-01-24 | Q56: 2017-01-27 | R56: 2017-02-22 | S56: NULL | T56: Independent Learning Provider (National) - Requires improvement | U56: Full | V56: FES - Full Inspection | W56: NULL | X56: NULL | Y56: 2 | Z56: 2 | AA56: 2 | AB56: 2 | AC56: 3 | AD56: - | AE56: - | AF56: 2 | AG56: - | AH56: - | AI56: - | AJ56: ITS452600 | AK56: 2015-02-03 | AL56: 2015-02-05 | AM56: 2015-03-12 | AN56: NULL | AO56: WBL (national) - Full | AP56: Full | AQ56: FES - Full Inspection | AR56: NULL | AS56: NULL | AT56: 3 | AU56: 3 | AV56: - | AW56: 3 | AX56: 3 | AY56: Improved | AZ56: NULL | BA56: NULL | BB56: -
A57: Ofsted web link | B57: 1155283 | C57: City College Coventry | D57: 130473 | E57: 112389 | F57: 10001458 | G57: Further Education | H57: General further education college | I57: General Further Education College | J57: Colleges | K57: Coventry | L57: West Midlands | M57: West Midlands | N57: CV1 5DG | O57: 10022582 | P57: 2017-01-24 | Q57: 2017-01-27 | R57: 2017-02-22 | S57: NULL | T57: FE College - Reinspection | U57: Reinspection | V57: FES - Full Inspection | W57: NULL | X57: NULL | Y57: 3 | Z57: 3 | AA57: 3 | AB57: 3 | AC57: 3 | AD57: 3 | AE57: 3 | AF57: 3 | AG57: - | AH57: - | AI57: 3 | AJ57: 10004687 | AK57: 2015-11-24 | AL57: 2015-11-27 | AM57: 2015-12-31 | AN57: NULL | AO57: FE College - Requires improvement | AP57: Full | AQ57: FES - Full Inspection | AR57: NULL | AS57: NULL | AT57: 4 | AU57: 4 | AV57: 4 | AW57: 4 | AX57: 4 | AY57: Improved | AZ57: NULL | BA57: NULL | BB57: -
A58: Ofsted web link | B58: 1155391 | C58: Bishop Burton College | D58: 130584 | E58: 105582 | F58: 10000721 | G58: Further Education | H58: Specialist further education college | I58: Agricultural and Horticultural College | J58: Colleges | K58: East Riding of Yorkshire | L58: Yorkshire and The Humber | M58: North East, Yorkshire and the Humber | N58: HU17 8QG | O58: 10022488 | P58: 2017-01-17 | Q58: 2017-01-20 | R58: 2017-02-22 | S58: NULL | T58: FE College - Full | U58: Full | V58: FES - Full Inspection | W58: NULL | X58: NULL | Y58: 2 | Z58: 2 | AA58: 2 | AB58: 2 | AC58: 2 | AD58: 2 | AE58: 2 | AF58: 2 | AG58: - | AH58: - | AI58: - | AJ58: ITS423370 | AK58: 2013-11-18 | AL58: 2013-11-22 | AM58: 2013-12-23 | AN58: NULL | AO58: FE College - Full | AP58: Full | AQ58: FES - Full Inspection | AR58: NULL | AS58: NULL | AT58: 2 | AU58: 1 | AV58: - | AW58: 2 | AX58: 1 | AY58: Stayed the Same | AZ58: NULL | BA58: NULL | BB58: No
A59: Ofsted web link | B59: 1155560 | C59: Gateway Sixth Form College | D59: 130755 | E59: 108425 | F59: 10002642 | G59: Further Education | H59: Sixth form college | I59: Sixth Form College (General) | J59: Colleges | K59: Leicester | L59: East Midlands | M59: East Midlands | N59: LE5 1GA | O59: 10026544 | P59: 2017-01-11 | Q59: 2017-01-12 | R59: 2017-02-22 | S59: NULL | T59: SFC - Reinspection monitoring visit | U59: Reinspection monitoring | V59: FES - Monitoring Inspection | W59: NULL | X59: NULL | Y59: - | Z59: - | AA59: - | AB59: - | AC59: - | AD59: - | AE59: - | AF59: - | AG59: - | AH59: - | AI59: - | AJ59: 10020150 | AK59: 2016-10-11 | AL59: 2016-10-14 | AM59: 2016-11-17 | AN59: NULL | AO59: SFC - Full | AP59: Full | AQ59: FES - Full Inspection | AR59: NULL | AS59: NULL | AT59: 4 | AU59: 4 | AV59: 4 | AW59: 4 | AX59: 4 | AY59: Not Applicable | AZ59: NULL | BA59: NULL | BB59: -
A60: Ofsted web link | B60: 1149442 | C60: Friends Centre | D60: 51905 | E60: 107983 | F60: 10002578 | G60: Community Learning and Skills - Not For Profit Organisation | H60: Not for profit organisation | I60: Not Applicable | J60: Community learning and skills providers | K60: Brighton and Hove | L60: South East | M60: South East | N60: BN1 4GQ | O60: 10022520 | P60: 2017-01-23 | Q60: 2017-01-25 | R60: 2017-02-21 | S60: NULL | T60: Community Learning and Skills - Not for profit organisation - Requires Improvement - second inspection | U60: Full | V60: FES - Full Inspection | W60: NULL | X60: NULL | Y60: 2 | Z60: 2 | AA60: 2 | AB60: 2 | AC60: 2 | AD60: - | AE60: 2 | AF60: - | AG60: - | AH60: - | AI60: - | AJ60: ITS444482 | AK60: 2015-06-10 | AL60: 2015-06-12 | AM60: 2015-07-17 | AN60: NULL | AO60: ACL - Requires improvement | AP60: Full | AQ60: FES - Full Inspection | AR60: NULL | AS60: NULL | AT60: 3 | AU60: 3 | AV60: - | AW60: 3 | AX60: 3 | AY60: Improved | AZ60: NULL | BA60: NULL | BB60: No
A61: Ofsted web link | B61: 1158694 | C61: Outsource Vocational Learning Limited | D61: 58560 | E61: 118490 | F61: 10022439 | G61: Independent Learning Provider | H61: Independent learning provider | I61: Not Applicable | J61: Independent learning providers (including employer providers) | K61: Hammersmith and Fulham | L61: London | M61: London | N61: W14 8XP | O61: 10022506 | P61: 2017-01-24 | Q61: 2017-01-25 | R61: 2017-02-21 | S61: NULL | T61: Independent Learning Provider (National) - Short | U61: Short | V61: FES - Short inspection | W61: NULL | X61: NULL | Y61: 9 | Z61: - | AA61: - | AB61: - | AC61: - | AD61: - | AE61: - | AF61: - | AG61: - | AH61: - | AI61: - | AJ61: ITS408535 | AK61: 2012-11-26 | AL61: 2012-11-30 | AM61: 2013-01-09 | AN61: NULL | AO61: WBL (national) - Full | AP61: Full | AQ61: FES - Full Inspection | AR61: NULL | AS61: NULL | AT61: 2 | AU61: 2 | AV61: - | AW61: 2 | AX61: 2 | AY61: Not Applicable | AZ61: NULL | BA61: NULL | BB61: -
A62: Ofsted web link | B62: 1155370 | C62: St Brendan's Sixth Form College | D62: 130563 | E62: 108361 | F62: 10006130 | G62: Further Education | H62: Sixth form college | I62: Sixth Form College (Voluntary Aided) | J62: Colleges | K62: Bristol | L62: South West | M62: South West | N62: BS4 5RQ | O62: 10022509 | P62: 2017-01-17 | Q62: 2017-01-18 | R62: 2017-02-21 | S62: NULL | T62: SFC - Short | U62: Short | V62: FES - Short inspection | W62: NULL | X62: NULL | Y62: 9 | Z62: - | AA62: - | AB62: - | AC62: - | AD62: - | AE62: - | AF62: - | AG62: - | AH62: - | AI62: - | AJ62: ITS399021 | AK62: 2012-10-16 | AL62: 2012-10-19 | AM62: 2012-11-23 | AN62: NULL | AO62: SFC - Full | AP62: Full | AQ62: FES - Full Inspection | AR62: NULL | AS62: NULL | AT62: 2 | AU62: 2 | AV62: - | AW62: 2 | AX62: 2 | AY62: Not Applicable | AZ62: NULL | BA62: NULL | BB62: No
A63: Ofsted web link | B63: 1236942 | C63: Futures Advice, Skills and Employment EM | D63: 1236942 | E63: 112110 | F63: 10001647 | G63: National Careers Service contractor | H63: National Careers Service contractor | I63: Not Applicable | J63: National Careers Service contractors | K63: Nottingham | L63: East Midlands | M63: East Midlands | N63: NG7 6JN | O63: 10022689 | P63: 2017-01-24 | Q63: 2017-01-27 | R63: 2017-02-21 | S63: NULL | T63: National Careers Service - Full | U63: Full | V63: FES - Full Inspection | W63: NULL | X63: NULL | Y63: 1 | Z63: 1 | AA63: 1 | AB63: 1 | AC63: 1 | AD63: - | AE63: - | AF63: - | AG63: - | AH63: - | AI63: - | AJ63: NULL | AK63: NULL | AL63: NULL | AM63: NULL | AN63: NULL | AO63: NULL | AP63: NULL | AQ63: NULL | AR63: NULL | AS63: NULL | AT63: NULL | AU63: NULL | AV63: NULL | AW63: NULL | AX63: NULL | AY63: Not Applicable | AZ63: NULL | BA63: NULL | BB63: -
A64: Ofsted web link | B64: 1147935 | C64: Wakefield Metropolitan District Council | D64: 55247 | E64: 107968 | F64: 10007291 | G64: Community Learning and Skills - Local Authority | H64: Local authority provider | I64: Not Applicable | J64: Community learning and skills providers | K64: Wakefield | L64: Yorkshire and The Humber | M64: North East, Yorkshire and the Humber | N64: WF2 7DQ | O64: 10011246 | P64: 2017-01-25 | Q64: 2017-01-26 | R64: 2017-02-20 | S64: NULL | T64: Community Learning and Skills - Local authority - Reinspection monitoring visit | U64: Reinspection monitoring | V64: FES - Monitoring Inspection | W64: NULL | X64: NULL | Y64: - | Z64: - | AA64: - | AB64: - | AC64: - | AD64: - | AE64: - | AF64: - | AG64: - | AH64: - | AI64: - | AJ64: 10005028 | AK64: 2015-11-03 | AL64: 2015-11-06 | AM64: 2015-12-23 | AN64: NULL | AO64: Community Learning and Skills - Local authority - Full | AP64: Full | AQ64: FES - Full Inspection | AR64: NULL | AS64: NULL | AT64: 4 | AU64: 4 | AV64: 3 | AW64: 3 | AX64: 3 | AY64: Not Applicable | AZ64: NULL | BA64: NULL | BB64: -
A65: Ofsted web link | B65: 1183088 | C65: Harington School | D65: 141965 | E65: 132646 | F65: 10053513 | G65: Free School - 16-19 | H65: 16-19 free school | I65: Not Applicable | J65: 16-19 academies | K65: Rutland | L65: East Midlands | M65: East Midlands | N65: LE15 6RP | O65: 10022578 | P65: 2017-01-17 | Q65: 2017-01-19 | R65: 2017-02-20 | S65: NULL | T65: 16-19 academy - Full | U65: Full | V65: FES - Full Inspection | W65: NULL | X65: NULL | Y65: 1 | Z65: 1 | AA65: 1 | AB65: 1 | AC65: 1 | AD65: 1 | AE65: - | AF65: - | AG65: - | AH65: - | AI65: - | AJ65: NULL | AK65: NULL | AL65: NULL | AM65: NULL | AN65: NULL | AO65: NULL | AP65: NULL | AQ65: NULL | AR65: NULL | AS65: NULL | AT65: NULL | AU65: NULL | AV65: NULL | AW65: NULL | AX65: NULL | AY65: Not Applicable | AZ65: NULL | BA65: NULL | BB65: -
A66: =IF(D66<>"",HYPERLINK(CONCATENATE("http://reports.ofsted.gov.uk/inspection-reports/find-inspection-report/provider/ELS/",D66),"Ofsted web link"),"") -> Ofsted web link | B66: 1149552 | C66: YMCA Training | D66: 57598 | E66: 105852 | F66: 10007405 | G66: Community Learning and Skills - Not For Profit Organisation | H66: Not for profit organisation | I66: Not Applicable | J66: Community learning and skills providers | K66: Doncaster | L66: Yorkshire and The Humber | M66: North East, Yorkshire and the Humber | N66: DN1 2EE | O66: 10022623 | P66: 2017-01-17 | Q66: 2017-01-20 | R66: 2017-02-17 | S66: NULL | T66: Community Learning and Skills - Not for profit organisation - Requires Improvement | U66: Full | V66: FES - Full Inspection | W66: NULL | X66: NULL | Y66: 2 | Z66: 2 | AA66: 2 | AB66: 2 | AC66: 2 | AD66: 2 | AE66: 2 | AF66: 2 | AG66: - | AH66: - | AI66: - | AJ66: ITS452735 | AK66: 2015-03-23 | AL66: 2015-03-27 | AM66: 2015-04-29 | AN66: NULL | AO66: WBL (national) - Full | AP66: Full | AQ66: FES - Full Inspection | AR66: NULL | AS66: NULL | AT66: 3 | AU66: 3 | AV66: - | AW66: 3 | AX66: 3 | AY66: Improved | AZ66: NULL | BA66: NULL | BB66: -
A67: Ofsted web link | B67: 1155324 | C67: Aquinas College | D67: 130514 | E67: 108372 | F67: 10000330 | G67: Further Education | H67: Sixth form college | I67: Sixth Form College (Voluntary Aided) | J67: Colleges | K67: Stockport | L67: North West | M67: North West | N67: SK2 6TH | O67: 10022097 | P67: 2017-01-10 | Q67: 2017-01-11 | R67: 2017-02-17 | S67: NULL | T67: SFC - Short | U67: Short | V67: FES - Short inspection | W67: NULL | X67: NULL | Y67: 9 | Z67: - | AA67: - | AB67: - | AC67: - | AD67: - | AE67: - | AF67: - | AG67: - | AH67: - | AI67: - | AJ67: ITS408453 | AK67: 2013-09-24 | AL67: 2013-09-27 | AM67: 2013-11-01 | AN67: NULL | AO67: SFC - Full | AP67: Full | AQ67: FES - Full Inspection | AR67: NULL | AS67: NULL | AT67: 2 | AU67: 2 | AV67: - | AW67: 2 | AX67: 2 | AY67: Not Applicable | AZ67: NULL | BA67: NULL | BB67: -
A68: Ofsted web link | B68: 1147780 | C68: City College Peterborough | D68: 53865 | E68: 112456 | F68: 10005074 | G68: Community Learning and Skills - Local Authority | H68: Local authority provider | I68: Not Applicable | J68: Community learning and skills providers | K68: Peterborough | L68: East of England | M68: East of England | N68: PE1 1TU | O68: 10021733 | P68: 2016-11-16 | Q68: 2016-11-17 | R68: 2017-02-16 | S68: NULL | T68: Community Learning and Skills - Local authority - Short | U68: Short | V68: FES - Short inspection | W68: NULL | X68: NULL | Y68: 9 | Z68: - | AA68: - | AB68: - | AC68: - | AD68: - | AE68: - | AF68: - | AG68: - | AH68: - | AI68: - | AJ68: ITS375494 | AK68: 2011-10-10 | AL68: 2011-10-14 | AM68: 2012-02-16 | AN68: NULL | AO68: Adult and Community - full (regional) Historic | AP68: Full | AQ68: FES - Full Inspection | AR68: NULL | AS68: NULL | AT68: 2 | AU68: 2 | AV68: - | AW68: 2 | AX68: 2 | AY68: Not Applicable | AZ68: NULL | BA68: NULL | BB68: -
A69: Ofsted web link | B69: 1149551 | C69: YMCA Derbyshire | D69: 58237 | E69: 116116 | F69: 10007698 | G69: Community Learning and Skills - Not For Profit Organisation | H69: Not for profit organisation | I69: Not Applicable | J69: Community learning and skills providers | K69: Derby | L69: East Midlands | M69: East Midlands | N69: DE24 8UT | O69: 10022567 | P69: 2017-01-16 | Q69: 2017-01-19 | R69: 2017-02-16 | S69: NULL | T69: Community Learning and Skills - Not for profit organisation - Full | U69: Full | V69: FES - Full Inspection | W69: NULL | X69: NULL | Y69: 2 | Z69: 2 | AA69: 2 | AB69: 2 | AC69: 2 | AD69: 2 | AE69: - | AF69: - | AG69: - | AH69: - | AI69: - | AJ69: ITS429123 | AK69: 2014-03-25 | AL69: 2014-03-27 | AM69: 2014-04-29 | AN69: NULL | AO69: Employer - Full | AP69: Full | AQ69: FES - Full Inspection | AR69: NULL | AS69: NULL | AT69: 2 | AU69: 2 | AV69: - | AW69: 2 | AX69: 3 | AY69: Stayed the Same | AZ69: NULL | BA69: NULL | BB69: -
A70: Ofsted web link | B70: 1155681 | C70: Prospects College of Advanced Technology | D70: 141084 | E70: 131032 | F70: 10046354 | G70: Further Education | H70: General further education college | I70: General Further Education College | J70: Colleges | K70: Essex | L70: East of England | M70: East of England | N70: SS14 3AY | O70: 10004834 | P70: 2016-11-15 | Q70: 2016-11-18 | R70: 2017-02-16 | S70: NULL | T70: FE College - Full | U70: Full | V70: FES - Full Inspection | W70: NULL | X70: NULL | Y70: 2 | Z70: 2 | AA70: 2 | AB70: 2 | AC70: 2 | AD70: 3 | AE70: - | AF70: 2 | AG70: - | AH70: - | AI70: - | AJ70: NULL | AK70: NULL | AL70: NULL | AM70: NULL | AN70: NULL | AO70: NULL | AP70: NULL | AQ70: NULL | AR70: NULL | AS70: NULL | AT70: NULL | AU70: NULL | AV70: NULL | AW70: NULL | AX70: NULL | AY70: Not Applicable | AZ70: NULL | BA70: NULL | BB70: No
A71: Ofsted web link | B71: 1158741 | C71: Platinum Employment Advice & Training Limited | D71: 56776 | E71: 118071 | F71: 10019311 | G71: Independent Learning Provider | H71: Independent learning provider | I71: Not Applicable | J71: Independent learning providers (including employer providers) | K71: Birmingham | L71: West Midlands | M71: West Midlands | N71: B19 1LY | O71: 10022587 | P71: 2017-01-17 | Q71: 2017-01-20 | R71: 2017-02-15 | S71: NULL | T71: Independent Learning Provider (Regional) - Full | U71: Full | V71: FES - Full Inspection | W71: NULL | X71: NULL | Y71: 4 | Z71: 4 | AA71: 4 | AB71: 4 | AC71: 4 | AD71: 4 | AE71: - | AF71: - | AG71: - | AH71: - | AI71: - | AJ71: ITS408486 | AK71: 2013-04-30 | AL71: 2013-05-03 | AM71: 2013-06-11 | AN71: NULL | AO71: Employer - Full | AP71: Full | AQ71: FES - Full Inspection | AR71: NULL | AS71: NULL | AT71: 2 | AU71: 2 | AV71: - | AW71: 2 | AX71: 2 | AY71: Declined | AZ71: NULL | BA71: NULL | BB71: -
A72: Ofsted web link | B72: 1159037 | C72: The Apprentice Academy Limited | D72: 59161 | E72: 124286 | F72: 10036578 | G72: Independent Learning Provider | H72: Independent learning provider | I72: Not Applicable | J72: Independent learning providers (including employer providers) | K72: Manchester | L72: North West | M72: North West | N72: M1 6FQ | O72: 10022619 | P72: 2017-01-10 | Q72: 2017-01-13 | R72: 2017-02-14 | S72: NULL | T72: Independent Learning Provider (Regional) - Requires Improvement | U72: Full | V72: FES - Full Inspection | W72: NULL | X72: NULL | Y72: 2 | Z72: 2 | AA72: 2 | AB72: 2 | AC72: 2 | AD72: - | AE72: - | AF72: 2 | AG72: - | AH72: - | AI72: - | AJ72: ITS455607 | AK72: 2015-03-10 | AL72: 2015-03-13 | AM72: 2015-04-15 | AN72: NULL | AO72: Employer - Full | AP72: Full | AQ72: FES - Full Inspection | AR72: NULL | AS72: NULL | AT72: 3 | AU72: 3 | AV72: - | AW72: 3 | AX72: 3 | AY72: Improved | AZ72: NULL | BA72: NULL | BB72: -
A73: Ofsted web link | B73: 1155427 | C73: Mid-Cheshire College of Further Education | D73: 130620 | E73: 108512 | F73: 10004339 | G73: Further Education | H73: General further education college | I73: General Further Education College | J73: Colleges | K73: Cheshire West and Chester | L73: North West | M73: North West | N73: CW8 1LJ | O73: 10025623 | P73: 2017-01-24 | Q73: 2017-01-25 | R73: 2017-02-14 | S73: NULL | T73: FE College - Reinspection monitoring visit | U73: Reinspection monitoring | V73: FES - Monitoring Inspection | W73: NULL | X73: NULL | Y73: - | Z73: - | AA73: - | AB73: - | AC73: - | AD73: - | AE73: - | AF73: - | AG73: - | AH73: - | AI73: - | AJ73: 10009340 | AK73: 2016-01-19 | AL73: 2016-01-22 | AM73: 2016-03-03 | AN73: NULL | AO73: FE College - Full | AP73: Full | AQ73: FES - Full Inspection | AR73: NULL | AS73: NULL | AT73: 4 | AU73: 4 | AV73: 4 | AW73: 4 | AX73: 4 | AY73: Not Applicable | AZ73: NULL | BA73: NULL | BB73: -
A74: Ofsted web link | B74: 1236937 | C74: Futures Advice, Skills and Employment Central Eastern | D74: 1236937 | E74: 112110 | F74: 10001647 | G74: National Careers Service contractor | H74: National Careers Service contractor | I74: Not Applicable | J74: National Careers Service contractors | K74: Nottingham | L74: East Midlands | M74: East Midlands | N74: NG7 6JN | O74: 10022686 | P74: 2017-01-10 | Q74: 2017-01-13 | R74: 2017-02-14 | S74: NULL | T74: National Careers Service - Full | U74: Full | V74: FES - Full Inspection | W74: NULL | X74: NULL | Y74: 2 | Z74: 2 | AA74: 2 | AB74: 2 | AC74: 2 | AD74: - | AE74: - | AF74: - | AG74: - | AH74: - | AI74: - | AJ74: NULL | AK74: NULL | AL74: NULL | AM74: NULL | AN74: NULL | AO74: NULL | AP74: NULL | AQ74: NULL | AR74: NULL | AS74: NULL | AT74: NULL | AU74: NULL | AV74: NULL | AW74: NULL | AX74: NULL | AY74: Not Applicable | AZ74: NULL | BA74: NULL | BB74: -
A75: Ofsted web link | B75: 1158357 | C75: Intec Business Colleges Limited | D75: 52487 | E75: 105188 | F75: 10003347 | G75: Independent Learning Provider | H75: Independent learning provider | I75: Not Applicable | J75: Independent learning providers (including employer providers) | K75: Warwickshire | L75: West Midlands | M75: West Midlands | N75: CV21 2BB | O75: 10022596 | P75: 2017-01-18 | Q75: 2017-01-19 | R75: 2017-02-13 | S75: NULL | T75: Independent Learning Provider (National) - Short | U75: Short | V75: FES - Short inspection | W75: NULL | X75: NULL | Y75: 9 | Z75: - | AA75: - | AB75: - | AC75: - | AD75: - | AE75: - | AF75: - | AG75: - | AH75: - | AI75: - | AJ75: ITS404569 | AK75: 2013-04-22 | AL75: 2013-04-26 | AM75: 2013-06-04 | AN75: NULL | AO75: WBL (national) - Full | AP75: Full | AQ75: FES - Full Inspection | AR75: NULL | AS75: NULL | AT75: 2 | AU75: 2 | AV75: - | AW75: 2 | AX75: 2 | AY75: Not Applicable | AZ75: NULL | BA75: NULL | BB75: No
A76: Ofsted web link | B76: 1236930 | C76: Education Development Trust SC | D76: 1236930 | E76: 117373 | F76: 10001298 | G76: National Careers Service contractor | H76: National Careers Service contractor | I76: Not Applicable | J76: National Careers Service contractors | K76: Reading | L76: South East | M76: South East | N76: RG1 4RU | O76: 10022690 | P76: 2017-01-17 | Q76: 2017-01-20 | R76: 2017-02-13 | S76: NULL | T76: National Careers Service - Full | U76: Full | V76: FES - Full Inspection | W76: NULL | X76: NULL | Y76: 2 | Z76: 2 | AA76: 2 | AB76: 2 | AC76: 2 | AD76: - | AE76: - | AF76: - | AG76: - | AH76: - | AI76: - | AJ76: NULL | AK76: NULL | AL76: NULL | AM76: NULL | AN76: NULL | AO76: NULL | AP76: NULL | AQ76: NULL | AR76: NULL | AS76: NULL | AT76: NULL | AU76: NULL | AV76: NULL | AW76: NULL | AX76: NULL | AY76: Not Applicable | AZ76: NULL | BA76: NULL | BB76: -
A77: Ofsted web link | B77: 1159239 | C77: XTP International Limited | D77: 58273 | E77: 117081 | F77: 10005150 | G77: Independent Learning Provider | H77: Independent learning provider | I77: Not Applicable | J77: Independent learning providers (including employer providers) | K77: Stockport | L77: North West | M77: North West | N77: SK4 1AS | O77: 10023008 | P77: 2017-01-10 | Q77: 2017-01-12 | R77: 2017-02-09 | S77: NULL | T77: Independent Learning Provider (National) - Full | U77: Full | V77: FES - Short inspection Conversion | W77: 10023008-2 | X77: 2017-01-12 | Y77: 3 | Z77: 3 | AA77: 3 | AB77: 3 | AC77: 3 | AD77: - | AE77: - | AF77: 3 | AG77: - | AH77: - | AI77: - | AJ77: ITS429238 | AK77: 2014-01-21 | AL77: 2014-01-24 | AM77: 2014-02-26 | AN77: NULL | AO77: Employer - Requires improvement | AP77: Full | AQ77: FES - Full Inspection | AR77: NULL | AS77: NULL | AT77: 2 | AU77: 2 | AV77: - | AW77: 2 | AX77: 2 | AY77: Declined | AZ77: NULL | BA77: NULL | BB77: -
A78: Ofsted web link | B78: 1155487 | C78: SEEVIC College | D78: 130681 | E78: 108340 | F78: 10005736 | G78: Further Education | H78: General further education college | I78: General Further Education College | J78: Colleges | K78: Essex | L78: East of England | M78: East of England | N78: SS7 1TW | O78: 10004742 | P78: 2016-12-06 | Q78: 2016-12-09 | R78: 2017-02-09 | S78: NULL | T78: FE College - Requires improvement - second inspection | U78: Full | V78: FES - Full Inspection | W78: NULL | X78: NULL | Y78: 3 | Z78: 3 | AA78: 2 | AB78: 3 | AC78: 3 | AD78: 3 | AE78: - | AF78: 3 | AG78: - | AH78: - | AI78: 2 | AJ78: ITS430276 | AK78: 2014-09-29 | AL78: 2014-10-03 | AM78: 2014-12-20 | AN78: NULL | AO78: FE College - Requires improvement | AP78: Full | AQ78: FES - Full Inspection | AR78: NULL | AS78: NULL | AT78: 3 | AU78: 3 | AV78: - | AW78: 3 | AX78: 3 | AY78: Stayed the Same | AZ78: NULL | BA78: NULL | BB78: -
A79: Ofsted web link | B79: 1147928 | C79: The Wiltshire Council | D79: 50245 | E79: 110145 | F79: 10007528 | G79: Community Learning and Skills - Local Authority | H79: Local authority provider | I79: Not Applicable | J79: Community learning and skills providers | K79: Wiltshire | L79: South West | M79: South West | N79: BA14 8JN | O79: 10026667 | P79: 2017-01-12 | Q79: 2017-01-13 | R79: 2017-02-06 | S79: NULL | T79: Community Learning and Skills - Local authority - Reinspection monitoring visit | U79: Reinspection monitoring | V79: FES - Monitoring Inspection | W79: NULL | X79: NULL | Y79: - | Z79: - | AA79: - | AB79: - | AC79: - | AD79: - | AE79: - | AF79: - | AG79: - | AH79: - | AI79: - | AJ79: 10020100 | AK79: 2016-10-18 | AL79: 2016-10-21 | AM79: 2016-12-01 | AN79: NULL | AO79: Community Learning and Skills - Local authority - Full | AP79: Full | AQ79: FES - Full Inspection | AR79: NULL | AS79: NULL | AT79: 4 | AU79: 4 | AV79: 3 | AW79: 4 | AX79: 4 | AY79: Not Applicable | AZ79: NULL | BA79: NULL | BB79: -
A80: Ofsted web link | B80: 1147738 | C80: Essex County Council | D80: 51766 | E80: 110116 | F80: 10002327 | G80: Community Learning and Skills - Local Authority | H80: Local authority provider | I80: Not Applicable | J80: Community learning and skills providers | K80: Essex | L80: East of England | M80: East of England | N80: CM2 6WN | O80: 10020145 | P80: 2016-12-06 | Q80: 2016-12-09 | R80: 2017-02-06 | S80: NULL | T80: Community Learning and Skills - Local authority - Requires Improvement | U80: Full | V80: FES - Full Inspection | W80: NULL | X80: NULL | Y80: 4 | Z80: 4 | AA80: 4 | AB80: 3 | AC80: 3 | AD80: - | AE80: 4 | AF80: 3 | AG80: - | AH80: - | AI80: - | AJ80: ITS423415 | AK80: 2014-11-10 | AL80: 2014-11-14 | AM80: 2014-12-19 | AN80: NULL | AO80: Adult and Community - full (regional) Historic | AP80: Full | AQ80: FES - Full Inspection | AR80: NULL | AS80: NULL | AT80: 3 | AU80: 3 | AV80: - | AW80: 3 | AX80: 3 | AY80: Declined | AZ80: NULL | BA80: NULL | BB80: -
A81: Ofsted web link | B81: 1159070 | C81: The Motor Insurance Repair Research Centre | D81: 54895 | E81: 116866 | F81: 10006571 | G81: Independent Learning Provider | H81: Independent learning provider | I81: Not Applicable | J81: Independent learning providers (including employer providers) | K81: West Berkshire | L81: South East | M81: South East | N81: RG19 4NR | O81: 10023002 | P81: 2017-01-11 | Q81: 2017-01-12 | R81: 2017-02-03 | S81: NULL | T81: Independent Learning Provider (National) - Short | U81: Short | V81: FES - Short inspection | W81: NULL | X81: NULL | Y81: 9 | Z81: - | AA81: - | AB81: - | AC81: - | AD81: - | AE81: - | AF81: - | AG81: - | AH81: - | AI81: - | AJ81: ITS408545 | AK81: 2013-03-18 | AL81: 2013-03-21 | AM81: 2013-04-29 | AN81: NULL | AO81: WBL (national) - Full | AP81: Full | AQ81: FES - Full Inspection | AR81: NULL | AS81: NULL | AT81: 2 | AU81: 2 | AV81: - | AW81: 2 | AX81: 1 | AY81: Not Applicable | AZ81: NULL | BA81: NULL | BB81: -
A82: Ofsted web link | B82: 1155322 | C82: Stockport College | D82: 130512 | E82: 106863 | F82: 10006331 | G82: Further Education | H82: General further education college | I82: General Further Education College | J82: Colleges | K82: Stockport | L82: North West | M82: North West | N82: SK1 3UQ | O82: 10026892 | P82: 2017-01-11 | Q82: 2017-01-12 | R82: 2017-02-03 | S82: NULL | T82: FE College - Reinspection monitoring visit | U82: Reinspection monitoring | V82: FES - Monitoring Inspection | W82: NULL | X82: NULL | Y82: - | Z82: - | AA82: - | AB82: - | AC82: - | AD82: - | AE82: - | AF82: - | AG82: - | AH82: - | AI82: - | AJ82: 10004695 | AK82: 2016-10-11 | AL82: 2016-10-14 | AM82: 2016-11-24 | AN82: NULL | AO82: FE College - Requires improvement | AP82: Full | AQ82: FES - Full Inspection | AR82: NULL | AS82: NULL | AT82: 4 | AU82: 4 | AV82: 4 | AW82: 4 | AX82: 4 | AY82: Not Applicable | AZ82: NULL | BA82: NULL | BB82: -
A83: Ofsted web link | B83: 1157904 | C83: Business Management Resources (UK) Ltd | D83: 50103 | E83: 116968 | F83: 10001055 | G83: Independent Learning Provider | H83: Independent learning provider | I83: Not Applicable | J83: Independent learning providers (including employer providers) | K83: Telford and Wrekin | L83: West Midlands | M83: West Midlands | N83: TF2 9TW | O83: 10022588 | P83: 2017-01-10 | Q83: 2017-01-13 | R83: 2017-02-01 | S83: NULL | T83: Independent Learning Provider (National) - Full | U83: Full | V83: FES - Full Inspection | W83: NULL | X83: NULL | Y83: 2 | Z83: 2 | AA83: 2 | AB83: 2 | AC83: 2 | AD83: - | AE83: - | AF83: 2 | AG83: - | AH83: - | AI83: - | AJ83: ITS399073 | AK83: 2012-10-01 | AL83: 2012-10-05 | AM83: 2012-11-09 | AN83: NULL | AO83: WBL (national) - Full | AP83: Full | AQ83: FES - Full Inspection | AR83: NULL | AS83: NULL | AT83: 2 | AU83: 2 | AV83: - | AW83: 2 | AX83: 2 | AY83: Stayed the Same | AZ83: NULL | BA83: NULL | BB83: -
A84: Ofsted web link | B84: 1147323 | C84: Connell Sixth Form College | D84: 139730 | E84: 123351 | F84: 10042041 | G84: Free School - 16-19 | H84: 16-19 free school | I84: Not Applicable | J84: 16-19 academies | K84: Manchester | L84: North West | M84: North West | N84: M11 3BS | O84: 10020133 | P84: 2016-11-21 | Q84: 2016-11-23 | R84: 2017-01-31 | S84: NULL | T84: 16-19 academy - Requires Improvement | U84: Full | V84: FES - Full Inspection | W84: NULL | X84: NULL | Y84: 3 | Z84: 3 | AA84: 3 | AB84: 3 | AC84: 3 | AD84: 3 | AE84: - | AF84: - | AG84: - | AH84: - | AI84: - | AJ84: ITS452499 | AK84: 2015-01-27 | AL84: 2015-01-30 | AM84: 2015-03-17 | AN84: NULL | AO84: 16-19 academy - Full | AP84: Full | AQ84: FES - Full Inspection | AR84: NULL | AS84: NULL | AT84: 3 | AU84: 3 | AV84: - | AW84: 3 | AX84: 3 | AY84: Stayed the Same | AZ84: NULL | BA84: NULL | BB84: -
A85: Ofsted web link | B85: 1155304 | C85: Birkenhead Sixth Form College | D85: 130494 | E85: 108434 | F85: 10000702 | G85: Further Education | H85: Sixth form college | I85: Sixth Form College (General) | J85: Colleges | K85: Wirral | L85: North West | M85: North West | N85: CH43 8SQ | O85: 10020103 | P85: 2016-12-07 | Q85: 2016-12-09 | R85: 2017-01-30 | S85: NULL | T85: SFC - Full | U85: Full | V85: FES - Short inspection Conversion | W85: 10020103-2 | X85: 2016-12-09 | Y85: 1 | Z85: 1 | AA85: 1 | AB85: 1 | AC85: 1 | AD85: 1 | AE85: - | AF85: - | AG85: - | AH85: - | AI85: - | AJ85: ITS399014 | AK85: 2012-12-04 | AL85: 2012-12-07 | AM85: 2013-01-15 | AN85: NULL | AO85: SFC - Full | AP85: Full | AQ85: FES - Full Inspection | AR85: NULL | AS85: NULL | AT85: 2 | AU85: 2 | AV85: - | AW85: 2 | AX85: 2 | AY85: Improved | AZ85: NULL | BA85: NULL | BB85: -
A86: Ofsted web link | B86: 1158717 | C86: People and Business Development Ltd | D86: 58563 | E86: 118493 | F86: 10020395 | G86: Independent Learning Provider | H86: Independent learning provider | I86: Not Applicable | J86: Independent learning providers (including employer providers) | K86: Essex | L86: East of England | M86: East of England | N86: CB9 7BN | O86: 10020186 | P86: 2016-10-31 | Q86: 2016-11-03 | R86: 2017-01-25 | S86: NULL | T86: Independent Learning Provider (National) - Full | U86: Full | V86: FES - Full Inspection | W86: NULL | X86: NULL | Y86: 3 | Z86: 3 | AA86: 2 | AB86: 3 | AC86: 3 | AD86: - | AE86: - | AF86: 3 | AG86: - | AH86: - | AI86: - | AJ86: ITS429012 | AK86: 2013-11-19 | AL86: 2013-11-22 | AM86: 2013-12-28 | AN86: NULL | AO86: WBL (national) - Full | AP86: Full | AQ86: FES - Full Inspection | AR86: NULL | AS86: NULL | AT86: 2 | AU86: 2 | AV86: - | AW86: 2 | AX86: 2 | AY86: Declined | AZ86: NULL | BA86: NULL | BB86: -
A87: Ofsted web link | B87: 1143694 | C87: St Martins Centre (St Roses School) | D87: 139250 | E87: 124201 | F87: 10040374 | G87: Special College | H87: Independent specialist college | I87: Not Applicable | J87: Independent specialist colleges | K87: Gloucestershire | L87: South West | M87: South West | N87: GL5 4AP | O87: 10021853 | P87: 2016-12-06 | Q87: 2016-12-08 | R87: 2017-01-25 | S87: NULL | T87: ISC - Full | U87: Full | V87: FES - Full Inspection | W87: NULL | X87: NULL | Y87: 2 | Z87: 2 | AA87: 2 | AB87: 2 | AC87: 1 | AD87: - | AE87: - | AF87: - | AG87: - | AH87: - | AI87: 2 | AJ87: NULL | AK87: NULL | AL87: NULL | AM87: NULL | AN87: NULL | AO87: NULL | AP87: NULL | AQ87: NULL | AR87: NULL | AS87: NULL | AT87: NULL | AU87: NULL | AV87: NULL | AW87: NULL | AX87: NULL | AY87: Not Applicable | AZ87: NULL | BA87: NULL | BB87: -
